Workbook

Sheet Warning
H12: Life Cycle Cost Calculator
D17: Trebuie să activați Macros pentru a utiliza această foaie de lucru
F20: Vă rugăm să faceți clic pe butonul Opțiuni și selectați "Enable acest conținut"
D30: Clean Flote costul ciclului de viață Calculator este un instrument ușor de utilizat pentru a permite o comparație a costurilor pe ciclu de viață ( LCC ) / costurile totale de proprietate ( TCO ) de vehicule și diferite sume licitate în cadrul unui proces de achiziții publice . Instrumentul este în deplină conformitate cu Directiva privind Clean Vehicule ( BCV ) (2009 / 33 / CE ) . Aceasta include posibilitatea de a aplica durata de viață operațională Costing metodologie de directivă. Această metodologie echivalent monetar impactul asupra mediului al consumului de combustibil și a emisiilor de la țeava de evacuare .
G33: Conținutul acestei foi de calcul sunt responsabilitatea exclusivă a proiectului Clean Flote și pot fi luate în nici un fel pentru a reflecta punctele de vedere ale Uniunii Europene

Sheet LCC (hidden)
D2: VEHICULE - CALCULATOR COSTURI PE DURATA DE VIATA (LCC)
D3: Va rugam sa completati doar in casetele albe
B5: CONDITII GENERALE
B6: i | C6: Durata Contract/perioada de proprietate asupra vehiculului | D6: An | G6: =E6 -> 0 | I6: =E6 -> 0 | K6: =E6 -> 0 | N6: =F6 -> 0 | O6: =M6 -> 0 | Q6: =M6 -> 0 | S6: =M6 -> 0 | U6: =M6 -> 0 | W6: =O6 -> 0
B7: i | C7: Procent reducere | D7: % | G7: =E7 -> 0 | I7: =E7 -> 0 | K7: =E7 -> 0 | N7: =F7 -> 0 | O7: =M7 -> 0 | Q7: =M7 -> 0 | S7: =M7 -> 0 | U7: =M7 -> 0 | W7: =O7 -> 0
B8: i | C8: Numar ofertanti/oferte | E8: 3
B10: COSTURI DE ACHIZITIE
C11: Nume ofertant/model vehicul | E11: Produsul 1 | G11: Produsul 2 | I11: Produsul 3 | K11: Produsul 4 | M11: Produsul 5 | O11: Produsul 6 | Q11: Produsul 7 | S11: Produsul 8 | U11: Produsul 9 | W11: Produsul 10
B13: i | C13: Numar de vehicule
B14: i | C14: Pret de achizitie | D14: €/unitate | F14: €/unitate | H14: €/unitate | J14: €/unitate | L14: €/unitate | N14: €/unitate | P14: €/unitate | R14: €/unitate | T14: €/unitate | V14: €/unitate
C15: (sau) Pret leasing | D15: €/unitate/an | F15: €/unitate/an | H15: €/unitate/an | J15: €/unitate/an | L15: €/unitate/an | N15: €/unitate/an | P15: €/unitate/an | R15: €/unitate/an | T15: €/unitate/an | V15: €/unitate/an
C16: COSTURI de ACHIZITIE / UNITATE | E16: =IF(CELL("type",E13)="v",-PV($E$7*0.01,$E$6,E15)+E14,0) -> 0 | G16: =IF(CELL("type",G13)="v",-PV($E$7*0.01,$E$6,G15)+G14,0) -> 0 | I16: =IF(CELL("type",I13)="v",-PV($E$7*0.01,$E$6,I15)+I14,0) -> 0 | K16: =IF(CELL("type",K13)="v",-PV($E$7*0.01,$E$6,K15)+K14,0) -> 0 | M16: =IF(CELL("type",M13)="v",-PV($E$7*0.01,$E$6,M15)+M14,0) -> 0 | O16: =IF(CELL("type",O13)="v",-PV($E$7*0.01,$E$6,O15)+O14,0) -> 0 | Q16: =IF(CELL("type",Q13)="v",-PV($E$7*0.01,$E$6,Q15)+Q14,0) -> 0 | S16: =IF(CELL("type",S13)="v",-PV($E$7*0.01,$E$6,S15)+S14,0) -> 0 | U16: =IF(CELL("type",U13)="v",-PV($E$7*0.01,$E$6,U15)+U14,0) -> 0 | W16: =IF(CELL("type",W13)="v",-PV($E$7*0.01,$E$6,W15)+W14,0) -> 0
B18: COSTURI DE OPERARE PER VEHICUL
B19: i | C19: Distanta anuala parcursa de vehicul | D19: km | F19: km | H19: km | J19: km | L19: km | N19: km | P19: km | R19: km | T19: km | V19: km
B20: i | C20: Tip combustibil
B21: i | C21: Consumul combustibil per vehicul | D21: =INDEX(Calculari!$E$26:$E$38,Calculari!D$4) ->  | F21: =INDEX(Calculari!$E$26:$E$38,Calculari!E$4) ->  | H21: =INDEX(Calculari!$E$26:$E$38,Calculari!F$4) ->  | J21: =INDEX(Calculari!$E$26:$E$38,Calculari!G$4) ->  | L21: =INDEX(Calculari!$E$26:$E$38,Calculari!H$4) ->  | N21: =INDEX(Calculari!$E$26:$E$38,Calculari!I$4) ->  | P21: =INDEX(Calculari!$E$26:$E$38,Calculari!I$4) ->  | R21: =INDEX(Calculari!$E$26:$E$38,Calculari!K$4) ->  | T21: =INDEX(Calculari!$E$26:$E$38,Calculari!J$4) ->  | V21: =INDEX(Calculari!$E$26:$E$38,Calculari!M$4) -> 
C22: Pret combustibil | D22: =INDEX(Calculari!$F$26:$F$38,Calculari!D4) ->  | F22: =INDEX(Calculari!$F$26:$F$38,Calculari!E4) ->  | H22: =INDEX(Calculari!$F$26:$F$38,Calculari!F4) ->  | J22: =INDEX(Calculari!$F$26:$F$38,Calculari!G4) ->  | L22: =INDEX(Calculari!$F$26:$F$38,Calculari!H4) ->  | N22: =INDEX(Calculari!$F$26:$F$38,Calculari!I4) ->  | P22: =INDEX(Calculari!$F$26:$F$38,Calculari!I4) ->  | R22: =INDEX(Calculari!$F$26:$F$38,Calculari!K4) ->  | T22: =INDEX(Calculari!$F$26:$F$38,Calculari!J4) ->  | V22: =INDEX(Calculari!$F$26:$F$38,Calculari!M4) -> 
B23: i | C23: Adaugati un al doilea tip de combustibil (PHEVs, combustibil dual)?
C24: Tip combustibil
B25: i | C25: Consumul combustibil per vehicul | D25: =INDEX(Calculari!$E$26:$E$38,Calculari!D$5) ->  | F25: =INDEX(Calculari!$E$26:$E$38,Calculari!E$5) ->  | H25: =INDEX(Calculari!$E$26:$E$38,Calculari!F$5) ->  | J25: =INDEX(Calculari!$E$26:$E$38,Calculari!G$5) ->  | L25: =INDEX(Calculari!$E$26:$E$38,Calculari!H$5) ->  | N25: =INDEX(Calculari!$E$26:$E$38,Calculari!I$5) ->  | P25: =INDEX(Calculari!$E$26:$E$38,Calculari!I$5) ->  | R25: =INDEX(Calculari!$E$26:$E$38,Calculari!K$5) ->  | T25: =INDEX(Calculari!$E$26:$E$38,Calculari!J$5) ->  | V25: =INDEX(Calculari!$E$26:$E$38,Calculari!M$5) -> 
C26: Pret combustibil | D26: =INDEX(Calculari!$F$26:$F$38,Calculari!D5) ->  | F26: =INDEX(Calculari!$F$26:$F$38,Calculari!E5) ->  | H26: =INDEX(Calculari!$F$26:$F$38,Calculari!F5) ->  | J26: =INDEX(Calculari!$F$26:$F$38,Calculari!G5) ->  | L26: =INDEX(Calculari!$F$26:$F$38,Calculari!H5) ->  | N26: =INDEX(Calculari!$F$26:$F$38,Calculari!I5) ->  | P26: =INDEX(Calculari!$F$26:$F$38,Calculari!I5) ->  | R26: =INDEX(Calculari!$F$26:$F$38,Calculari!K5) ->  | T26: =INDEX(Calculari!$F$26:$F$38,Calculari!J5) ->  | V26: =INDEX(Calculari!$F$26:$F$38,Calculari!M5) -> 
C27: Pret inlocuire baterie | D27: €/unitate | F27: €/unitate | H27: €/unitate | J27: €/unitate | L27: €/unitate | N27: €/unitate | P27: €/unitate | R27: €/unitate | T27: €/unitate | V27: €/unitate
C28: Durata de viata estimata a bateriei | D28: Ani | F28: Ani | H28: Ani | J28: Ani | L28: Ani | N28: Ani | P28: Ani | R28: Ani | T28: Ani | V28: Ani
C29: (sau) Pret leasing baterie | D29: €/unitate/an | F29: €/unitate/an | H29: €/unitate/an | J29: €/unitate/an | L29: €/unitate/an | N29: €/unitate/an | P29: €/unitate/an | R29: €/unitate/an | T29: €/unitate/an | V29: €/unitate/an
C30: COSTURI DE OPERARE / UNITATE | E30: =IF(CELL("type",E19)="v",IF($C$80="Use default OECD-FAO values",-PV($E$7*0.01,$E$6,Calculari!D9+Calculari!D10+LCC!E29),-PV($E$7*0.01,$E$6,$E$25*(E19/100)*Calculari!D11)+(E21*(E19/100)*Calculari!D12)+Calculari!D10+LCC!E29),0) -> 0 | G30: =IF(CELL("type",G19)="v",IF($C$80="Use default OECD-FAO values",-PV($E$7*0.01,$E$6,Calculari!E9+Calculari!E10+LCC!G29),-PV($E$7*0.01,$E$6,$E$25*(G19/100)*Calculari!E11)+(G21*(G19/100)*Calculari!E12)+Calculari!E10+LCC!G29),0) -> 0 | I30: =IF(CELL("type",I19)="v",IF($C$80="Use default OECD-FAO values",-PV($E$7*0.01,$E$6,Calculari!F9+Calculari!F10+LCC!I29),-PV($E$7*0.01,$E$6,$E$25*(I19/100)*Calculari!F11)+(I21*(I19/100)*Calculari!F12)+Calculari!F10+LCC!I29),0) -> 0 | K30: =IF(CELL("type",K19)="v",IF($C$80="Use default OECD-FAO values",-PV($E$7*0.01,$E$6,Calculari!G9+Calculari!G10+LCC!K29),-PV($E$7*0.01,$E$6,$E$25*(K19/100)*Calculari!G11)+(K21*(K19/100)*Calculari!G12)+Calculari!G10+LCC!K29),0) -> 0 | M30: =IF(CELL("type",M19)="v",IF($C$80="Use default OECD-FAO values",-PV($E$7*0.01,$E$6,Calculari!H9+Calculari!H10+LCC!M29),-PV($E$7*0.01,$E$6,$E$25*(M19/100)*Calculari!H11)+(M21*(M19/100)*Calculari!H12)+Calculari!H10+LCC!M29),0) -> 0 | O30: =IF(CELL("type",O19)="v",IF($C$80="Use default OECD-FAO values",-PV($E$7*0.01,$E$6,Calculari!I9+Calculari!I10+LCC!O29),-PV($E$7*0.01,$E$6,$E$25*(O19/100)*Calculari!I11)+(O21*(O19/100)*Calculari!I12)+Calculari!I10+LCC!O29),0) -> 0 | Q30: =IF(CELL("type",Q19)="v",IF($C$80="Use default OECD-FAO values",-PV($E$7*0.01,$E$6,Calculari!J9+Calculari!J10+LCC!Q29),-PV($E$7*0.01,$E$6,$E$25*(Q19/100)*Calculari!J11)+(Q21*(Q19/100)*Calculari!J12)+Calculari!J10+LCC!Q29),0) -> 0 | S30: =IF(CELL("type",S19)="v",IF($C$80="Use default OECD-FAO values",-PV($E$7*0.01,$E$6,Calculari!K9+Calculari!K10+LCC!S29),-PV($E$7*0.01,$E$6,$E$25*(S19/100)*Calculari!K11)+(S21*(S19/100)*Calculari!K12)+Calculari!K10+LCC!S29),0) -> 0 | U30: =IF(CELL("type",U19)="v",IF($C$80="Use default OECD-FAO values",-PV($E$7*0.01,$E$6,Calculari!L9+Calculari!L10+LCC!U29),-PV($E$7*0.01,$E$6,$E$25*(U19/100)*Calculari!L11)+(U21*(U19/100)*Calculari!L12)+Calculari!L10+LCC!U29),0) -> 0 | W30: =IF(CELL("type",W19)="v",IF($C$80="Use default OECD-FAO values",-PV($E$7*0.01,$E$6,Calculari!M9+Calculari!M10+LCC!W29),-PV($E$7*0.01,$E$6,$E$25*(W19/100)*Calculari!M11)+(W21*(W19/100)*Calculari!M12)+Calculari!M10+LCC!W29),0) -> 0
B32: COSTURI DE INTRETINERE PER VEHICUL
B33: i | C33: Costuri anuale estimate de intretinere | D33: €/unitate/an | F33: €/unitate/an | H33: €/unitate/an | J33: €/unitate/an | L33: €/unitate/an | N33: €/unitate/an | P33: €/unitate/an | R33: €/unitate/an | T33: €/unitate/an | V33: €/unitate/an
B34: i | C34: (sau) Acord pentru service anual | D34: €/unitate/an | F34: €/unitate/an | H34: €/unitate/an | J34: €/unitate/an | L34: €/unitate/an | N34: €/unitate/an | P34: €/unitate/an | R34: €/unitate/an | T34: €/unitate/an | V34: €/unitate/an
C35: COSTURI DE INTRETINERE / UNITATE | E35: =IF(CELL("type",E33)="v",-PV($E$7*0.01,$E$6,(E34+E33)),IF(CELL("type",E34)="v",-PV($E$7*0.01,$E$6,(E34+E33)),0)) -> 0 | G35: =IF(CELL("type",G33)="v",-PV($E$7*0.01,$E$6,(G34+G33)),IF(CELL("type",G34)="v",-PV($E$7*0.01,$E$6,(G34+G33)),0)) -> 0 | I35: =IF(CELL("type",I33)="v",-PV($E$7*0.01,$E$6,(I34+I33)),IF(CELL("type",I34)="v",-PV($E$7*0.01,$E$6,(I34+I33)),0)) -> 0 | K35: =IF(CELL("type",K33)="v",-PV($E$7*0.01,$E$6,(K34+K33)),IF(CELL("type",K34)="v",-PV($E$7*0.01,$E$6,(K34+K33)),0)) -> 0 | M35: =IF(CELL("type",M33)="v",-PV($E$7*0.01,$E$6,(M34+M33)),IF(CELL("type",M34)="v",-PV($E$7*0.01,$E$6,(M34+M33)),0)) -> 0 | O35: =IF(CELL("type",O33)="v",-PV($E$7*0.01,$E$6,(O34+O33)),IF(CELL("type",O34)="v",-PV($E$7*0.01,$E$6,(O34+O33)),0)) -> 0 | Q35: =IF(CELL("type",Q33)="v",-PV($E$7*0.01,$E$6,(Q34+Q33)),IF(CELL("type",Q34)="v",-PV($E$7*0.01,$E$6,(Q34+Q33)),0)) -> 0 | S35: =IF(CELL("type",S33)="v",-PV($E$7*0.01,$E$6,(S34+S33)),IF(CELL("type",S34)="v",-PV($E$7*0.01,$E$6,(S34+S33)),0)) -> 0 | U35: =IF(CELL("type",U33)="v",-PV($E$7*0.01,$E$6,(U34+U33)),IF(CELL("type",U34)="v",-PV($E$7*0.01,$E$6,(U34+U33)),0)) -> 0 | W35: =IF(CELL("type",W33)="v",-PV($E$7*0.01,$E$6,(W34+W33)),IF(CELL("type",W34)="v",-PV($E$7*0.01,$E$6,(W34+W33)),0)) -> 0
B37: TAXE SI ALTE COSTURI/SUBVENTII PER VEHICUL
B38: i | C38: Taxa vehicul | D38: €/unitate/an | F38: €/unitate/an | H38: €/unitate/an | J38: €/unitate/an | L38: €/unitate/an | N38: €/unitate/an | P38: €/unitate/an | R38: €/unitate/an | T38: €/unitate/an | V38: €/unitate/an
C39: Costuri asigurare | D39: €/unitate/an | F39: €/unitate/an | H39: €/unitate/an | J39: €/unitate/an | L39: €/unitate/an | N39: €/unitate/an | P39: €/unitate/an | R39: €/unitate/an | T39: €/unitate/an | V39: €/unitate/an
B40: i | C40: Infrastructura - costuri pentru o investitie | D40: € | F40: € | H40: € | J40: € | L40: € | N40: € | P40: € | R40: € | T40: € | V40: €
C41: (sau) Infrastructura - costuri anuale | D41: €/an | F41: €/an | H41: €/an | J41: €/an | L41: €/an | N41: €/an | P41: €/an | R41: €/an | T41: €/an | V41: €/an
B42: i | C42: Alte costuri/subventii (click la stanga + to expand)
C43: (Cost anual 1) | D43: €/an | F43: €/an | H43: €/an | J43: €/an | L43: €/an | N43: €/an | P43: €/an | R43: €/an | T43: €/an | V43: €/an
C44: (Cost anual 2) | D44: €/an | F44: €/an | H44: €/an | J44: €/an | L44: €/an | N44: €/an | P44: €/an | R44: €/an | T44: €/an | V44: €/an
C45: (Cost initial 1) | D45: € | F45: € | H45: € | J45: € | L45: € | N45: € | P45: € | R45: € | T45: € | V45: €
C46: (Cost initial 2) | D46: € | F46: € | H46: € | J46: € | L46: € | N46: € | P46: € | R46: € | T46: € | V46: €
C47: (Subventie anuala) | D47: €
C48: (Subventie initiala) | D48: €
C49: TOTAL ALTE COSTURI SI ECONOMII / UNITATE | E49: =-PV(E7*0.01,E6,(E38+E39+E41+E43+E44-E47))+E40+E45+E46-E48 -> 0 | G49: =-PV(G7*0.01,G6,(G38+G39+G41+G43+G44-G47))+G40+G45+G46-G48 -> 0 | I49: =-PV(I7*0.01,I6,(I38+I39+I41+I43+I44-I47))+I40+I45+I46-I48 -> 0 | K49: =-PV(K7*0.01,K6,(K38+K39+K41+K43+K44-K47))+K40+K45+K46-K48 -> 0 | M49: =-PV(M7*0.01,M6,(M38+M39+M41+M43+M44-M47))+M40+M45+M46-M48 -> 0 | O49: =-PV(O7*0.01,O6,(O38+O39+O41+O43+O44-O47))+O40+O45+O46-O48 -> 0 | Q49: =-PV(Q7*0.01,Q6,(Q38+Q39+Q41+Q43+Q44-Q47))+Q40+Q45+Q46-Q48 -> 0 | S49: =-PV(S7*0.01,S6,(S38+S39+S41+S43+S44-S47))+S40+S45+S46-S48 -> 0 | U49: =-PV(U7*0.01,U6,(U38+U39+U41+U43+U44-U47))+U40+U45+U46-U48 -> 0 | W49: =-PV(W7*0.01,W6,(W38+W39+W41+W43+W44-W47))+W40+W45+W46-W48 -> 0
B51: i EMISII (COST DE OPERARE PE DURATA DE VIATA - OLC) PER VEHICUL - SECTIUNE OPTIONALA
B52: i | C52: Emisii CO2 | D52: g/km | F52: g/km | H52: g/km | J52: g/km | L52: g/km | N52: g/km | O52: 0 | P52: g/km | R52: g/km | T52: g/km | V52: g/km
C53: Cost emisii CO2 pe durata de viata / unitate | G53: =$D$76*G52*G19*$E$6 -> 0 | I53: =$D$76*I52*I19*$E$6 -> 0 | K53: =$D$76*K52*K19*$E$6 -> 0 | M53: =$D$76*M52*M19*$E$6 -> 0 | O53: =$D$76*O52*O19*$E$6 -> 0 | Q53: =$D$76*Q52*Q19*$E$6 -> 0 | S53: =$D$76*S52*S19*$E$6 -> 0 | U53: =$D$76*U52*U19*$E$6 -> 0 | W53: =$D$76*W52*W19*$E$6 -> 0
B54: i | C54: NOx (Oxizi de azot) | D54: g/km | F54: g/km | H54: g/km | J54: g/km | L54: g/km | N54: g/km | P54: g/km | R54: g/km | T54: g/km | V54: g/km
B55: i | C55: PM (Macro Particule) | D55: g/km | F55: g/km | H55: g/km | J55: g/km | L55: g/km | N55: g/km | P55: g/km | R55: g/km | T55: g/km | V55: g/km
B56: i | C56: NMHC (Hidrocarburi non-metan) | D56: g/km | F56: g/km | H56: g/km | J56: g/km | L56: g/km | N56: g/km | P56: g/km | R56: g/km | T56: g/km | V56: g/km
C57: Cost emisii poluante pe durata de viata / unitate | G57: =((G54*$D$73)+(G55*$D$74)+(G56*$D$75))*G19*G6 -> 0 | I57: =((I54*$D$73)+(I55*$D$74)+(I56*$D$75))*I19*I6 -> 0 | K57: =((K54*$D$73)+(K55*$D$74)+(K56*$D$75))*K19*K6 -> 0 | M57: =((M54*$D$73)+(M55*$D$74)+(M56*$D$75))*M19*M6 -> 0 | O57: =((O54*$D$73)+(O55*$D$74)+(O56*$D$75))*O19*O6 -> 0 | Q57: =((Q54*$D$73)+(Q55*$D$74)+(Q56*$D$75))*Q19*Q6 -> 0 | S57: =((S54*$D$73)+(S55*$D$74)+(S56*$D$75))*S19*S6 -> 0 | U57: =((U54*$D$73)+(U55*$D$74)+(U56*$D$75))*U19*U6 -> 0 | W57: =((W54*$D$73)+(W55*$D$74)+(W56*$D$75))*W19*W6 -> 0
B58: i | C58: Combustibil de referinta (Cel mai ieftin dintre motorina si benzina inainte de taxe)
B59: i | C59: Cost combustibil de referinta (fara taxe) | D59: €/l | F59: €/l | H59: €/l | J59: €/l | L59: €/l | N59: €/l | P59: €/l | R59: €/l | T59: €/l | V59: €/l
C60: Cost consum energetic pe durata de viata / unitate | E60: =IF(CELL("type",E59)="v",Calculari!D22,0) -> 0 | G60: =IF(CELL("type",G59)="v",Calculari!E22,0) -> 0 | I60: =IF(CELL("type",I59)="v",Calculari!G22,0) -> 0 | K60: =IF(CELL("type",K59)="v",Calculari!I22,0) -> 0 | M60: =IF(CELL("type",M59)="v",Calculari!K22,0) -> 0 | O60: =IF(CELL("type",O59)="v",Calculari!M22,0) -> 0 | Q60: =IF(CELL("type",Q59)="v",Calculari!O22,0) -> 0 | S60: =IF(CELL("type",S59)="v",Calculari!Q22,0) -> 0 | U60: =IF(CELL("type",U59)="v",Calculari!S22,0) -> 0 | W60: =IF(CELL("type",W59)="v",Calculari!U22,0) -> 0
C61: COST DE OPERARE PE DURATA DE VIATA (OLC) / UNITATE | E61: =SUM(E53,E57,E60) -> 0 | G61: =SUM(G53,G57,G60) -> 0 | I61: =SUM(I53,I57,I60) -> 0 | K61: =SUM(K53,K57,K60) -> 0 | M61: =SUM(M53,M57,M60) -> 0 | O61: =SUM(O53,O57,O60) -> 0 | Q61: =SUM(Q53,Q57,Q60) -> 0 | S61: =SUM(S53,S57,S60) -> 0 | U61: =SUM(U53,U57,U60) -> 0 | W61: =SUM(W53,W57,W60) -> 0
B63: FINELE DURATEI DE VIATA
B64: i | C64: Valoare remanenta (la finele perioadei contractate) | D64: €/unitate | G64: 0 | O64: 0
E65: =SUM(E64) -> 0 | G65: =SUM(G64) -> 0 | I65: =SUM(I64) -> 0 | M65: =SUM(M64) -> 0 | O65: =SUM(O64) -> 0 | Q65: =SUM(Q64) -> 0 | S65: =SUM(S64) -> 0 | U65: =SUM(U64) -> 0 | W65: =SUM(W64) -> 0
C67: TOTAL LCC PER UNITATE | E67: =E16+E30+E35+E49+E61-E65 -> 0 | G67: =G16+G30+G35+G49+G61-G65 -> 0 | I67: =I16+I30+I35+I49+I61-I65 -> 0 | K67: =K16+K30+K35+K49+K61-K65 -> 0 | M67: =M16+M30+M35+M49+M61-M65 -> 0 | O67: =O16+O30+O35+O49+O61-O65 -> 0 | Q67: =Q16+Q30+Q35+Q49+Q61-Q65 -> 0 | S67: =S16+S30+S35+S49+S61-S65 -> 0 | U67: =U16+U30+U35+U49+U61-U65 -> 0 | W67: =W16+W30+W35+W49+W61-W65 -> 0
C68: TOTAL LCC | E68: =E67*E13 -> 0 | G68: =G67*G13 -> 0 | I68: =I67*I13 -> 0 | K68: =K67*K13 -> 0 | M68: =M67*M13 -> 0 | O68: =O67*O13 -> 0 | Q68: =Q67*Q13 -> 0 | S68: =S67*S13 -> 0 | U68: =U67*U13 -> 0 | W68: =W67*W13 -> 0
B71: COST EMISII | F71: > | G71: CLICK AICI PENTRU DIAGRAME
C72: Emisia | D72: Cost per unitate €/g
C73: NOx (interval permis 0,0044-0,0088) | D73: 0.0044
C74: PM (interval permis 0,087-0,174) | D74: 0.087
C75: NMHC (interval permis 0,001-0,002) | D75: 0.001
C76: CO2 (interval permis 0.00003 - 0.00008) | D76: 3e-05
B78: CRESTERI ALE PRETULUI COMBUSTIBILULUI
C79: Selectati optiunea din caseta de mai jos
B80: i | C80: Alegeti valorile proprii
C82: Cresterea anuala a pretului combustibilului %
C83: Motorina (€/l)
C84: Benzina (€/l)
C85: Biogaz/CBG
C86: Gaz Natural/CNG (€/Nm3)
C87: Electricitate (€/kWh)
C88: Biodiesel (€/l)
C89: LPG (€/l)
C90: Etanol (€/l)
C91: Hidrogen gazos (€/Nm3)
C92: Hidrogen lichid - kg/100km (€/kg)
C93: Hidrogen lichid - l/100km (€/l)
C94: Combustibil in emulsie (€/l)
D95: Annual price increase over period
C96: Diesel (€/l) | D96: =INDEX('Preturi combustibili'!$D$6:$N$6,LCC!$E$6)/LCC!$E$6 -> 
C97: Petrol (€/l) | D97: =INDEX('Preturi combustibili'!$D$9:$N$9,LCC!$E$6)/LCC!$E$6 -> 
C98: Biogas/CBG
C99: Natural Gas/CNG (€/Nm3) | D99: =INDEX('Preturi combustibili'!$D$24:$N$24,LCC!$E$6)/LCC!$E$6 -> 
C100: Electricity (€/kWh) | D100: =INDEX('Preturi combustibili'!$D$18:$N$18,LCC!$E$6)/LCC!$E$6 -> 
C101: Biodiesel (€/l) | D101: =INDEX('Preturi combustibili'!$D$21:$N$21,LCC!$E$6)/LCC!$E$6 -> 
C102: LPG (€/l) | D102: =INDEX('Preturi combustibili'!$D$12:$N$12,LCC!$E$6)/LCC!$E$6 -> 
C103: Ethanol (€/l) | D103: =INDEX('Preturi combustibili'!$D$15:$N$15,LCC!$E$6)/LCC!$E$6 -> 
C104: Hydrogen gas (€/Nm3)
C105: Hydrogen liquid - kg/100km (€/kg)
C106: Hydrogen liquid - l/100km (€/l)
C107: Emulsion Fuel (€/l)

Sheet Diagrame (hidden)
B3: DIAGRAMA REZULTATE LCC
AE10: Costuri operationale pe durata de viata
AE12: Costuri combustibil
AE14: Total alte costuri
AE16: Costuri intretinere
AE18: Costuri achizitie*
AE23: *Daca exista costuri remanente acestea vor fi scazute din costul de achizitie din diagrama
C27: > | D27: INAPOI LA CALCULUL LCC

Sheet Preturi combustibili (hidden)
A1: Surse: | B1: OECD-FAO Perspectiva agricola SUA Administratia energie | X1: PRIMELE SERII UN SINGUR COMBUSTIBIL | AK1: Combustibil 1 Serii | AL1: SERII AL DOILEA COMBUSTIBIL | AY1: Combustibil 2 Serii
C2: 0.812 | I2: 5 ANI | N2: 10 ANI
C3: =100-C2 -> 99.188 | D3: 2014 | E3: 2015 | F3: 2016 | G3: 2017 | H3: 2018 | I3: 2019 | J3: 2020 | K3: 2021 | L3: 2022 | M3: 2023 | N3: 2024 | X3: MOTORINA | Y3: 2014 | Z3: 2015 | AA3: 2016 | AB3: 2017 | AC3: 2018 | AD3: 2019 | AE3: 2020 | AF3: 2021 | AG3: 2022 | AH3: 2023 | AI3: 2024 | AJ3: Pret total combustibil pentru perioada vizata | AL3: MOTORINA | AM3: 2014 | AN3: 2015 | AO3: 2016 | AP3: 2017 | AQ3: 2018 | AR3: 2019 | AS3: 2020 | AT3: 2021 | AU3: 2022 | AV3: 2023 | AW3: 2024 | AX3: Pret total combustibil pentru perioada vizata
A4: Motorina | B4: $/gallon | C4: Pret estimat | D4: 3.68333 | E4: 3.544132 | F4: 3.495223 | G4: 3.49714 | H4: 3.533868 | I4: 3.610616 | J4: 3.671875 | K4: 3.740702 | L4: 3.815766 | M4: 3.868004 | N4: 3.918083 | X4: Produsul 1 | Y4: =((LCC!$E$19*(LCC!$E$21/100))*LCC!$E$22) -> 0 | Z4: =((LCC!$E$19*(LCC!$E$21/100))*(LCC!$E$22*(1+$E$6))) -> 0 | AA4: =((LCC!$E$19*(LCC!$E$21/100))*(LCC!$E$22*(1+$F$6))) -> 0 | AB4: =((LCC!$E$19*(LCC!$E$21/100))*(LCC!$E$22*(1+$G$6))) -> 0 | AC4: =((LCC!$E$19*(LCC!$E$21/100))*(LCC!$E$22*(1+$H$6))) -> 0 | AD4: =((LCC!$E$19*(LCC!$E$21/100))*(LCC!$E$22*(1+$I$6))) -> 0 | AE4: =((LCC!$E$19*(LCC!$E$21/100))*(LCC!$E$22*(1+$J$6))) -> 0 | AF4: =((LCC!$E$19*(LCC!$E$21/100))*(LCC!$E$22*(1+$K$6))) -> 0 | AG4: =((LCC!$E$19*(LCC!$E$21/100))*(LCC!$E$22*(1+$L$6))) -> 0 | AH4: =((LCC!$E$19*(LCC!$E$21/100))*(LCC!$E$22*(1+$M$6))) -> 0 | AI4: =((LCC!$E$19*(LCC!$E$21/100))*(LCC!$E$22*(1+$N$6))) -> 0 | AJ4: 0 | AL4: Produsul 1 | AM4: =((LCC!$E$19*(LCC!$E$25/100))*LCC!$E$26) -> 0 | AN4: =((LCC!$E$19*(LCC!$E$25/100))*(LCC!$E$26*(1+$E$6))) -> 0 | AO4: =((LCC!$E$19*(LCC!$E$25/100))*(LCC!$E$26*(1+$F$6))) -> 0 | AP4: =((LCC!$E$19*(LCC!$E$25/100))*(LCC!$E$26*(1+$G$6))) -> 0 | AQ4: =((LCC!$E$19*(LCC!$E$25/100))*(LCC!$E$26*(1+$H$6))) -> 0 | AR4: =((LCC!$E$19*(LCC!$E$25/100))*(LCC!$E$26*(1+$I$6))) -> 0 | AS4: =((LCC!$E$19*(LCC!$E$25/100))*(LCC!$E$26*(1+$J$6))) -> 0 | AT4: =((LCC!$E$19*(LCC!$E$25/100))*(LCC!$E$26*(1+$K$6))) -> 0 | AU4: =((LCC!$E$19*(LCC!$E$25/100))*(LCC!$E$26*(1+$L$6))) -> 0 | AV4: =((LCC!$E$19*(LCC!$E$25/100))*(LCC!$E$26*(1+$M$6))) -> 0 | AW4: =((LCC!$E$19*(LCC!$E$25/100))*(LCC!$E$26*(1+$N$6))) -> 0 | AX4: 0
C5: % fata de anul anterior | E5: =(E4-D4)/D4 -> -0.03779134642 | F5: =(F4-E4)/E4 -> -0.01379999391 | G5: 0.0005484628592 | H5: 0.01050229616 | I5: 0.02171784571 | J5: 0.01696635699 | K5: 0.01874437447 | L5: 0.02006682168 | M5: 0.01369004284 | N5: 0.01294698765 | X5: Produsul 2 | Y5: =((LCC!$G$19*(LCC!$G$21/100))*LCC!$G$22) -> 0 | Z5: =((LCC!$G$19*(LCC!$G$21/100))*(LCC!$G$22*(1+$E$6))) -> 0 | AA5: =((LCC!$G$19*(LCC!$G$21/100))*(LCC!$G$22*(1+$F$6))) -> 0 | AB5: =((LCC!$G$19*(LCC!$G$21/100))*(LCC!$G$22*(1+G$6))) -> 0 | AC5: =((LCC!$G$19*(LCC!$G$21/100))*(LCC!$G$22*(1+H$6))) -> 0 | AD5: =((LCC!$G$19*(LCC!$G$21/100))*(LCC!$G$22*(1+I$6))) -> 0 | AE5: =((LCC!$G$19*(LCC!$G$21/100))*(LCC!$G$22*(1+J$6))) -> 0 | AF5: =((LCC!$G$19*(LCC!$G$21/100))*(LCC!$G$22*(1+K$6))) -> 0 | AG5: =((LCC!$G$19*(LCC!$G$21/100))*(LCC!$G$22*(1+L$6))) -> 0 | AH5: =((LCC!$G$19*(LCC!$G$21/100))*(LCC!$G$22*(1+M$6))) -> 0 | AI5: =((LCC!$G$19*(LCC!$G$21/100))*(LCC!$G$22*(1+N$6))) -> 0 | AJ5: 0 | AL5: Produsul 2 | AM5: =((LCC!$G$19*(LCC!$G$25/100))*LCC!$G$26) -> 0 | AN5: =((LCC!$G$19*(LCC!$G$25/100))*(LCC!$G$26*(1+$E$6))) -> 0 | AO5: =((LCC!$G$19*(LCC!$G$25/100))*(LCC!$G$26*(1+$F$6))) -> 0 | AP5: =((LCC!$G$19*(LCC!$G$25/100))*(LCC!$G$26*(1+$G$6))) -> 0 | AQ5: =((LCC!$G$19*(LCC!$G$25/100))*(LCC!$G$26*(1+$H$6))) -> 0 | AR5: =((LCC!$G$19*(LCC!$G$25/100))*(LCC!$G$26*(1+$I$6))) -> 0 | AS5: =((LCC!$G$19*(LCC!$G$25/100))*(LCC!$G$26*(1+$J$6))) -> 0 | AT5: =((LCC!$G$19*(LCC!$G$25/100))*(LCC!$G$26*(1+$K$6))) -> 0 | AU5: =((LCC!$G$19*(LCC!$G$25/100))*(LCC!$G$26*(1+$L$6))) -> 0 | AV5: =((LCC!$G$19*(LCC!$G$25/100))*(LCC!$G$26*(1+$M$6))) -> 0 | AW5: =((LCC!$G$19*(LCC!$G$25/100))*(LCC!$G$26*(1+$N$6))) -> 0 | AX5: 0
C6: % cumulativ | E6: =E5 -> -0.03779134642 | F6: =F5+E6 -> -0.05159134032 | G6: =G5+F6 -> -0.05104287746 | H6: -0.0405405813 | I6: -0.01882273559 | J6: -0.0018563786 | K6: 0.01688799587 | L6: 0.03695481755 | M6: 0.05064486039 | N6: 0.06359184803 | X6: Produsul 3 | Y6: =((LCC!$I$19*(LCC!$I$21/100))*LCC!$I$22) -> 0 | Z6: =((LCC!$I$19*(LCC!$I$21/100))*(LCC!$I$22*(1+$E$6))) -> 0 | AA6: =((LCC!$I$19*(LCC!$I$21/100))*(LCC!$I$22*(1+$F$6))) -> 0 | AB6: =((LCC!$I$19*(LCC!$I$21/100))*(LCC!$I$22*(1+G$6))) -> 0 | AC6: =((LCC!$I$19*(LCC!$I$21/100))*(LCC!$I$22*(1+H$6))) -> 0 | AD6: =((LCC!$I$19*(LCC!$I$21/100))*(LCC!$I$22*(1+I$6))) -> 0 | AE6: =((LCC!$I$19*(LCC!$I$21/100))*(LCC!$I$22*(1+J$6))) -> 0 | AF6: =((LCC!$I$19*(LCC!$I$21/100))*(LCC!$I$22*(1+K$6))) -> 0 | AG6: =((LCC!$I$19*(LCC!$I$21/100))*(LCC!$I$22*(1+L$6))) -> 0 | AH6: =((LCC!$I$19*(LCC!$I$21/100))*(LCC!$I$22*(1+M$6))) -> 0 | AI6: =((LCC!$I$19*(LCC!$I$21/100))*(LCC!$I$22*(1+N$6))) -> 0 | AJ6: 0 | AL6: Produsul 3 | AM6: =((LCC!$I$19*(LCC!$I$25/100))*LCC!$I$26) -> 0 | AN6: =((LCC!$I$19*(LCC!$I$25/100))*(LCC!$I$26*(1+$E$6))) -> 0 | AO6: =((LCC!$I$19*(LCC!$I$25/100))*(LCC!$I$26*(1+$F$6))) -> 0 | AP6: =((LCC!$I$19*(LCC!$I$25/100))*(LCC!$I$26*(1+$G$6))) -> 0 | AQ6: =((LCC!$I$19*(LCC!$I$25/100))*(LCC!$I$26*(1+$H$6))) -> 0 | AR6: =((LCC!$I$19*(LCC!$I$25/100))*(LCC!$I$26*(1+$I$6))) -> 0 | AS6: =((LCC!$I$19*(LCC!$I$25/100))*(LCC!$I$26*(1+$J$6))) -> 0 | AT6: =((LCC!$I$19*(LCC!$I$25/100))*(LCC!$I$26*(1+$K$6))) -> 0 | AU6: =((LCC!$I$19*(LCC!$I$25/100))*(LCC!$I$26*(1+$L$6))) -> 0 | AV6: =((LCC!$I$19*(LCC!$I$25/100))*(LCC!$I$26*(1+$M$6))) -> 0 | AW6: =((LCC!$I$19*(LCC!$I$25/100))*(LCC!$I$26*(1+$N$6))) -> 0 | AX6: 0
A7: Benzina | B7: $/gallon | C7: Pret estimat | D7: 3.380838 | E7: 3.1774 | F7: 3.071946 | G7: 3.027397 | H7: 3.020742 | I7: 3.034724 | J7: 3.077188 | K7: 3.120887 | L7: 3.169647 | M7: 3.220602 | N7: 3.261647 | X7: Produsul 4 | Y7: =((LCC!$K$19*(LCC!$K$21/100))*LCC!$K$22) -> 0 | Z7: =((LCC!$K$19*(LCC!$K$21/100))*(LCC!$K$22*(1+$E$6))) -> 0 | AA7: =((LCC!$K$19*(LCC!$K$21/100))*(LCC!$K$22*(1+$F$6))) -> 0 | AB7: =((LCC!$K$19*(LCC!$K$21/100))*(LCC!$K$22*(1+G$6))) -> 0 | AC7: =((LCC!$K$19*(LCC!$K$21/100))*(LCC!$K$22*(1+H$6))) -> 0 | AD7: =((LCC!$K$19*(LCC!$K$21/100))*(LCC!$K$22*(1+I$6))) -> 0 | AE7: =((LCC!$K$19*(LCC!$K$21/100))*(LCC!$K$22*(1+J$6))) -> 0 | AF7: =((LCC!$K$19*(LCC!$K$21/100))*(LCC!$K$22*(1+K$6))) -> 0 | AG7: =((LCC!$K$19*(LCC!$K$21/100))*(LCC!$K$22*(1+L$6))) -> 0 | AH7: =((LCC!$K$19*(LCC!$K$21/100))*(LCC!$K$22*(1+M$6))) -> 0 | AI7: =((LCC!$K$19*(LCC!$K$21/100))*(LCC!$K$22*(1+N$6))) -> 0 | AJ7: 0 | AL7: Produsul 4 | AM7: =((LCC!$K$19*(LCC!$K$25/100))*LCC!$K$26) -> 0 | AN7: =((LCC!$K$19*(LCC!$K$25/100))*(LCC!$K$26*(1+$E$6))) -> 0 | AO7: =((LCC!$K$19*(LCC!$K$25/100))*(LCC!$K$26*(1+$F$6))) -> 0 | AP7: =((LCC!$K$19*(LCC!$K$25/100))*(LCC!$K$26*(1+$G$6))) -> 0 | AQ7: =((LCC!$K$19*(LCC!$K$25/100))*(LCC!$K$26*(1+$H$6))) -> 0 | AR7: =((LCC!$K$19*(LCC!$K$25/100))*(LCC!$K$26*(1+$I$6))) -> 0 | AS7: =((LCC!$K$19*(LCC!$K$25/100))*(LCC!$K$26*(1+$J$6))) -> 0 | AT7: =((LCC!$K$19*(LCC!$K$25/100))*(LCC!$K$26*(1+$K$6))) -> 0 | AU7: =((LCC!$K$19*(LCC!$K$25/100))*(LCC!$K$26*(1+$L$6))) -> 0 | AV7: =((LCC!$K$19*(LCC!$K$25/100))*(LCC!$K$26*(1+$M$6))) -> 0 | AW7: =((LCC!$K$19*(LCC!$K$25/100))*(LCC!$K$26*(1+$N$6))) -> 0 | AX7: 0
C8: % fata de anul anterior | E8: =(E7-D7)/D7 -> -0.06017383856 | F8: =(F7-E7)/E7 -> -0.03318877069 | G8: -0.01450188252 | H8: -0.002198258108 | I8: 0.004628664083 | J8: 0.01399270576 | K8: 0.0142009523 | L8: 0.01562376337 | M8: 0.01607592265 | N8: 0.01274451174 | X8: Produsul 5 | Y8: =((LCC!$M$19*(LCC!$M$21/100))*LCC!$M$22) -> 0 | Z8: =((LCC!$M$19*(LCC!$M$21/100))*(LCC!$M$22*(1+$E$6))) -> 0 | AA8: =((LCC!$M$19*(LCC!$M$21/100))*(LCC!$M$22*(1+$F$6))) -> 0 | AB8: =((LCC!$M$19*(LCC!$M$21/100))*(LCC!$M$22*(1+G$6))) -> 0 | AC8: =((LCC!$M$19*(LCC!$M$21/100))*(LCC!$M$22*(1+H$6))) -> 0 | AD8: =((LCC!$M$19*(LCC!$M$21/100))*(LCC!$M$22*(1+I$6))) -> 0 | AE8: =((LCC!$M$19*(LCC!$M$21/100))*(LCC!$M$22*(1+J$6))) -> 0 | AF8: =((LCC!$M$19*(LCC!$M$21/100))*(LCC!$M$22*(1+K$6))) -> 0 | AG8: =((LCC!$M$19*(LCC!$M$21/100))*(LCC!$M$22*(1+L$6))) -> 0 | AH8: =((LCC!$M$19*(LCC!$M$21/100))*(LCC!$M$22*(1+M$6))) -> 0 | AI8: =((LCC!$M$19*(LCC!$M$21/100))*(LCC!$M$22*(1+N$6))) -> 0 | AJ8: 0 | AL8: Produsul 5 | AM8: =((LCC!$M$19*(LCC!$M$25/100))*LCC!$M$26) -> 0 | AN8: =((LCC!$M$19*(LCC!$M$25/100))*(LCC!$M$26*(1+$E$6))) -> 0 | AO8: =((LCC!$M$19*(LCC!$M$25/100))*(LCC!$M$26*(1+$F$6))) -> 0 | AP8: =((LCC!$M$19*(LCC!$M$25/100))*(LCC!$M$26*(1+$G$6))) -> 0 | AQ8: =((LCC!$M$19*(LCC!$M$25/100))*(LCC!$M$26*(1+$H$6))) -> 0 | AR8: =((LCC!$M$19*(LCC!$M$25/100))*(LCC!$M$26*(1+$I$6))) -> 0 | AS8: =((LCC!$M$19*(LCC!$M$25/100))*(LCC!$M$26*(1+$J$6))) -> 0 | AT8: =((LCC!$M$19*(LCC!$M$25/100))*(LCC!$M$26*(1+$K$6))) -> 0 | AU8: =((LCC!$M$19*(LCC!$M$25/100))*(LCC!$M$26*(1+$L$6))) -> 0 | AV8: =((LCC!$M$19*(LCC!$M$25/100))*(LCC!$M$26*(1+$M$6))) -> 0 | AW8: =((LCC!$M$19*(LCC!$M$25/100))*(LCC!$M$26*(1+$N$6))) -> 0 | AX8: 0
C9: % cumulativ | E9: =E8 -> -0.06017383856 | F9: =F8+E9 -> -0.09336260925 | G9: =G8+F9 -> -0.1078644918 | H9: -0.1100627499 | I9: -0.1054340858 | J9: -0.09144138003 | K9: -0.07724042773 | L9: -0.06161666436 | M9: -0.04554074171 | N9: -0.03279622997 | X9: Produsul 6 | Y9: =((LCC!$O$19*(LCC!$O$21/100))*LCC!$O$22) -> 0 | Z9: =((LCC!$O$19*(LCC!$O$21/100))*(LCC!$O$22*(1+$E$6))) -> 0 | AA9: =((LCC!$O$19*(LCC!$O$21/100))*(LCC!$O$22*(1+$F$6))) -> 0 | AB9: =((LCC!$O$19*(LCC!$O$21/100))*(LCC!$O$22*(1+G$6))) -> 0 | AC9: =((LCC!$O$19*(LCC!$O$21/100))*(LCC!$O$22*(1+H$6))) -> 0 | AD9: =((LCC!$O$19*(LCC!$O$21/100))*(LCC!$O$22*(1+I$6))) -> 0 | AE9: =((LCC!$O$19*(LCC!$O$21/100))*(LCC!$O$22*(1+J$6))) -> 0 | AF9: =((LCC!$O$19*(LCC!$O$21/100))*(LCC!$O$22*(1+K$6))) -> 0 | AG9: =((LCC!$O$19*(LCC!$O$21/100))*(LCC!$O$22*(1+L$6))) -> 0 | AH9: =((LCC!$O$19*(LCC!$O$21/100))*(LCC!$O$22*(1+M$6))) -> 0 | AI9: =((LCC!$O$19*(LCC!$O$21/100))*(LCC!$O$22*(1+N$6))) -> 0 | AJ9: 0 | AL9: Produsul 6 | AM9: =((LCC!$O$19*(LCC!$O$25/100))*LCC!$O$26) -> 0 | AN9: =((LCC!$O$19*(LCC!$O$25/100))*(LCC!$O$26*(1+$E$6))) -> 0 | AO9: =((LCC!$O$19*(LCC!$O$25/100))*(LCC!$O$26*(1+$F$6))) -> 0 | AP9: =((LCC!$O$19*(LCC!$O$25/100))*(LCC!$O$26*(1+$G$6))) -> 0 | AQ9: =((LCC!$O$19*(LCC!$O$25/100))*(LCC!$O$26*(1+$H$6))) -> 0 | AR9: =((LCC!$O$19*(LCC!$O$25/100))*(LCC!$O$26*(1+$I$6))) -> 0 | AS9: =((LCC!$O$19*(LCC!$O$25/100))*(LCC!$O$26*(1+$J$6))) -> 0 | AT9: =((LCC!$O$19*(LCC!$O$25/100))*(LCC!$O$26*(1+$K$6))) -> 0 | AU9: =((LCC!$O$19*(LCC!$O$25/100))*(LCC!$O$26*(1+$L$6))) -> 0 | AV9: =((LCC!$O$19*(LCC!$O$25/100))*(LCC!$O$26*(1+$M$6))) -> 0 | AW9: =((LCC!$O$19*(LCC!$O$25/100))*(LCC!$O$26*(1+$N$6))) -> 0 | AX9: 0
A10: LPG | B10: $/gallon | C10: Pret estimat | D10: 2.189299 | E10: 2.142774 | F10: 2.145436 | G10: 2.194211 | H10: 2.231533 | I10: 2.254148 | J10: 2.269551 | K10: 2.294362 | L10: 2.313964 | M10: 2.328557 | N10: 2.346319 | X10: Produsul 7 | Y10: =((LCC!$Q$19*(LCC!$Q$21/100))*LCC!$Q$22) -> 0 | Z10: =((LCC!$Q$19*(LCC!$Q$21/100))*(LCC!$Q$22*(1+$E$6))) -> 0 | AA10: =((LCC!$Q$19*(LCC!$Q$21/100))*(LCC!$Q$22*(1+$F$6))) -> 0 | AB10: =((LCC!$Q$19*(LCC!$Q$21/100))*(LCC!$Q$22*(1+G$6))) -> 0 | AC10: =((LCC!$Q$19*(LCC!$Q$21/100))*(LCC!$Q$22*(1+H$6))) -> 0 | AD10: =((LCC!$Q$19*(LCC!$Q$21/100))*(LCC!$Q$22*(1+I$6))) -> 0 | AE10: =((LCC!$Q$19*(LCC!$Q$21/100))*(LCC!$Q$22*(1+J$6))) -> 0 | AF10: =((LCC!$Q$19*(LCC!$Q$21/100))*(LCC!$Q$22*(1+K$6))) -> 0 | AG10: =((LCC!$Q$19*(LCC!$Q$21/100))*(LCC!$Q$22*(1+L$6))) -> 0 | AH10: =((LCC!$Q$19*(LCC!$Q$21/100))*(LCC!$Q$22*(1+M$6))) -> 0 | AI10: =((LCC!$Q$19*(LCC!$Q$21/100))*(LCC!$Q$22*(1+N$6))) -> 0 | AJ10: 0 | AL10: Produsul 7 | AM10: =((LCC!$Q$19*(LCC!$Q$25/100))*LCC!$Q$26) -> 0 | AN10: =((LCC!$Q$19*(LCC!$Q$25/100))*(LCC!$Q$26*(1+$E$6))) -> 0 | AO10: =((LCC!$Q$19*(LCC!$Q$25/100))*(LCC!$Q$26*(1+$F$6))) -> 0 | AP10: =((LCC!$Q$19*(LCC!$Q$25/100))*(LCC!$Q$26*(1+$G$6))) -> 0 | AQ10: =((LCC!$Q$19*(LCC!$Q$25/100))*(LCC!$Q$26*(1+$H$6))) -> 0 | AR10: =((LCC!$Q$19*(LCC!$Q$25/100))*(LCC!$Q$26*(1+$I$6))) -> 0 | AS10: =((LCC!$Q$19*(LCC!$Q$25/100))*(LCC!$Q$26*(1+$J$6))) -> 0 | AT10: =((LCC!$Q$19*(LCC!$Q$25/100))*(LCC!$Q$26*(1+$K$6))) -> 0 | AU10: =((LCC!$Q$19*(LCC!$Q$25/100))*(LCC!$Q$26*(1+$L$6))) -> 0 | AV10: =((LCC!$Q$19*(LCC!$Q$25/100))*(LCC!$Q$26*(1+$M$6))) -> 0 | AW10: =((LCC!$Q$19*(LCC!$Q$25/100))*(LCC!$Q$26*(1+$N$6))) -> 0 | AX10: 0
C11: % fata de anul anterior | E11: =(E10-D10)/D10 -> -0.02125109453 | F11: =(F10-E10)/E10 -> 0.001242314868 | G11: 0.02273430669 | H11: 0.01700930312 | I11: 0.01013428885 | J11: 0.00683318043 | K11: 0.01093211829 | L11: 0.008543551541 | M11: 0.006306493964 | N11: 0.007627900026 | X11: Produsul 8 | Y11: =((LCC!$S$19*(LCC!$S$21/100))*LCC!$S$22) -> 0 | Z11: =((LCC!$S$19*(LCC!$S$21/100))*(LCC!$S$22*(1+$E$6))) -> 0 | AA11: =((LCC!$S$19*(LCC!$S$21/100))*(LCC!$S$22*(1+$F$6))) -> 0 | AB11: =((LCC!$S$19*(LCC!$S$21/100))*(LCC!$S$22*(1+G$6))) -> 0 | AC11: =((LCC!$S$19*(LCC!$S$21/100))*(LCC!$S$22*(1+H$6))) -> 0 | AD11: =((LCC!$S$19*(LCC!$S$21/100))*(LCC!$S$22*(1+I$6))) -> 0 | AE11: =((LCC!$S$19*(LCC!$S$21/100))*(LCC!$S$22*(1+J$6))) -> 0 | AF11: =((LCC!$S$19*(LCC!$S$21/100))*(LCC!$S$22*(1+K$6))) -> 0 | AG11: =((LCC!$S$19*(LCC!$S$21/100))*(LCC!$S$22*(1+L$6))) -> 0 | AH11: =((LCC!$S$19*(LCC!$S$21/100))*(LCC!$S$22*(1+M$6))) -> 0 | AI11: =((LCC!$S$19*(LCC!$S$21/100))*(LCC!$S$22*(1+N$6))) -> 0 | AJ11: 0 | AL11: Produsul 8 | AM11: =((LCC!$S$19*(LCC!$S$25/100))*LCC!$S$26) -> 0 | AN11: =((LCC!$S$19*(LCC!$S$25/100))*(LCC!$S$26*(1+$E$6))) -> 0 | AO11: =((LCC!$S$19*(LCC!$S$25/100))*(LCC!$S$26*(1+$F$6))) -> 0 | AP11: =((LCC!$S$19*(LCC!$S$25/100))*(LCC!$S$26*(1+$G$6))) -> 0 | AQ11: =((LCC!$S$19*(LCC!$S$25/100))*(LCC!$S$26*(1+$H$6))) -> 0 | AR11: =((LCC!$S$19*(LCC!$S$25/100))*(LCC!$S$26*(1+$I$6))) -> 0 | AS11: =((LCC!$S$19*(LCC!$S$25/100))*(LCC!$S$26*(1+$J$6))) -> 0 | AT11: =((LCC!$S$19*(LCC!$S$25/100))*(LCC!$S$26*(1+$K$6))) -> 0 | AU11: =((LCC!$S$19*(LCC!$S$25/100))*(LCC!$S$26*(1+$L$6))) -> 0 | AV11: =((LCC!$S$19*(LCC!$S$25/100))*(LCC!$S$26*(1+$M$6))) -> 0 | AW11: =((LCC!$S$19*(LCC!$S$25/100))*(LCC!$S$26*(1+$N$6))) -> 0 | AX11: 0
C12: % cumulativ | E12: =E11 -> -0.02125109453 | F12: =F11+E12 -> -0.02000877966 | G12: =G11+F12 -> 0.002725527026 | H12: 0.01973483014 | I12: 0.02986911899 | J12: 0.03670229942 | K12: 0.04763441771 | L12: 0.05617796925 | M12: 0.06248446322 | N12: 0.07011236324 | X12: Produsul 9 | Y12: =((LCC!$U$19*(LCC!$U$21/100))*LCC!$U$22) -> 0 | Z12: =((LCC!$U$19*(LCC!$U$21/100))*(LCC!$U$22*(1+$E$6))) -> 0 | AA12: =((LCC!$U$19*(LCC!$U$21/100))*(LCC!$U$22*(1+$F$6))) -> 0 | AB12: =((LCC!$U$19*(LCC!$U$21/100))*(LCC!$U$22*(1+G$6))) -> 0 | AC12: =((LCC!$U$19*(LCC!$U$21/100))*(LCC!$U$22*(1+H$6))) -> 0 | AD12: =((LCC!$U$19*(LCC!$U$21/100))*(LCC!$U$22*(1+I$6))) -> 0 | AE12: =((LCC!$U$19*(LCC!$U$21/100))*(LCC!$U$22*(1+J$6))) -> 0 | AF12: =((LCC!$U$19*(LCC!$U$21/100))*(LCC!$U$22*(1+K$6))) -> 0 | AG12: =((LCC!$U$19*(LCC!$U$21/100))*(LCC!$U$22*(1+L$6))) -> 0 | AH12: =((LCC!$U$19*(LCC!$U$21/100))*(LCC!$U$22*(1+M$6))) -> 0 | AI12: =((LCC!$U$19*(LCC!$U$21/100))*(LCC!$U$22*(1+N$6))) -> 0 | AJ12: 0 | AL12: Produsul 9 | AM12: =((LCC!$U$19*(LCC!$U$25/100))*LCC!$U$26) -> 0 | AN12: =((LCC!$U$19*(LCC!$U$25/100))*(LCC!$U$26*(1+$E$6))) -> 0 | AO12: =((LCC!$U$19*(LCC!$U$25/100))*(LCC!$U$26*(1+$F$6))) -> 0 | AP12: =((LCC!$U$19*(LCC!$U$25/100))*(LCC!$U$26*(1+$G$6))) -> 0 | AQ12: =((LCC!$U$19*(LCC!$U$25/100))*(LCC!$U$26*(1+$H$6))) -> 0 | AR12: =((LCC!$U$19*(LCC!$U$25/100))*(LCC!$U$26*(1+$I$6))) -> 0 | AS12: =((LCC!$U$19*(LCC!$U$25/100))*(LCC!$U$26*(1+$J$6))) -> 0 | AT12: =((LCC!$U$19*(LCC!$U$25/100))*(LCC!$U$26*(1+$K$6))) -> 0 | AU12: =((LCC!$U$19*(LCC!$U$25/100))*(LCC!$U$26*(1+$L$6))) -> 0 | AV12: =((LCC!$U$19*(LCC!$U$25/100))*(LCC!$U$26*(1+$M$6))) -> 0 | AW12: =((LCC!$U$19*(LCC!$U$25/100))*(LCC!$U$26*(1+$N$6))) -> 0 | AX12: 0
A13: Etanol | B13: $/gallon | C13: Pret estimat | D13: 2.570742 | E13: 2.574596 | F13: 2.577285 | G13: 2.579537 | H13: 2.581203 | I13: 2.597471 | J13: 2.664484 | K13: 2.691967 | L13: 2.703933 | M13: 2.702737 | N13: 2.602026 | X13: Produsul 10 | Y13: =((LCC!$W$19*(LCC!$W$21/100))*LCC!$W$22) -> 0 | Z13: =((LCC!$W$19*(LCC!$W$21/100))*(LCC!$W$22*(1+$E$6))) -> 0 | AA13: =((LCC!$W$19*(LCC!$W$21/100))*(LCC!$W$22*(1+$F$6))) -> 0 | AB13: =((LCC!$W$19*(LCC!$W$21/100))*(LCC!$W$22*(1+G$6))) -> 0 | AC13: =((LCC!$W$19*(LCC!$W$21/100))*(LCC!$W$22*(1+H$6))) -> 0 | AD13: =((LCC!$W$19*(LCC!$W$21/100))*(LCC!$W$22*(1+I$6))) -> 0 | AE13: =((LCC!$W$19*(LCC!$W$21/100))*(LCC!$W$22*(1+J$6))) -> 0 | AF13: =((LCC!$W$19*(LCC!$W$21/100))*(LCC!$W$22*(1+K$6))) -> 0 | AG13: =((LCC!$W$19*(LCC!$W$21/100))*(LCC!$W$22*(1+L$6))) -> 0 | AH13: =((LCC!$W$19*(LCC!$W$21/100))*(LCC!$W$22*(1+M$6))) -> 0 | AI13: =((LCC!$W$19*(LCC!$W$21/100))*(LCC!$W$22*(1+N$6))) -> 0 | AJ13: 0 | AL13: Produsul 10 | AM13: =((LCC!$W$19*(LCC!$W$25/100))*LCC!$W$26) -> 0 | AN13: =((LCC!$W$19*(LCC!$W$25/100))*(LCC!$W$26*(1+$E$6))) -> 0 | AO13: =((LCC!$W$19*(LCC!$W$25/100))*(LCC!$W$26*(1+$F$6))) -> 0 | AP13: =((LCC!$W$19*(LCC!$W$25/100))*(LCC!$W$26*(1+$G$6))) -> 0 | AQ13: =((LCC!$W$19*(LCC!$W$25/100))*(LCC!$W$26*(1+$H$6))) -> 0 | AR13: =((LCC!$W$19*(LCC!$W$25/100))*(LCC!$W$26*(1+$I$6))) -> 0 | AS13: =((LCC!$W$19*(LCC!$W$25/100))*(LCC!$W$26*(1+$J$6))) -> 0 | AT13: =((LCC!$W$19*(LCC!$W$25/100))*(LCC!$W$26*(1+$K$6))) -> 0 | AU13: =((LCC!$W$19*(LCC!$W$25/100))*(LCC!$W$26*(1+$L$6))) -> 0 | AV13: =((LCC!$W$19*(LCC!$W$25/100))*(LCC!$W$26*(1+$M$6))) -> 0 | AW13: =((LCC!$W$19*(LCC!$W$25/100))*(LCC!$W$26*(1+$N$6))) -> 0 | AX13: 0
C14: % fata de anul anterior | E14: =(E13-D13)/D13 -> 0.001499178058 | F14: =(F13-E13)/E13 -> 0.00104443571 | G14: 0.0008737877262 | H14: 0.0006458523371 | I14: 0.006302487639 | J14: 0.02579932557 | K14: 0.01031456747 | L14: 0.004445076778 | M14: -0.0004423186521 | N14: -0.03726259714
C15: % cumulativ | E15: =E14 -> 0.001499178058 | F15: =F14+E15 -> 0.002543613768 | G15: =G14+F15 -> 0.003417401494 | H15: 0.004063253831 | I15: 0.01036574147 | J15: 0.03616506704 | K15: 0.04647963452 | L15: 0.0509247113 | M15: 0.05048239264 | N15: 0.01321979551 | X15: BENZINA | Y15: 2014 | Z15: 2015 | AA15: 2016 | AB15: 2017 | AC15: 2018 | AD15: 2019 | AE15: 2020 | AF15: 2021 | AG15: 2022 | AH15: 2023 | AI15: 2024 | AJ15: Pret total combustibil pentru perioada vizata | AL15: BENZINA | AM15: 2014 | AN15: 2015 | AO15: 2016 | AP15: 2017 | AQ15: 2018 | AR15: 2019 | AS15: 2020 | AT15: 2021 | AU15: 2022 | AV15: 2023 | AW15: 2024 | AX15: Pret total combustibil pentru perioada vizata
A16: Electricitate | B16: $cents/kwathour | C16: Pret estimat | D16: 10.217 | E16: 10.143057 | F16: 10.121602 | G16: 10.095456 | H16: 10.162351 | I16: 10.245553 | J16: 10.188695 | K16: 10.146483 | L16: 10.065858 | M16: 10.040848 | N16: 10.164512 | X16: Produsul 1 | Y16: =((LCC!$E$19*(LCC!$E$21/100))*LCC!$E$22) -> 0 | Z16: =((LCC!$E$19*(LCC!$E$21/100))*(LCC!$E$22*(1+$E$9))) -> 0 | AA16: =((LCC!$E$19*(LCC!$E$21/100))*(LCC!$E$22*(1+$F$9))) -> 0 | AB16: =((LCC!$E$19*(LCC!$E$21/100))*(LCC!$E$22*(1+G$9))) -> 0 | AC16: =((LCC!$E$19*(LCC!$E$21/100))*(LCC!$E$22*(1+H$9))) -> 0 | AD16: =((LCC!$E$19*(LCC!$E$21/100))*(LCC!$E$22*(1+I$9))) -> 0 | AE16: =((LCC!$E$19*(LCC!$E$21/100))*(LCC!$E$22*(1+J$9))) -> 0 | AF16: =((LCC!$E$19*(LCC!$E$21/100))*(LCC!$E$22*(1+K$9))) -> 0 | AG16: =((LCC!$E$19*(LCC!$E$21/100))*(LCC!$E$22*(1+L$9))) -> 0 | AH16: =((LCC!$E$19*(LCC!$E$21/100))*(LCC!$E$22*(1+M$9))) -> 0 | AI16: =((LCC!$E$19*(LCC!$E$21/100))*(LCC!$E$22*(1+N$9))) -> 0 | AJ16: 0 | AL16: Produsul 1 | AM16: =((LCC!$E$19*(LCC!$E$25/100))*LCC!$E$26) -> 0 | AN16: =((LCC!$E$19*(LCC!$E$25/100))*(LCC!$E$26*(1+$E$9))) -> 0 | AO16: =((LCC!$E$19*(LCC!$E$25/100))*(LCC!$E$26*(1+$F$9))) -> 0 | AP16: =((LCC!$E$19*(LCC!$E$25/100))*(LCC!$E$26*(1+$G$9))) -> 0 | AQ16: =((LCC!$E$19*(LCC!$E$25/100))*(LCC!$E$26*(1+$H$9))) -> 0 | AR16: =((LCC!$E$19*(LCC!$E$25/100))*(LCC!$E$26*(1+$I$9))) -> 0 | AS16: =((LCC!$E$19*(LCC!$E$25/100))*(LCC!$E$26*(1+$J$9))) -> 0 | AT16: =((LCC!$E$19*(LCC!$E$25/100))*(LCC!$E$26*(1+$K$9))) -> 0 | AU16: =((LCC!$E$19*(LCC!$E$25/100))*(LCC!$E$26*(1+$L$9))) -> 0 | AV16: =((LCC!$E$19*(LCC!$E$25/100))*(LCC!$E$26*(1+$M$9))) -> 0 | AW16: =((LCC!$E$19*(LCC!$E$25/100))*(LCC!$E$26*(1+$N$9))) -> 0 | AX16: 0
C17: % fata de anul anterior | E17: =(E16-D16)/D16 -> -0.007237251639 | F17: =(F16-E16)/E16 -> -0.002115240011 | G17: -0.002583187918 | H17: 0.006626248482 | I17: 0.008187278711 | J17: -0.005549529635 | K17: -0.004143023223 | L17: -0.007946103098 | M17: -0.00248463668 | N17: 0.01231609123 | X17: Produsul 2 | Y17: =((LCC!$G$19*(LCC!$G$21/100))*LCC!$G$22) -> 0 | Z17: =((LCC!$G$19*(LCC!$G$21/100))*(LCC!$G$22*(1+$E$9))) -> 0 | AA17: =((LCC!$G$19*(LCC!$G$21/100))*(LCC!$G$22*(1+$F$9))) -> 0 | AB17: =((LCC!$G$19*(LCC!$G$21/100))*(LCC!$G$22*(1+G$9))) -> 0 | AC17: =((LCC!$G$19*(LCC!$G$21/100))*(LCC!$G$22*(1+H$9))) -> 0 | AD17: =((LCC!$G$19*(LCC!$G$21/100))*(LCC!$G$22*(1+I$9))) -> 0 | AE17: =((LCC!$G$19*(LCC!$G$21/100))*(LCC!$G$22*(1+J$9))) -> 0 | AF17: =((LCC!$G$19*(LCC!$G$21/100))*(LCC!$G$22*(1+K$9))) -> 0 | AG17: =((LCC!$G$19*(LCC!$G$21/100))*(LCC!$G$22*(1+L$9))) -> 0 | AH17: =((LCC!$G$19*(LCC!$G$21/100))*(LCC!$G$22*(1+M$9))) -> 0 | AI17: =((LCC!$G$19*(LCC!$G$21/100))*(LCC!$G$22*(1+N$9))) -> 0 | AJ17: 0 | AL17: Produsul 2 | AM17: =((LCC!$G$19*(LCC!$G$25/100))*LCC!$G$26) -> 0 | AN17: =((LCC!$G$19*(LCC!$G$25/100))*(LCC!$G$26*(1+$E$9))) -> 0 | AO17: =((LCC!$G$19*(LCC!$G$25/100))*(LCC!$G$26*(1+$F$9))) -> 0 | AP17: =((LCC!$G$19*(LCC!$G$25/100))*(LCC!$G$26*(1+$G$9))) -> 0 | AQ17: =((LCC!$G$19*(LCC!$G$25/100))*(LCC!$G$26*(1+$H$9))) -> 0 | AR17: =((LCC!$G$19*(LCC!$G$25/100))*(LCC!$G$26*(1+$I$9))) -> 0 | AS17: =((LCC!$G$19*(LCC!$G$25/100))*(LCC!$G$26*(1+$J$9))) -> 0 | AT17: =((LCC!$G$19*(LCC!$G$25/100))*(LCC!$G$26*(1+$K$9))) -> 0 | AU17: =((LCC!$G$19*(LCC!$G$25/100))*(LCC!$G$26*(1+$L$9))) -> 0 | AV17: =((LCC!$G$19*(LCC!$G$25/100))*(LCC!$G$26*(1+$M$9))) -> 0 | AW17: =((LCC!$G$19*(LCC!$G$25/100))*(LCC!$G$26*(1+$N$9))) -> 0 | AX17: 0
C18: % cumulativ | E18: =E17 -> -0.007237251639 | F18: =F17+E18 -> -0.00935249165 | G18: =G17+F18 -> -0.01193567957 | H18: -0.005309431086 | I18: 0.002877847625 | J18: -0.00267168201 | K18: -0.006814705233 | L18: -0.01476080833 | M18: -0.01724544501 | N18: -0.00492935378 | X18: Produsul 3 | Y18: =((LCC!$I$19*(LCC!$I$21/100))*LCC!$I$22) -> 0 | Z18: =((LCC!$I$19*(LCC!$I$21/100))*(LCC!$I$22*(1+$E$9))) -> 0 | AA18: =((LCC!$I$19*(LCC!$I$21/100))*(LCC!$I$22*(1+$F$9))) -> 0 | AB18: =((LCC!$I$19*(LCC!$I$21/100))*(LCC!$I$22*(1+G$9))) -> 0 | AC18: =((LCC!$I$19*(LCC!$I$21/100))*(LCC!$I$22*(1+H$9))) -> 0 | AD18: =((LCC!$I$19*(LCC!$I$21/100))*(LCC!$I$22*(1+I$9))) -> 0 | AE18: =((LCC!$I$19*(LCC!$I$21/100))*(LCC!$I$22*(1+J$9))) -> 0 | AF18: =((LCC!$I$19*(LCC!$I$21/100))*(LCC!$I$22*(1+K$9))) -> 0 | AG18: =((LCC!$I$19*(LCC!$I$21/100))*(LCC!$I$22*(1+L$9))) -> 0 | AH18: =((LCC!$I$19*(LCC!$I$21/100))*(LCC!$I$22*(1+M$9))) -> 0 | AI18: =((LCC!$I$19*(LCC!$I$21/100))*(LCC!$I$22*(1+N$9))) -> 0 | AJ18: 0 | AL18: Produsul 3 | AM18: =((LCC!$I$19*(LCC!$I$25/100))*LCC!$I$26) -> 0 | AN18: =((LCC!$I$19*(LCC!$I$25/100))*(LCC!$I$26*(1+$E$9))) -> 0 | AO18: =((LCC!$I$19*(LCC!$I$25/100))*(LCC!$I$26*(1+$F$9))) -> 0 | AP18: =((LCC!$I$19*(LCC!$I$25/100))*(LCC!$I$26*(1+$G$9))) -> 0 | AQ18: =((LCC!$I$19*(LCC!$I$25/100))*(LCC!$I$26*(1+$H$9))) -> 0 | AR18: =((LCC!$I$19*(LCC!$I$25/100))*(LCC!$I$26*(1+$I$9))) -> 0 | AS18: =((LCC!$I$19*(LCC!$I$25/100))*(LCC!$I$26*(1+$J$9))) -> 0 | AT18: =((LCC!$I$19*(LCC!$I$25/100))*(LCC!$I$26*(1+$K$9))) -> 0 | AU18: =((LCC!$I$19*(LCC!$I$25/100))*(LCC!$I$26*(1+$L$9))) -> 0 | AV18: =((LCC!$I$19*(LCC!$I$25/100))*(LCC!$I$26*(1+$M$9))) -> 0 | AW18: =((LCC!$I$19*(LCC!$I$25/100))*(LCC!$I$26*(1+$N$9))) -> 0 | AX18: 0
A19: Biodiesel | B19: $/100 liters | C19: Pret estimat | D19: 156.2 | E19: 153.5 | F19: 148.8 | G19: 154.7 | H19: 159.8 | I19: 159.8 | J19: 164.3 | K19: 167 | L19: 173 | M19: 175 | N19: 177.6 | X19: Produsul 4 | Y19: =((LCC!$K$19*(LCC!$K$21/100))*LCC!$K$22) -> 0 | Z19: =((LCC!$K$19*(LCC!$K$21/100))*(LCC!$K$22*(1+$E$9))) -> 0 | AA19: =((LCC!$K$19*(LCC!$K$21/100))*(LCC!$K$22*(1+$F$9))) -> 0 | AB19: =((LCC!$K$19*(LCC!$K$21/100))*(LCC!$K$22*(1+G$9))) -> 0 | AC19: =((LCC!$K$19*(LCC!$K$21/100))*(LCC!$K$22*(1+H$9))) -> 0 | AD19: =((LCC!$K$19*(LCC!$K$21/100))*(LCC!$K$22*(1+I$9))) -> 0 | AE19: =((LCC!$K$19*(LCC!$K$21/100))*(LCC!$K$22*(1+J$9))) -> 0 | AF19: =((LCC!$K$19*(LCC!$K$21/100))*(LCC!$K$22*(1+K$9))) -> 0 | AG19: =((LCC!$K$19*(LCC!$K$21/100))*(LCC!$K$22*(1+L$9))) -> 0 | AH19: =((LCC!$K$19*(LCC!$K$21/100))*(LCC!$K$22*(1+M$9))) -> 0 | AI19: =((LCC!$K$19*(LCC!$K$21/100))*(LCC!$K$22*(1+N$9))) -> 0 | AJ19: 0 | AL19: Produsul 4 | AM19: =((LCC!$K$19*(LCC!$K$25/100))*LCC!$K$26) -> 0 | AN19: =((LCC!$K$19*(LCC!$K$25/100))*(LCC!$K$26*(1+$E$9))) -> 0 | AO19: =((LCC!$K$19*(LCC!$K$25/100))*(LCC!$K$26*(1+$F$9))) -> 0 | AP19: =((LCC!$K$19*(LCC!$K$25/100))*(LCC!$K$26*(1+$G$9))) -> 0 | AQ19: =((LCC!$K$19*(LCC!$K$25/100))*(LCC!$K$26*(1+$H$9))) -> 0 | AR19: =((LCC!$K$19*(LCC!$K$25/100))*(LCC!$K$26*(1+$I$9))) -> 0 | AS19: =((LCC!$K$19*(LCC!$K$25/100))*(LCC!$K$26*(1+$J$9))) -> 0 | AT19: =((LCC!$K$19*(LCC!$K$25/100))*(LCC!$K$26*(1+$K$9))) -> 0 | AU19: =((LCC!$K$19*(LCC!$K$25/100))*(LCC!$K$26*(1+$L$9))) -> 0 | AV19: =((LCC!$K$19*(LCC!$K$25/100))*(LCC!$K$26*(1+$M$9))) -> 0 | AW19: =((LCC!$K$19*(LCC!$K$25/100))*(LCC!$K$26*(1+$N$9))) -> 0 | AX19: 0
C20: % fata de anul anterior | E20: =(E19-D19)/D19 -> -0.01728553137 | F20: =(F19-E19)/E19 -> -0.03061889251 | G20: 0.03965053763 | H20: 0.03296703297 | I20: 0 | J20: 0.02816020025 | K20: 0.01643335362 | L20: 0.03592814371 | M20: 0.01156069364 | N20: 0.01485714286 | X20: Produsul 5 | Y20: =((LCC!$M$19*(LCC!$M$21/100))*LCC!$M$22) -> 0 | Z20: =((LCC!$M$19*(LCC!$M$21/100))*(LCC!$M$22*(1+$E$9))) -> 0 | AA20: =((LCC!$M$19*(LCC!$M$21/100))*(LCC!$M$22*(1+$F$9))) -> 0 | AB20: =((LCC!$M$19*(LCC!$M$21/100))*(LCC!$M$22*(1+G$9))) -> 0 | AC20: =((LCC!$M$19*(LCC!$M$21/100))*(LCC!$M$22*(1+H$9))) -> 0 | AD20: =((LCC!$M$19*(LCC!$M$21/100))*(LCC!$M$22*(1+I$9))) -> 0 | AE20: =((LCC!$M$19*(LCC!$M$21/100))*(LCC!$M$22*(1+J$9))) -> 0 | AF20: =((LCC!$M$19*(LCC!$M$21/100))*(LCC!$M$22*(1+K$9))) -> 0 | AG20: =((LCC!$M$19*(LCC!$M$21/100))*(LCC!$M$22*(1+L$9))) -> 0 | AH20: =((LCC!$M$19*(LCC!$M$21/100))*(LCC!$M$22*(1+M$9))) -> 0 | AI20: =((LCC!$M$19*(LCC!$M$21/100))*(LCC!$M$22*(1+N$9))) -> 0 | AJ20: 0 | AL20: Produsul 5 | AM20: =((LCC!$M$19*(LCC!$M$25/100))*LCC!$M$26) -> 0 | AN20: =((LCC!$M$19*(LCC!$M$25/100))*(LCC!$M$26*(1+$E$9))) -> 0 | AO20: =((LCC!$M$19*(LCC!$M$25/100))*(LCC!$M$26*(1+$F$9))) -> 0 | AP20: =((LCC!$M$19*(LCC!$M$25/100))*(LCC!$M$26*(1+$G$9))) -> 0 | AQ20: =((LCC!$M$19*(LCC!$M$25/100))*(LCC!$M$26*(1+$H$9))) -> 0 | AR20: =((LCC!$M$19*(LCC!$M$25/100))*(LCC!$M$26*(1+$I$9))) -> 0 | AS20: =((LCC!$M$19*(LCC!$M$25/100))*(LCC!$M$26*(1+$J$9))) -> 0 | AT20: =((LCC!$M$19*(LCC!$M$25/100))*(LCC!$M$26*(1+$K$9))) -> 0 | AU20: =((LCC!$M$19*(LCC!$M$25/100))*(LCC!$M$26*(1+$L$9))) -> 0 | AV20: =((LCC!$M$19*(LCC!$M$25/100))*(LCC!$M$26*(1+$M$9))) -> 0 | AW20: =((LCC!$M$19*(LCC!$M$25/100))*(LCC!$M$26*(1+$N$9))) -> 0 | AX20: 0
C21: % cumulativ | E21: =E20 -> -0.01728553137 | F21: =F20+E21 -> -0.04790442388 | G21: =G20+F21 -> -0.008253886244 | H21: 0.02471314672 | I21: 0.02471314672 | J21: 0.05287334697 | K21: 0.06930670059 | L21: 0.1052348443 | M21: 0.1167955379 | N21: 0.1316526808 | X21: Produsul 6 | Y21: =((LCC!$O$19*(LCC!$O$21/100))*LCC!$O$22) -> 0 | Z21: =((LCC!$O$19*(LCC!$O$21/100))*(LCC!$O$22*(1+$E$9))) -> 0 | AA21: =((LCC!$O$19*(LCC!$O$21/100))*(LCC!$O$22*(1+$F$9))) -> 0 | AB21: =((LCC!$O$19*(LCC!$O$21/100))*(LCC!$O$22*(1+G$9))) -> 0 | AC21: =((LCC!$O$19*(LCC!$O$21/100))*(LCC!$O$22*(1+H$9))) -> 0 | AD21: =((LCC!$O$19*(LCC!$O$21/100))*(LCC!$O$22*(1+I$9))) -> 0 | AE21: =((LCC!$O$19*(LCC!$O$21/100))*(LCC!$O$22*(1+J$9))) -> 0 | AF21: =((LCC!$O$19*(LCC!$O$21/100))*(LCC!$O$22*(1+K$9))) -> 0 | AG21: =((LCC!$O$19*(LCC!$O$21/100))*(LCC!$O$22*(1+L$9))) -> 0 | AH21: =((LCC!$O$19*(LCC!$O$21/100))*(LCC!$O$22*(1+M$9))) -> 0 | AI21: =((LCC!$O$19*(LCC!$O$21/100))*(LCC!$O$22*(1+N$9))) -> 0 | AJ21: 0 | AL21: Produsul 6 | AM21: =((LCC!$O$19*(LCC!$O$25/100))*LCC!$O$26) -> 0 | AN21: =((LCC!$O$19*(LCC!$O$25/100))*(LCC!$O$26*(1+$E$9))) -> 0 | AO21: =((LCC!$O$19*(LCC!$O$25/100))*(LCC!$O$26*(1+$F$9))) -> 0 | AP21: =((LCC!$O$19*(LCC!$O$25/100))*(LCC!$O$26*(1+$G$9))) -> 0 | AQ21: =((LCC!$O$19*(LCC!$O$25/100))*(LCC!$O$26*(1+$H$9))) -> 0 | AR21: =((LCC!$O$19*(LCC!$O$25/100))*(LCC!$O$26*(1+$I$9))) -> 0 | AS21: =((LCC!$O$19*(LCC!$O$25/100))*(LCC!$O$26*(1+$J$9))) -> 0 | AT21: =((LCC!$O$19*(LCC!$O$25/100))*(LCC!$O$26*(1+$K$9))) -> 0 | AU21: =((LCC!$O$19*(LCC!$O$25/100))*(LCC!$O$26*(1+$L$9))) -> 0 | AV21: =((LCC!$O$19*(LCC!$O$25/100))*(LCC!$O$26*(1+$M$9))) -> 0 | AW21: =((LCC!$O$19*(LCC!$O$25/100))*(LCC!$O$26*(1+$N$9))) -> 0 | AX21: 0
A22: Gaz Natural | B22: $/milion Btu | C22: Pret estimat | D22: 16.09 | E22: 16.1 | F22: 16.52 | G22: 16.73 | H22: 17.02 | I22: 17.17 | J22: 17.26 | K22: 17.41 | L22: 17.7 | M22: 17.96 | N22: 18.17 | X22: Produsul 7 | Y22: =((LCC!$Q$19*(LCC!$Q$21/100))*LCC!$Q$22) -> 0 | Z22: =((LCC!$Q$19*(LCC!$Q$21/100))*(LCC!$Q$22*(1+$E$9))) -> 0 | AA22: =((LCC!$Q$19*(LCC!$Q$21/100))*(LCC!$Q$22*(1+$F$9))) -> 0 | AB22: =((LCC!$Q$19*(LCC!$Q$21/100))*(LCC!$Q$22*(1+G$9))) -> 0 | AC22: =((LCC!$Q$19*(LCC!$Q$21/100))*(LCC!$Q$22*(1+H$9))) -> 0 | AD22: =((LCC!$Q$19*(LCC!$Q$21/100))*(LCC!$Q$22*(1+I$9))) -> 0 | AE22: =((LCC!$Q$19*(LCC!$Q$21/100))*(LCC!$Q$22*(1+J$9))) -> 0 | AF22: =((LCC!$Q$19*(LCC!$Q$21/100))*(LCC!$Q$22*(1+K$9))) -> 0 | AG22: =((LCC!$Q$19*(LCC!$Q$21/100))*(LCC!$Q$22*(1+L$9))) -> 0 | AH22: =((LCC!$Q$19*(LCC!$Q$21/100))*(LCC!$Q$22*(1+M$9))) -> 0 | AI22: =((LCC!$Q$19*(LCC!$Q$21/100))*(LCC!$Q$22*(1+N$9))) -> 0 | AJ22: 0 | AL22: Produsul 7 | AM22: =((LCC!$Q$19*(LCC!$Q$25/100))*LCC!$Q$26) -> 0 | AN22: =((LCC!$Q$19*(LCC!$Q$25/100))*(LCC!$Q$26*(1+$E$9))) -> 0 | AO22: =((LCC!$Q$19*(LCC!$Q$25/100))*(LCC!$Q$26*(1+$F$9))) -> 0 | AP22: =((LCC!$Q$19*(LCC!$Q$25/100))*(LCC!$Q$26*(1+$G$9))) -> 0 | AQ22: =((LCC!$Q$19*(LCC!$Q$25/100))*(LCC!$Q$26*(1+$H$9))) -> 0 | AR22: =((LCC!$Q$19*(LCC!$Q$25/100))*(LCC!$Q$26*(1+$I$9))) -> 0 | AS22: =((LCC!$Q$19*(LCC!$Q$25/100))*(LCC!$Q$26*(1+$J$9))) -> 0 | AT22: =((LCC!$Q$19*(LCC!$Q$25/100))*(LCC!$Q$26*(1+$K$9))) -> 0 | AU22: =((LCC!$Q$19*(LCC!$Q$25/100))*(LCC!$Q$26*(1+$L$9))) -> 0 | AV22: =((LCC!$Q$19*(LCC!$Q$25/100))*(LCC!$Q$26*(1+$M$9))) -> 0 | AW22: =((LCC!$Q$19*(LCC!$Q$25/100))*(LCC!$Q$26*(1+$N$9))) -> 0 | AX22: 0
C23: % fata de anul anterior | E23: =(E22-D22)/D22 -> 0.0006215040398 | F23: =(F22-E22)/E22 -> 0.02608695652 | G23: 0.01271186441 | H23: 0.0173341303 | I23: 0.008813160987 | J23: 0.005241700641 | K23: 0.008690614137 | L23: 0.01665709362 | M23: 0.01468926554 | N23: 0.01169265033 | X23: Produsul 8 | Y23: =((LCC!$S$19*(LCC!$S$21/100))*LCC!$S$22) -> 0 | Z23: =((LCC!$S$19*(LCC!$S$21/100))*(LCC!$S$22*(1+$E$9))) -> 0 | AA23: =((LCC!$S$19*(LCC!$S$21/100))*(LCC!$S$22*(1+$F$9))) -> 0 | AB23: =((LCC!$S$19*(LCC!$S$21/100))*(LCC!$S$22*(1+G$9))) -> 0 | AC23: =((LCC!$S$19*(LCC!$S$21/100))*(LCC!$S$22*(1+H$9))) -> 0 | AD23: =((LCC!$S$19*(LCC!$S$21/100))*(LCC!$S$22*(1+I$9))) -> 0 | AE23: =((LCC!$S$19*(LCC!$S$21/100))*(LCC!$S$22*(1+J$9))) -> 0 | AF23: =((LCC!$S$19*(LCC!$S$21/100))*(LCC!$S$22*(1+K$9))) -> 0 | AG23: =((LCC!$S$19*(LCC!$S$21/100))*(LCC!$S$22*(1+L$9))) -> 0 | AH23: =((LCC!$S$19*(LCC!$S$21/100))*(LCC!$S$22*(1+M$9))) -> 0 | AI23: =((LCC!$S$19*(LCC!$S$21/100))*(LCC!$S$22*(1+N$9))) -> 0 | AJ23: 0 | AL23: Produsul 8 | AM23: =((LCC!$S$19*(LCC!$S$25/100))*LCC!$S$26) -> 0 | AN23: =((LCC!$S$19*(LCC!$S$25/100))*(LCC!$S$26*(1+$E$9))) -> 0 | AO23: =((LCC!$S$19*(LCC!$S$25/100))*(LCC!$S$26*(1+$F$9))) -> 0 | AP23: =((LCC!$S$19*(LCC!$S$25/100))*(LCC!$S$26*(1+$G$9))) -> 0 | AQ23: =((LCC!$S$19*(LCC!$S$25/100))*(LCC!$S$26*(1+$H$9))) -> 0 | AR23: =((LCC!$S$19*(LCC!$S$25/100))*(LCC!$S$26*(1+$I$9))) -> 0 | AS23: =((LCC!$S$19*(LCC!$S$25/100))*(LCC!$S$26*(1+$J$9))) -> 0 | AT23: =((LCC!$S$19*(LCC!$S$25/100))*(LCC!$S$26*(1+$K$9))) -> 0 | AU23: =((LCC!$S$19*(LCC!$S$25/100))*(LCC!$S$26*(1+$L$9))) -> 0 | AV23: =((LCC!$S$19*(LCC!$S$25/100))*(LCC!$S$26*(1+$M$9))) -> 0 | AW23: =((LCC!$S$19*(LCC!$S$25/100))*(LCC!$S$26*(1+$N$9))) -> 0 | AX23: 0
C24: % cumulativ | E24: =E23 -> 0.0006215040398 | F24: =F23+E24 -> 0.02670846056 | G24: =G23+F24 -> 0.03942032497 | H24: 0.05675445527 | I24: 0.06556761626 | J24: 0.0708093169 | K24: 0.07949993104 | L24: 0.09615702466 | M24: 0.1108462902 | N24: 0.1225389405 | X24: Produsul 9 | Y24: =((LCC!$U$19*(LCC!$U$21/100))*LCC!$U$22) -> 0 | Z24: =((LCC!$U$19*(LCC!$U$21/100))*(LCC!$U$22*(1+$E$9))) -> 0 | AA24: =((LCC!$U$19*(LCC!$U$21/100))*(LCC!$U$22*(1+$F$9))) -> 0 | AB24: =((LCC!$U$19*(LCC!$U$21/100))*(LCC!$U$22*(1+G$9))) -> 0 | AC24: =((LCC!$U$19*(LCC!$U$21/100))*(LCC!$U$22*(1+H$9))) -> 0 | AD24: =((LCC!$U$19*(LCC!$U$21/100))*(LCC!$U$22*(1+I$9))) -> 0 | AE24: =((LCC!$U$19*(LCC!$U$21/100))*(LCC!$U$22*(1+J$9))) -> 0 | AF24: =((LCC!$U$19*(LCC!$U$21/100))*(LCC!$U$22*(1+K$9))) -> 0 | AG24: =((LCC!$U$19*(LCC!$U$21/100))*(LCC!$U$22*(1+L$9))) -> 0 | AH24: =((LCC!$U$19*(LCC!$U$21/100))*(LCC!$U$22*(1+M$9))) -> 0 | AI24: =((LCC!$U$19*(LCC!$U$21/100))*(LCC!$U$22*(1+N$9))) -> 0 | AJ24: 0 | AL24: Produsul 9 | AM24: =((LCC!$U$19*(LCC!$U$25/100))*LCC!$U$26) -> 0 | AN24: =((LCC!$U$19*(LCC!$U$25/100))*(LCC!$U$26*(1+$E$9))) -> 0 | AO24: =((LCC!$U$19*(LCC!$U$25/100))*(LCC!$U$26*(1+$F$9))) -> 0 | AP24: =((LCC!$U$19*(LCC!$U$25/100))*(LCC!$U$26*(1+$G$9))) -> 0 | AQ24: =((LCC!$U$19*(LCC!$U$25/100))*(LCC!$U$26*(1+$H$9))) -> 0 | AR24: =((LCC!$U$19*(LCC!$U$25/100))*(LCC!$U$26*(1+$I$9))) -> 0 | AS24: =((LCC!$U$19*(LCC!$U$25/100))*(LCC!$U$26*(1+$J$9))) -> 0 | AT24: =((LCC!$U$19*(LCC!$U$25/100))*(LCC!$U$26*(1+$K$9))) -> 0 | AU24: =((LCC!$U$19*(LCC!$U$25/100))*(LCC!$U$26*(1+$L$9))) -> 0 | AV24: =((LCC!$U$19*(LCC!$U$25/100))*(LCC!$U$26*(1+$M$9))) -> 0 | AW24: =((LCC!$U$19*(LCC!$U$25/100))*(LCC!$U$26*(1+$N$9))) -> 0 | AX24: 0
X25: Produsul 10 | Y25: =((LCC!$W$19*(LCC!$W$21/100))*LCC!$W$22) -> 0 | Z25: =((LCC!$W$19*(LCC!$W$21/100))*(LCC!$W$22*(1+$E$9))) -> 0 | AA25: =((LCC!$W$19*(LCC!$W$21/100))*(LCC!$W$22*(1+$F$9))) -> 0 | AB25: =((LCC!$W$19*(LCC!$W$21/100))*(LCC!$W$22*(1+G$9))) -> 0 | AC25: =((LCC!$W$19*(LCC!$W$21/100))*(LCC!$W$22*(1+H$9))) -> 0 | AD25: =((LCC!$W$19*(LCC!$W$21/100))*(LCC!$W$22*(1+I$9))) -> 0 | AE25: =((LCC!$W$19*(LCC!$W$21/100))*(LCC!$W$22*(1+J$9))) -> 0 | AF25: =((LCC!$W$19*(LCC!$W$21/100))*(LCC!$W$22*(1+K$9))) -> 0 | AG25: =((LCC!$W$19*(LCC!$W$21/100))*(LCC!$W$22*(1+L$9))) -> 0 | AH25: =((LCC!$W$19*(LCC!$W$21/100))*(LCC!$W$22*(1+M$9))) -> 0 | AI25: =((LCC!$W$19*(LCC!$W$21/100))*(LCC!$W$22*(1+N$9))) -> 0 | AJ25: 0 | AL25: Produsul 10 | AM25: =((LCC!$W$19*(LCC!$W$25/100))*LCC!$W$26) -> 0 | AN25: =((LCC!$W$19*(LCC!$W$25/100))*(LCC!$W$26*(1+$E$9))) -> 0 | AO25: =((LCC!$W$19*(LCC!$W$25/100))*(LCC!$W$26*(1+$F$9))) -> 0 | AP25: =((LCC!$W$19*(LCC!$W$25/100))*(LCC!$W$26*(1+$G$9))) -> 0 | AQ25: =((LCC!$W$19*(LCC!$W$25/100))*(LCC!$W$26*(1+$H$9))) -> 0 | AR25: =((LCC!$W$19*(LCC!$W$25/100))*(LCC!$W$26*(1+$I$9))) -> 0 | AS25: =((LCC!$W$19*(LCC!$W$25/100))*(LCC!$W$26*(1+$J$9))) -> 0 | AT25: =((LCC!$W$19*(LCC!$W$25/100))*(LCC!$W$26*(1+$K$9))) -> 0 | AU25: =((LCC!$W$19*(LCC!$W$25/100))*(LCC!$W$26*(1+$L$9))) -> 0 | AV25: =((LCC!$W$19*(LCC!$W$25/100))*(LCC!$W$26*(1+$M$9))) -> 0 | AW25: =((LCC!$W$19*(LCC!$W$25/100))*(LCC!$W$26*(1+$N$9))) -> 0 | AX25: 0
D27: 2014 | E27: 2017 (3 ani) | F27: 2019 (5ani) | G27: 2024 (10ani) | H27: Produsul 1 | I27: Produsul 2 | J27: Produsul 3 | K27: Produsul 4 | L27: Produsul 5 | M27: Produsul 6 | N27: Produsul 7 | O27: Produsul 8 | P27: Produsul 9 | Q27: Produsul 10 | X27: LPG | Y27: 2014 | Z27: 2015 | AA27: 2016 | AB27: 2017 | AC27: 2018 | AD27: 2019 | AE27: 2020 | AF27: 2021 | AG27: 2022 | AH27: 2023 | AI27: 2024 | AJ27: Total fuel price for period | AL27: LPG | AM27: 2014 | AN27: 2015 | AO27: 2016 | AP27: 2017 | AQ27: 2018 | AR27: 2019 | AS27: 2020 | AT27: 2021 | AU27: 2022 | AV27: 2023 | AW27: 2024 | AX27: Pret total combustibil pentru perioada vizata
B28: Motorina | C28: Pret estimat ($/galon) | D28: 3.68 | E28: 3.5 | F28: 3.61 | G28: 3.92 | H28: =$AJ4 -> 0 | I28: =$AJ5 -> 0 | J28: =$AJ6 -> 0 | K28: =AJ7 -> 0 | L28: =AJ8 -> 0 | M28: =AJ9 -> 0 | N28: =AJ10 -> 0 | O28: =AJ11 -> 0 | P28: =AJ12 -> 0 | Q28: =AJ13 -> 0 | X28: Produsul 1 | Y28: =((LCC!$E$19*(LCC!$E$21/100))*LCC!$E$22) -> 0 | Z28: =((LCC!$E$19*(LCC!$E$21/100))*(LCC!$E$22*(1+$E$12))) -> 0 | AA28: =((LCC!$E$19*(LCC!$E$21/100))*(LCC!$E$22*(1+$F$12))) -> 0 | AB28: =((LCC!$E$19*(LCC!$E$21/100))*(LCC!$E$22*(1+G$12))) -> 0 | AC28: =((LCC!$E$19*(LCC!$E$21/100))*(LCC!$E$22*(1+H$12))) -> 0 | AD28: =((LCC!$E$19*(LCC!$E$21/100))*(LCC!$E$22*(1+I$12))) -> 0 | AE28: =((LCC!$E$19*(LCC!$E$21/100))*(LCC!$E$22*(1+J$12))) -> 0 | AF28: =((LCC!$E$19*(LCC!$E$21/100))*(LCC!$E$22*(1+K$12))) -> 0 | AG28: =((LCC!$E$19*(LCC!$E$21/100))*(LCC!$E$22*(1+L$12))) -> 0 | AH28: =((LCC!$E$19*(LCC!$E$21/100))*(LCC!$E$22*(1+M$12))) -> 0 | AI28: =((LCC!$E$19*(LCC!$E$21/100))*(LCC!$E$22*(1+N$12))) -> 0 | AJ28: 0 | AL28: Produsul 1 | AM28: =((LCC!$E$19*(LCC!$E$25/100))*LCC!$E$26) -> 0 | AN28: =((LCC!$E$19*(LCC!$E$25/100))*(LCC!$E$26*(1+$E$12))) -> 0 | AO28: =((LCC!$E$19*(LCC!$E$25/100))*(LCC!$E$26*(1+$F$12))) -> 0 | AP28: =((LCC!$E$19*(LCC!$E$25/100))*(LCC!$E$26*(1+$G$12))) -> 0 | AQ28: =((LCC!$E$19*(LCC!$E$25/100))*(LCC!$E$26*(1+$H$12))) -> 0 | AR28: =((LCC!$E$19*(LCC!$E$25/100))*(LCC!$E$26*(1+$I$12))) -> 0 | AS28: =((LCC!$E$19*(LCC!$E$25/100))*(LCC!$E$26*(1+$J$12))) -> 0 | AT28: =((LCC!$E$19*(LCC!$E$25/100))*(LCC!$E$26*(1+$K$12))) -> 0 | AU28: =((LCC!$E$19*(LCC!$E$25/100))*(LCC!$E$26*(1+$L$12))) -> 0 | AV28: =((LCC!$E$19*(LCC!$E$25/100))*(LCC!$E$26*(1+$M$12))) -> 0 | AW28: =((LCC!$E$19*(LCC!$E$25/100))*(LCC!$E$26*(1+$N$12))) -> 0 | AX28: 0
C29: % crestere/descrestere | E29: -0.051 | F29: -0.0188 | G29: 0.0636 | H29: =AX4 -> 0 | I29: =AX5 -> 0 | J29: =AX6 -> 0 | K29: =AX7 -> 0 | L29: =AX8 -> 0 | M29: =AX9 -> 0 | N29: =AX10 -> 0 | O29: =AX11 -> 0 | P29: =AX12 -> 0 | Q29: =AX13 -> 0 | X29: Produsul 2 | Y29: =((LCC!$G$19*(LCC!$G$21/100))*LCC!$G$22) -> 0 | Z29: =((LCC!$G$19*(LCC!$G$21/100))*(LCC!$G$22*(1+$E$12))) -> 0 | AA29: =((LCC!$G$19*(LCC!$G$21/100))*(LCC!$G$22*(1+$F$12))) -> 0 | AB29: =((LCC!$G$19*(LCC!$G$21/100))*(LCC!$G$22*(1+G$12))) -> 0 | AC29: =((LCC!$G$19*(LCC!$G$21/100))*(LCC!$G$22*(1+H$12))) -> 0 | AD29: =((LCC!$G$19*(LCC!$G$21/100))*(LCC!$G$22*(1+I$12))) -> 0 | AE29: =((LCC!$G$19*(LCC!$G$21/100))*(LCC!$G$22*(1+J$12))) -> 0 | AF29: =((LCC!$G$19*(LCC!$G$21/100))*(LCC!$G$22*(1+K$12))) -> 0 | AG29: =((LCC!$G$19*(LCC!$G$21/100))*(LCC!$G$22*(1+L$12))) -> 0 | AH29: =((LCC!$G$19*(LCC!$G$21/100))*(LCC!$G$22*(1+M$12))) -> 0 | AI29: =((LCC!$G$19*(LCC!$G$21/100))*(LCC!$G$22*(1+N$12))) -> 0 | AJ29: 0 | AL29: Produsul 2 | AM29: =((LCC!$G$19*(LCC!$G$25/100))*LCC!$G$26) -> 0 | AN29: =((LCC!$G$19*(LCC!$G$25/100))*(LCC!$G$26*(1+$E$12))) -> 0 | AO29: =((LCC!$G$19*(LCC!$G$25/100))*(LCC!$G$26*(1+$F$12))) -> 0 | AP29: =((LCC!$G$19*(LCC!$G$25/100))*(LCC!$G$26*(1+$G$12))) -> 0 | AQ29: =((LCC!$G$19*(LCC!$G$25/100))*(LCC!$G$26*(1+$H$12))) -> 0 | AR29: =((LCC!$G$19*(LCC!$G$25/100))*(LCC!$G$26*(1+$I$12))) -> 0 | AS29: =((LCC!$G$19*(LCC!$G$25/100))*(LCC!$G$26*(1+$J$12))) -> 0 | AT29: =((LCC!$G$19*(LCC!$G$25/100))*(LCC!$G$26*(1+$K$12))) -> 0 | AU29: =((LCC!$G$19*(LCC!$G$25/100))*(LCC!$G$26*(1+$L$12))) -> 0 | AV29: =((LCC!$G$19*(LCC!$G$25/100))*(LCC!$G$26*(1+$M$12))) -> 0 | AW29: =((LCC!$G$19*(LCC!$G$25/100))*(LCC!$G$26*(1+$N$12))) -> 0 | AX29: 0
B30: Benzina | C30: Pret estimat ($/galon) | D30: 3.381 | E30: 3.02 | F30: 3.03 | G30: 3.26 | H30: =AJ16 -> 0 | I30: =AJ17 -> 0 | J30: =AJ18 -> 0 | K30: =AJ19 -> 0 | L30: =$AJ20 -> 0 | M30: =$AJ21 -> 0 | N30: =$AJ22 -> 0 | O30: =$AJ23 -> 0 | P30: =$AJ24 -> 0 | Q30: =$AJ25 -> 0 | X30: Produsul 3 | Y30: =((LCC!$I$19*(LCC!$I$21/100))*LCC!$I$22) -> 0 | Z30: =((LCC!$I$19*(LCC!$I$21/100))*(LCC!$I$22*(1+$E$12))) -> 0 | AA30: =((LCC!$I$19*(LCC!$I$21/100))*(LCC!$I$22*(1+$F$12))) -> 0 | AB30: =((LCC!$I$19*(LCC!$I$21/100))*(LCC!$I$22*(1+G$12))) -> 0 | AC30: =((LCC!$I$19*(LCC!$I$21/100))*(LCC!$I$22*(1+H$12))) -> 0 | AD30: =((LCC!$I$19*(LCC!$I$21/100))*(LCC!$I$22*(1+I$12))) -> 0 | AE30: =((LCC!$I$19*(LCC!$I$21/100))*(LCC!$I$22*(1+J$12))) -> 0 | AF30: =((LCC!$I$19*(LCC!$I$21/100))*(LCC!$I$22*(1+K$12))) -> 0 | AG30: =((LCC!$I$19*(LCC!$I$21/100))*(LCC!$I$22*(1+L$12))) -> 0 | AH30: =((LCC!$I$19*(LCC!$I$21/100))*(LCC!$I$22*(1+M$12))) -> 0 | AI30: =((LCC!$I$19*(LCC!$I$21/100))*(LCC!$I$22*(1+N$12))) -> 0 | AJ30: 0 | AL30: Produsul 3 | AM30: =((LCC!$I$19*(LCC!$I$25/100))*LCC!$I$26) -> 0 | AN30: =((LCC!$I$19*(LCC!$I$25/100))*(LCC!$I$26*(1+$E$12))) -> 0 | AO30: =((LCC!$I$19*(LCC!$I$25/100))*(LCC!$I$26*(1+$F$12))) -> 0 | AP30: =((LCC!$I$19*(LCC!$I$25/100))*(LCC!$I$26*(1+$G$12))) -> 0 | AQ30: =((LCC!$I$19*(LCC!$I$25/100))*(LCC!$I$26*(1+$H$12))) -> 0 | AR30: =((LCC!$I$19*(LCC!$I$25/100))*(LCC!$I$26*(1+$I$12))) -> 0 | AS30: =((LCC!$I$19*(LCC!$I$25/100))*(LCC!$I$26*(1+$J$12))) -> 0 | AT30: =((LCC!$I$19*(LCC!$I$25/100))*(LCC!$I$26*(1+$K$12))) -> 0 | AU30: =((LCC!$I$19*(LCC!$I$25/100))*(LCC!$I$26*(1+$L$12))) -> 0 | AV30: =((LCC!$I$19*(LCC!$I$25/100))*(LCC!$I$26*(1+$M$12))) -> 0 | AW30: =((LCC!$I$19*(LCC!$I$25/100))*(LCC!$I$26*(1+$N$12))) -> 0 | AX30: 0
C31: % crestere/descrestere | E31: -0.1079 | F31: -0.1054 | G31: -0.0328 | H31: =AX16 -> 0 | I31: =AX17 -> 0 | J31: =AX18 -> 0 | K31: =AX19 -> 0 | L31: =$AX20 -> 0 | M31: =$AX21 -> 0 | N31: =$AX22 -> 0 | O31: =$AX23 -> 0 | P31: =$AX24 -> 0 | Q31: =$AX25 -> 0 | X31: Produsul 4 | Y31: =((LCC!$K$19*(LCC!$K$21/100))*LCC!$K$22) -> 0 | Z31: =((LCC!$K$19*(LCC!$K$21/100))*(LCC!$K$22*(1+$E$12))) -> 0 | AA31: =((LCC!$K$19*(LCC!$K$21/100))*(LCC!$K$22*(1+$F$12))) -> 0 | AB31: =((LCC!$K$19*(LCC!$K$21/100))*(LCC!$K$22*(1+G$12))) -> 0 | AC31: =((LCC!$K$19*(LCC!$K$21/100))*(LCC!$K$22*(1+H$12))) -> 0 | AD31: =((LCC!$K$19*(LCC!$K$21/100))*(LCC!$K$22*(1+I$12))) -> 0 | AE31: =((LCC!$K$19*(LCC!$K$21/100))*(LCC!$K$22*(1+J$12))) -> 0 | AF31: =((LCC!$K$19*(LCC!$K$21/100))*(LCC!$K$22*(1+K$12))) -> 0 | AG31: =((LCC!$K$19*(LCC!$K$21/100))*(LCC!$K$22*(1+L$12))) -> 0 | AH31: =((LCC!$K$19*(LCC!$K$21/100))*(LCC!$K$22*(1+M$12))) -> 0 | AI31: =((LCC!$K$19*(LCC!$K$21/100))*(LCC!$K$22*(1+N$12))) -> 0 | AJ31: 0 | AL31: Produsul 4 | AM31: =((LCC!$K$19*(LCC!$K$25/100))*LCC!$K$26) -> 0 | AN31: =((LCC!$K$19*(LCC!$K$25/100))*(LCC!$K$26*(1+$E$12))) -> 0 | AO31: =((LCC!$K$19*(LCC!$K$25/100))*(LCC!$K$26*(1+$F$12))) -> 0 | AP31: =((LCC!$K$19*(LCC!$K$25/100))*(LCC!$K$26*(1+$G$12))) -> 0 | AQ31: =((LCC!$K$19*(LCC!$K$25/100))*(LCC!$K$26*(1+$H$12))) -> 0 | AR31: =((LCC!$K$19*(LCC!$K$25/100))*(LCC!$K$26*(1+$I$12))) -> 0 | AS31: =((LCC!$K$19*(LCC!$K$25/100))*(LCC!$K$26*(1+$J$12))) -> 0 | AT31: =((LCC!$K$19*(LCC!$K$25/100))*(LCC!$K$26*(1+$K$12))) -> 0 | AU31: =((LCC!$K$19*(LCC!$K$25/100))*(LCC!$K$26*(1+$L$12))) -> 0 | AV31: =((LCC!$K$19*(LCC!$K$25/100))*(LCC!$K$26*(1+$M$12))) -> 0 | AW31: =((LCC!$K$19*(LCC!$K$25/100))*(LCC!$K$26*(1+$N$12))) -> 0 | AX31: 0
B32: LPG | C32: Pret estimat ($/galon) | D32: 2.18 | E32: 2.19 | F32: 2.25 | G32: 2.34 | H32: =AJ28 -> 0 | I32: =AJ29 -> 0 | J32: =AJ30 -> 0 | K32: =AJ31 -> 0 | L32: =$AJ32 -> 0 | M32: =$AJ33 -> 0 | N32: =$AJ34 -> 0 | O32: =$AJ35 -> 0 | P32: =$AJ36 -> 0 | Q32: =$AJ37 -> 0 | X32: Produsul 5 | Y32: =((LCC!$M$19*(LCC!$M$21/100))*LCC!$M$22) -> 0 | Z32: =((LCC!$M$19*(LCC!$M$21/100))*(LCC!$M$22*(1+$E$12))) -> 0 | AA32: =((LCC!$M$19*(LCC!$M$21/100))*(LCC!$M$22*(1+$F$12))) -> 0 | AB32: =((LCC!$M$19*(LCC!$M$21/100))*(LCC!$M$22*(1+G$12))) -> 0 | AC32: =((LCC!$M$19*(LCC!$M$21/100))*(LCC!$M$22*(1+H$12))) -> 0 | AD32: =((LCC!$M$19*(LCC!$M$21/100))*(LCC!$M$22*(1+I$12))) -> 0 | AE32: =((LCC!$M$19*(LCC!$M$21/100))*(LCC!$M$22*(1+J$12))) -> 0 | AF32: =((LCC!$M$19*(LCC!$M$21/100))*(LCC!$M$22*(1+K$12))) -> 0 | AG32: =((LCC!$M$19*(LCC!$M$21/100))*(LCC!$M$22*(1+L$12))) -> 0 | AH32: =((LCC!$M$19*(LCC!$M$21/100))*(LCC!$M$22*(1+M$12))) -> 0 | AI32: =((LCC!$M$19*(LCC!$M$21/100))*(LCC!$M$22*(1+N$12))) -> 0 | AJ32: 0 | AL32: Produsul 5 | AM32: =((LCC!$M$19*(LCC!$M$25/100))*LCC!$M$26) -> 0 | AN32: =((LCC!$M$19*(LCC!$M$25/100))*(LCC!$M$26*(1+$E$12))) -> 0 | AO32: =((LCC!$M$19*(LCC!$M$25/100))*(LCC!$M$26*(1+$F$12))) -> 0 | AP32: =((LCC!$M$19*(LCC!$M$25/100))*(LCC!$M$26*(1+$G$12))) -> 0 | AQ32: =((LCC!$M$19*(LCC!$M$25/100))*(LCC!$M$26*(1+$H$12))) -> 0 | AR32: =((LCC!$M$19*(LCC!$M$25/100))*(LCC!$M$26*(1+$I$12))) -> 0 | AS32: =((LCC!$M$19*(LCC!$M$25/100))*(LCC!$M$26*(1+$J$12))) -> 0 | AT32: =((LCC!$M$19*(LCC!$M$25/100))*(LCC!$M$26*(1+$K$12))) -> 0 | AU32: =((LCC!$M$19*(LCC!$M$25/100))*(LCC!$M$26*(1+$L$12))) -> 0 | AV32: =((LCC!$M$19*(LCC!$M$25/100))*(LCC!$M$26*(1+$M$12))) -> 0 | AW32: =((LCC!$M$19*(LCC!$M$25/100))*(LCC!$M$26*(1+$N$12))) -> 0 | AX32: 0
C33: % crestere/descrestere | E33: 0.0027 | F33: 0.0299 | G33: 0.0701 | H33: =AX28 -> 0 | I33: =AX29 -> 0 | J33: =AX30 -> 0 | K33: =AX31 -> 0 | L33: =AX32 -> 0 | M33: =AX33 -> 0 | N33: =AX34 -> 0 | O33: =AX35 -> 0 | P33: =AX36 -> 0 | Q33: =AX37 -> 0 | X33: Produsul 6 | Y33: =((LCC!$O$19*(LCC!$O$21/100))*LCC!$O$22) -> 0 | Z33: =((LCC!$O$19*(LCC!$O$21/100))*(LCC!$O$22*(1+$E$12))) -> 0 | AA33: =((LCC!$O$19*(LCC!$O$21/100))*(LCC!$O$22*(1+$F$12))) -> 0 | AB33: =((LCC!$O$19*(LCC!$O$21/100))*(LCC!$O$22*(1+G$12))) -> 0 | AC33: =((LCC!$O$19*(LCC!$O$21/100))*(LCC!$O$22*(1+H$12))) -> 0 | AD33: =((LCC!$O$19*(LCC!$O$21/100))*(LCC!$O$22*(1+I$12))) -> 0 | AE33: =((LCC!$O$19*(LCC!$O$21/100))*(LCC!$O$22*(1+J$12))) -> 0 | AF33: =((LCC!$O$19*(LCC!$O$21/100))*(LCC!$O$22*(1+K$12))) -> 0 | AG33: =((LCC!$O$19*(LCC!$O$21/100))*(LCC!$O$22*(1+L$12))) -> 0 | AH33: =((LCC!$O$19*(LCC!$O$21/100))*(LCC!$O$22*(1+M$12))) -> 0 | AI33: =((LCC!$O$19*(LCC!$O$21/100))*(LCC!$O$22*(1+N$12))) -> 0 | AJ33: 0 | AL33: Produsul 6 | AM33: =((LCC!$O$19*(LCC!$O$25/100))*LCC!$O$26) -> 0 | AN33: =((LCC!$O$19*(LCC!$O$25/100))*(LCC!$O$26*(1+$E$12))) -> 0 | AO33: =((LCC!$O$19*(LCC!$O$25/100))*(LCC!$O$26*(1+$F$12))) -> 0 | AP33: =((LCC!$O$19*(LCC!$O$25/100))*(LCC!$O$26*(1+$G$12))) -> 0 | AQ33: =((LCC!$O$19*(LCC!$O$25/100))*(LCC!$O$26*(1+$H$12))) -> 0 | AR33: =((LCC!$O$19*(LCC!$O$25/100))*(LCC!$O$26*(1+$I$12))) -> 0 | AS33: =((LCC!$O$19*(LCC!$O$25/100))*(LCC!$O$26*(1+$J$12))) -> 0 | AT33: =((LCC!$O$19*(LCC!$O$25/100))*(LCC!$O$26*(1+$K$12))) -> 0 | AU33: =((LCC!$O$19*(LCC!$O$25/100))*(LCC!$O$26*(1+$L$12))) -> 0 | AV33: =((LCC!$O$19*(LCC!$O$25/100))*(LCC!$O$26*(1+$M$12))) -> 0 | AW33: =((LCC!$O$19*(LCC!$O$25/100))*(LCC!$O$26*(1+$N$12))) -> 0 | AX33: 0
B34: Etanol | C34: Pret estimat ($/galon) | D34: 2.57 | E34: 2.58 | F34: 2.59 | G34: 2.6 | H34: =AJ40 -> 0 | I34: =AJ41 -> 0 | J34: =AJ42 -> 0 | K34: =AJ43 -> 0 | L34: =$AJ44 -> 0 | M34: =$AJ45 -> 0 | N34: =$AJ46 -> 0 | O34: =$AJ47 -> 0 | P34: =$AJ48 -> 0 | Q34: =$AJ49 -> 0 | X34: Produsul 7 | Y34: =((LCC!$Q$19*(LCC!$Q$21/100))*LCC!$Q$22) -> 0 | Z34: =((LCC!$Q$19*(LCC!$Q$21/100))*(LCC!$Q$22*(1+$E$12))) -> 0 | AA34: =((LCC!$Q$19*(LCC!$Q$21/100))*(LCC!$Q$22*(1+$F$12))) -> 0 | AB34: =((LCC!$Q$19*(LCC!$Q$21/100))*(LCC!$Q$22*(1+G$12))) -> 0 | AC34: =((LCC!$Q$19*(LCC!$Q$21/100))*(LCC!$Q$22*(1+H$12))) -> 0 | AD34: =((LCC!$Q$19*(LCC!$Q$21/100))*(LCC!$Q$22*(1+I$12))) -> 0 | AE34: =((LCC!$Q$19*(LCC!$Q$21/100))*(LCC!$Q$22*(1+J$12))) -> 0 | AF34: =((LCC!$Q$19*(LCC!$Q$21/100))*(LCC!$Q$22*(1+K$12))) -> 0 | AG34: =((LCC!$Q$19*(LCC!$Q$21/100))*(LCC!$Q$22*(1+L$12))) -> 0 | AH34: =((LCC!$Q$19*(LCC!$Q$21/100))*(LCC!$Q$22*(1+M$12))) -> 0 | AI34: =((LCC!$Q$19*(LCC!$Q$21/100))*(LCC!$Q$22*(1+N$12))) -> 0 | AJ34: 0 | AL34: Produsul 7 | AM34: =((LCC!$Q$19*(LCC!$Q$25/100))*LCC!$Q$26) -> 0 | AN34: =((LCC!$Q$19*(LCC!$Q$25/100))*(LCC!$Q$26*(1+$E$12))) -> 0 | AO34: =((LCC!$Q$19*(LCC!$Q$25/100))*(LCC!$Q$26*(1+$F$12))) -> 0 | AP34: =((LCC!$Q$19*(LCC!$Q$25/100))*(LCC!$Q$26*(1+$G$12))) -> 0 | AQ34: =((LCC!$Q$19*(LCC!$Q$25/100))*(LCC!$Q$26*(1+$H$12))) -> 0 | AR34: =((LCC!$Q$19*(LCC!$Q$25/100))*(LCC!$Q$26*(1+$I$12))) -> 0 | AS34: =((LCC!$Q$19*(LCC!$Q$25/100))*(LCC!$Q$26*(1+$J$12))) -> 0 | AT34: =((LCC!$Q$19*(LCC!$Q$25/100))*(LCC!$Q$26*(1+$K$12))) -> 0 | AU34: =((LCC!$Q$19*(LCC!$Q$25/100))*(LCC!$Q$26*(1+$L$12))) -> 0 | AV34: =((LCC!$Q$19*(LCC!$Q$25/100))*(LCC!$Q$26*(1+$M$12))) -> 0 | AW34: =((LCC!$Q$19*(LCC!$Q$25/100))*(LCC!$Q$26*(1+$N$12))) -> 0 | AX34: 0
C35: % crestere/descrestere | E35: 0.0034 | F35: 0.0104 | G35: 0.0132 | H35: =$AX40 -> 0 | I35: =$AX41 -> 0 | J35: =$AX42 -> 0 | K35: =$AX43 -> 0 | L35: =$AX44 -> 0 | M35: =$AX45 -> 0 | N35: =$AX46 -> 0 | O35: =$AX47 -> 0 | P35: =$AX48 -> 0 | Q35: =$AX49 -> 0 | X35: Produsul 8 | Y35: =((LCC!$S$19*(LCC!$S$21/100))*LCC!$S$22) -> 0 | Z35: =((LCC!$S$19*(LCC!$S$21/100))*(LCC!$S$22*(1+$E$12))) -> 0 | AA35: =((LCC!$S$19*(LCC!$S$21/100))*(LCC!$S$22*(1+$F$12))) -> 0 | AB35: =((LCC!$S$19*(LCC!$S$21/100))*(LCC!$S$22*(1+G$12))) -> 0 | AC35: =((LCC!$S$19*(LCC!$S$21/100))*(LCC!$S$22*(1+H$12))) -> 0 | AD35: =((LCC!$S$19*(LCC!$S$21/100))*(LCC!$S$22*(1+I$12))) -> 0 | AE35: =((LCC!$S$19*(LCC!$S$21/100))*(LCC!$S$22*(1+J$12))) -> 0 | AF35: =((LCC!$S$19*(LCC!$S$21/100))*(LCC!$S$22*(1+K$12))) -> 0 | AG35: =((LCC!$S$19*(LCC!$S$21/100))*(LCC!$S$22*(1+L$12))) -> 0 | AH35: =((LCC!$S$19*(LCC!$S$21/100))*(LCC!$S$22*(1+M$12))) -> 0 | AI35: =((LCC!$S$19*(LCC!$S$21/100))*(LCC!$S$22*(1+N$12))) -> 0 | AJ35: 0 | AL35: Produsul 8 | AM35: =((LCC!$S$19*(LCC!$S$25/100))*LCC!$S$26) -> 0 | AN35: =((LCC!$S$19*(LCC!$S$25/100))*(LCC!$S$26*(1+$E$12))) -> 0 | AO35: =((LCC!$S$19*(LCC!$S$25/100))*(LCC!$S$26*(1+$F$12))) -> 0 | AP35: =((LCC!$S$19*(LCC!$S$25/100))*(LCC!$S$26*(1+$G$12))) -> 0 | AQ35: =((LCC!$S$19*(LCC!$S$25/100))*(LCC!$S$26*(1+$H$12))) -> 0 | AR35: =((LCC!$S$19*(LCC!$S$25/100))*(LCC!$S$26*(1+$I$12))) -> 0 | AS35: =((LCC!$S$19*(LCC!$S$25/100))*(LCC!$S$26*(1+$J$12))) -> 0 | AT35: =((LCC!$S$19*(LCC!$S$25/100))*(LCC!$S$26*(1+$K$12))) -> 0 | AU35: =((LCC!$S$19*(LCC!$S$25/100))*(LCC!$S$26*(1+$L$12))) -> 0 | AV35: =((LCC!$S$19*(LCC!$S$25/100))*(LCC!$S$26*(1+$M$12))) -> 0 | AW35: =((LCC!$S$19*(LCC!$S$25/100))*(LCC!$S$26*(1+$N$12))) -> 0 | AX35: 0
B36: Electricitate | C36: Pret estimat ($/galon) | D36: 10.21 | E36: 10.1 | F36: 10.2 | G36: 10.16 | H36: =AJ52 -> 0 | I36: =AJ53 -> 0 | J36: =$AJ54 -> 0 | K36: =$AJ55 -> 0 | L36: =$AJ56 -> 0 | M36: =$AJ57 -> 0 | N36: =$AJ58 -> 0 | O36: =$AJ59 -> 0 | P36: =$AJ60 -> 0 | Q36: =$AJ61 -> 0 | X36: Produsul 9 | Y36: =((LCC!$U$19*(LCC!$U$21/100))*LCC!$U$22) -> 0 | Z36: =((LCC!$U$19*(LCC!$U$21/100))*(LCC!$U$22*(1+$E$12))) -> 0 | AA36: =((LCC!$U$19*(LCC!$U$21/100))*(LCC!$U$22*(1+$F$12))) -> 0 | AB36: =((LCC!$U$19*(LCC!$U$21/100))*(LCC!$U$22*(1+G$12))) -> 0 | AC36: =((LCC!$U$19*(LCC!$U$21/100))*(LCC!$U$22*(1+H$12))) -> 0 | AD36: =((LCC!$U$19*(LCC!$U$21/100))*(LCC!$U$22*(1+I$12))) -> 0 | AE36: =((LCC!$U$19*(LCC!$U$21/100))*(LCC!$U$22*(1+J$12))) -> 0 | AF36: =((LCC!$U$19*(LCC!$U$21/100))*(LCC!$U$22*(1+K$12))) -> 0 | AG36: =((LCC!$U$19*(LCC!$U$21/100))*(LCC!$U$22*(1+L$12))) -> 0 | AH36: =((LCC!$U$19*(LCC!$U$21/100))*(LCC!$U$22*(1+M$12))) -> 0 | AI36: =((LCC!$U$19*(LCC!$U$21/100))*(LCC!$U$22*(1+N$12))) -> 0 | AJ36: 0 | AL36: Produsul 9 | AM36: =((LCC!$U$19*(LCC!$U$25/100))*LCC!$U$26) -> 0 | AN36: =((LCC!$U$19*(LCC!$U$25/100))*(LCC!$U$26*(1+$E$12))) -> 0 | AO36: =((LCC!$U$19*(LCC!$U$25/100))*(LCC!$U$26*(1+$F$12))) -> 0 | AP36: =((LCC!$U$19*(LCC!$U$25/100))*(LCC!$U$26*(1+$G$12))) -> 0 | AQ36: =((LCC!$U$19*(LCC!$U$25/100))*(LCC!$U$26*(1+$H$12))) -> 0 | AR36: =((LCC!$U$19*(LCC!$U$25/100))*(LCC!$U$26*(1+$I$12))) -> 0 | AS36: =((LCC!$U$19*(LCC!$U$25/100))*(LCC!$U$26*(1+$J$12))) -> 0 | AT36: =((LCC!$U$19*(LCC!$U$25/100))*(LCC!$U$26*(1+$K$12))) -> 0 | AU36: =((LCC!$U$19*(LCC!$U$25/100))*(LCC!$U$26*(1+$L$12))) -> 0 | AV36: =((LCC!$U$19*(LCC!$U$25/100))*(LCC!$U$26*(1+$M$12))) -> 0 | AW36: =((LCC!$U$19*(LCC!$U$25/100))*(LCC!$U$26*(1+$N$12))) -> 0 | AX36: 0
C37: % crestere/descrestere | E37: -0.0119 | F37: 0.0029 | G37: -0.49 | H37: =AX52 -> 0 | I37: =AX53 -> 0 | J37: =AX54 -> 0 | K37: =AX55 -> 0 | L37: =AX56 -> 0 | M37: =AX57 -> 0 | N37: =AX58 -> 0 | O37: =AX59 -> 0 | P37: =AX60 -> 0 | Q37: =AX61 -> 0 | X37: Produsul 10 | Y37: =((LCC!$W$19*(LCC!$W$21/100))*LCC!$W$22) -> 0 | Z37: =((LCC!$W$19*(LCC!$W$21/100))*(LCC!$W$22*(1+$E$12))) -> 0 | AA37: =((LCC!$W$19*(LCC!$W$21/100))*(LCC!$W$22*(1+$F$12))) -> 0 | AB37: =((LCC!$W$19*(LCC!$W$21/100))*(LCC!$W$22*(1+G$12))) -> 0 | AC37: =((LCC!$W$19*(LCC!$W$21/100))*(LCC!$W$22*(1+H$12))) -> 0 | AD37: =((LCC!$W$19*(LCC!$W$21/100))*(LCC!$W$22*(1+I$12))) -> 0 | AE37: =((LCC!$W$19*(LCC!$W$21/100))*(LCC!$W$22*(1+J$12))) -> 0 | AF37: =((LCC!$W$19*(LCC!$W$21/100))*(LCC!$W$22*(1+K$12))) -> 0 | AG37: =((LCC!$W$19*(LCC!$W$21/100))*(LCC!$W$22*(1+L$12))) -> 0 | AH37: =((LCC!$W$19*(LCC!$W$21/100))*(LCC!$W$22*(1+M$12))) -> 0 | AI37: =((LCC!$W$19*(LCC!$W$21/100))*(LCC!$W$22*(1+N$12))) -> 0 | AJ37: 0 | AL37: Produsul 10 | AM37: =((LCC!$W$19*(LCC!$W$25/100))*LCC!$W$26) -> 0 | AN37: =((LCC!$W$19*(LCC!$W$25/100))*(LCC!$W$26*(1+$E$12))) -> 0 | AO37: =((LCC!$W$19*(LCC!$W$25/100))*(LCC!$W$26*(1+$F$12))) -> 0 | AP37: =((LCC!$W$19*(LCC!$W$25/100))*(LCC!$W$26*(1+$G$12))) -> 0 | AQ37: =((LCC!$W$19*(LCC!$W$25/100))*(LCC!$W$26*(1+$H$12))) -> 0 | AR37: =((LCC!$W$19*(LCC!$W$25/100))*(LCC!$W$26*(1+$I$12))) -> 0 | AS37: =((LCC!$W$19*(LCC!$W$25/100))*(LCC!$W$26*(1+$J$12))) -> 0 | AT37: =((LCC!$W$19*(LCC!$W$25/100))*(LCC!$W$26*(1+$K$12))) -> 0 | AU37: =((LCC!$W$19*(LCC!$W$25/100))*(LCC!$W$26*(1+$L$12))) -> 0 | AV37: =((LCC!$W$19*(LCC!$W$25/100))*(LCC!$W$26*(1+$M$12))) -> 0 | AW37: =((LCC!$W$19*(LCC!$W$25/100))*(LCC!$W$26*(1+$N$12))) -> 0 | AX37: 0
B38: Biodiesel | C38: Pret estimat ($/galon) | D38: 156.2 | E38: 154.7 | F38: 159.8 | G38: 177.6 | H38: =AJ64 -> 0 | I38: =AJ65 -> 0 | J38: =AJ66 -> 0 | K38: =AJ67 -> 0 | L38: =$AJ68 -> 0 | M38: =$AJ69 -> 0 | N38: =$AJ70 -> 0 | O38: =$AJ71 -> 0 | P38: =$AJ72 -> 0 | Q38: =$AJ73 -> 0
C39: % crestere/descrestere | E39: -0.0083 | F39: 0.0247 | G39: 0.1317 | H39: =AX64 -> 0 | I39: =AX65 -> 0 | J39: =AX66 -> 0 | K39: =AX67 -> 0 | L39: =AX68 -> 0 | M39: =AX69 -> 0 | N39: =AX70 -> 0 | O39: =AX71 -> 0 | P39: =AX72 -> 0 | Q39: =AX73 -> 0 | X39: ETANOL | Y39: 2014 | Z39: 2015 | AA39: 2016 | AB39: 2017 | AC39: 2018 | AD39: 2019 | AE39: 2020 | AF39: 2021 | AG39: 2022 | AH39: 2023 | AI39: 2024 | AJ39: Pret total combustibil pentru perioada vizata | AL39: Etanol
B40: Gaz Natural | C40: Pret estimat ($/galon) | D40: 16.09 | E40: 16.73 | F40: 17.17 | G40: 18.17 | H40: =AJ76 -> 0 | I40: =AJ77 -> 0 | J40: =AJ78 -> 0 | K40: =AJ79 -> 0 | L40: =$AJ80 -> 0 | M40: =$AJ81 -> 0 | N40: =$AJ82 -> 0 | O40: =$AJ83 -> 0 | P40: =$AJ84 -> 0 | Q40: =$AJ85 -> 0 | X40: Produsul 1 | Y40: =((LCC!$E$19*(LCC!$E$21/100))*LCC!$E$22) -> 0 | Z40: =((LCC!$E$19*(LCC!$E$21/100))*(LCC!$E$22*(1+$E$15))) -> 0 | AA40: =((LCC!$E$19*(LCC!$E$21/100))*(LCC!$E$22*(1+$F$15))) -> 0 | AB40: =((LCC!$E$19*(LCC!$E$21/100))*(LCC!$E$22*(1+G$15))) -> 0 | AC40: =((LCC!$E$19*(LCC!$E$21/100))*(LCC!$E$22*(1+H$15))) -> 0 | AD40: =((LCC!$E$19*(LCC!$E$21/100))*(LCC!$E$22*(1+I$15))) -> 0 | AE40: =((LCC!$E$19*(LCC!$E$21/100))*(LCC!$E$22*(1+J$15))) -> 0 | AF40: =((LCC!$E$19*(LCC!$E$21/100))*(LCC!$E$22*(1+K$15))) -> 0 | AG40: =((LCC!$E$19*(LCC!$E$21/100))*(LCC!$E$22*(1+L$15))) -> 0 | AH40: =((LCC!$E$19*(LCC!$E$21/100))*(LCC!$E$22*(1+M$15))) -> 0 | AI40: =((LCC!$E$19*(LCC!$E$21/100))*(LCC!$E$22*(1+N$15))) -> 0 | AJ40: 0 | AL40: Produsul 1 | AM40: =((LCC!$E$19*(LCC!$E$25/100))*LCC!$E$26) -> 0 | AN40: =((LCC!$E$19*(LCC!$E$25/100))*(LCC!$E$26*(1+$E$15))) -> 0 | AO40: =((LCC!$E$19*(LCC!$E$25/100))*(LCC!$E$26*(1+$F$15))) -> 0 | AP40: =((LCC!$E$19*(LCC!$E$25/100))*(LCC!$E$26*(1+$G$15))) -> 0 | AQ40: =((LCC!$E$19*(LCC!$E$25/100))*(LCC!$E$26*(1+$H$15))) -> 0 | AR40: =((LCC!$E$19*(LCC!$E$25/100))*(LCC!$E$26*(1+$I$15))) -> 0 | AS40: =((LCC!$E$19*(LCC!$E$25/100))*(LCC!$E$26*(1+$J$15))) -> 0 | AT40: =((LCC!$E$19*(LCC!$E$25/100))*(LCC!$E$26*(1+$K$15))) -> 0 | AU40: =((LCC!$E$19*(LCC!$E$25/100))*(LCC!$E$26*(1+$L$15))) -> 0 | AV40: =((LCC!$E$19*(LCC!$E$25/100))*(LCC!$E$26*(1+$M$15))) -> 0 | AW40: =((LCC!$E$19*(LCC!$E$25/100))*(LCC!$E$26*(1+$N$15))) -> 0 | AX40: 0
C41: % crestere/descrestere | E41: 0.0394 | F41: 0.0656 | G41: 0.1225 | H41: =AX76 -> 0 | I41: =AX77 -> 0 | J41: =AX78 -> 0 | K41: =$AX79 -> 0 | L41: =$AX80 -> 0 | M41: =$AX81 -> 0 | N41: =$AX82 -> 0 | O41: =$AX83 -> 0 | P41: =$AX84 -> 0 | Q41: =$AX85 -> 0 | X41: Produsul 2 | Y41: =((LCC!$G$19*(LCC!$G$21/100))*LCC!$G$22) -> 0 | Z41: =((LCC!$G$19*(LCC!$G$21/100))*(LCC!$G$22*(1+$E$15))) -> 0 | AA41: =((LCC!$G$19*(LCC!$G$21/100))*(LCC!$G$22*(1+$F$15))) -> 0 | AB41: =((LCC!$G$19*(LCC!$G$21/100))*(LCC!$G$22*(1+G$15))) -> 0 | AC41: =((LCC!$G$19*(LCC!$G$21/100))*(LCC!$G$22*(1+H$15))) -> 0 | AD41: =((LCC!$G$19*(LCC!$G$21/100))*(LCC!$G$22*(1+I$15))) -> 0 | AE41: =((LCC!$G$19*(LCC!$G$21/100))*(LCC!$G$22*(1+J$15))) -> 0 | AF41: =((LCC!$G$19*(LCC!$G$21/100))*(LCC!$G$22*(1+K$15))) -> 0 | AG41: =((LCC!$G$19*(LCC!$G$21/100))*(LCC!$G$22*(1+L$15))) -> 0 | AH41: =((LCC!$G$19*(LCC!$G$21/100))*(LCC!$G$22*(1+M$15))) -> 0 | AI41: =((LCC!$G$19*(LCC!$G$21/100))*(LCC!$G$22*(1+N$15))) -> 0 | AJ41: 0 | AL41: Produsul 2 | AM41: =((LCC!$G$19*(LCC!$G$25/100))*LCC!$G$26) -> 0 | AN41: =((LCC!$G$19*(LCC!$G$25/100))*(LCC!$G$26*(1+$E$15))) -> 0 | AO41: =((LCC!$G$19*(LCC!$G$25/100))*(LCC!$G$26*(1+$F$15))) -> 0 | AP41: =((LCC!$G$19*(LCC!$G$25/100))*(LCC!$G$26*(1+$G$15))) -> 0 | AQ41: =((LCC!$G$19*(LCC!$G$25/100))*(LCC!$G$26*(1+$H$15))) -> 0 | AR41: =((LCC!$G$19*(LCC!$G$25/100))*(LCC!$G$26*(1+$I$15))) -> 0 | AS41: =((LCC!$G$19*(LCC!$G$25/100))*(LCC!$G$26*(1+$J$15))) -> 0 | AT41: =((LCC!$G$19*(LCC!$G$25/100))*(LCC!$G$26*(1+$K$15))) -> 0 | AU41: =((LCC!$G$19*(LCC!$G$25/100))*(LCC!$G$26*(1+$L$15))) -> 0 | AV41: =((LCC!$G$19*(LCC!$G$25/100))*(LCC!$G$26*(1+$M$15))) -> 0 | AW41: =((LCC!$G$19*(LCC!$G$25/100))*(LCC!$G$26*(1+$N$15))) -> 0 | AX41: 0
X42: Produsul 3 | Y42: =((LCC!$I$19*(LCC!$I$21/100))*LCC!$I$22) -> 0 | Z42: =((LCC!$I$19*(LCC!$I$21/100))*(LCC!$I$22*(1+$E$15))) -> 0 | AA42: =((LCC!$I$19*(LCC!$I$21/100))*(LCC!$I$22*(1+$F$15))) -> 0 | AB42: =((LCC!$I$19*(LCC!$I$21/100))*(LCC!$I$22*(1+G$15))) -> 0 | AC42: =((LCC!$I$19*(LCC!$I$21/100))*(LCC!$I$22*(1+H$15))) -> 0 | AD42: =((LCC!$I$19*(LCC!$I$21/100))*(LCC!$I$22*(1+I$15))) -> 0 | AE42: =((LCC!$I$19*(LCC!$I$21/100))*(LCC!$I$22*(1+J$15))) -> 0 | AF42: =((LCC!$I$19*(LCC!$I$21/100))*(LCC!$I$22*(1+K$15))) -> 0 | AG42: =((LCC!$I$19*(LCC!$I$21/100))*(LCC!$I$22*(1+L$15))) -> 0 | AH42: =((LCC!$I$19*(LCC!$I$21/100))*(LCC!$I$22*(1+M$15))) -> 0 | AI42: =((LCC!$I$19*(LCC!$I$21/100))*(LCC!$I$22*(1+N$15))) -> 0 | AJ42: 0 | AL42: Produsul 3 | AM42: =((LCC!$I$19*(LCC!$I$25/100))*LCC!$I$26) -> 0 | AN42: =((LCC!$I$19*(LCC!$I$25/100))*(LCC!$I$26*(1+$E$15))) -> 0 | AO42: =((LCC!$I$19*(LCC!$I$25/100))*(LCC!$I$26*(1+$F$15))) -> 0 | AP42: =((LCC!$I$19*(LCC!$I$25/100))*(LCC!$I$26*(1+$G$15))) -> 0 | AQ42: =((LCC!$I$19*(LCC!$I$25/100))*(LCC!$I$26*(1+$H$15))) -> 0 | AR42: =((LCC!$I$19*(LCC!$I$25/100))*(LCC!$I$26*(1+$I$15))) -> 0 | AS42: =((LCC!$I$19*(LCC!$I$25/100))*(LCC!$I$26*(1+$J$15))) -> 0 | AT42: =((LCC!$I$19*(LCC!$I$25/100))*(LCC!$I$26*(1+$K$15))) -> 0 | AU42: =((LCC!$I$19*(LCC!$I$25/100))*(LCC!$I$26*(1+$L$15))) -> 0 | AV42: =((LCC!$I$19*(LCC!$I$25/100))*(LCC!$I$26*(1+$M$15))) -> 0 | AW42: =((LCC!$I$19*(LCC!$I$25/100))*(LCC!$I$26*(1+$N$15))) -> 0 | AX42: 0
X43: Produsul 4 | Y43: =((LCC!$K$19*(LCC!$K$21/100))*LCC!$K$22) -> 0 | Z43: =((LCC!$K$19*(LCC!$K$21/100))*(LCC!$K$22*(1+$E$15))) -> 0 | AA43: =((LCC!$K$19*(LCC!$K$21/100))*(LCC!$K$22*(1+$F$15))) -> 0 | AB43: =((LCC!$K$19*(LCC!$K$21/100))*(LCC!$K$22*(1+G$15))) -> 0 | AC43: =((LCC!$K$19*(LCC!$K$21/100))*(LCC!$K$22*(1+H$15))) -> 0 | AD43: =((LCC!$K$19*(LCC!$K$21/100))*(LCC!$K$22*(1+I$15))) -> 0 | AE43: =((LCC!$K$19*(LCC!$K$21/100))*(LCC!$K$22*(1+J$15))) -> 0 | AF43: =((LCC!$K$19*(LCC!$K$21/100))*(LCC!$K$22*(1+K$15))) -> 0 | AG43: =((LCC!$K$19*(LCC!$K$21/100))*(LCC!$K$22*(1+L$15))) -> 0 | AH43: =((LCC!$K$19*(LCC!$K$21/100))*(LCC!$K$22*(1+M$15))) -> 0 | AI43: =((LCC!$K$19*(LCC!$K$21/100))*(LCC!$K$22*(1+N$15))) -> 0 | AJ43: 0 | AL43: Produsul 4 | AM43: =((LCC!$K$19*(LCC!$K$25/100))*LCC!$K$26) -> 0 | AN43: =((LCC!$K$19*(LCC!$K$25/100))*(LCC!$K$26*(1+$E$15))) -> 0 | AO43: =((LCC!$K$19*(LCC!$K$25/100))*(LCC!$K$26*(1+$F$15))) -> 0 | AP43: =((LCC!$K$19*(LCC!$K$25/100))*(LCC!$K$26*(1+$G$15))) -> 0 | AQ43: =((LCC!$K$19*(LCC!$K$25/100))*(LCC!$K$26*(1+$H$15))) -> 0 | AR43: =((LCC!$K$19*(LCC!$K$25/100))*(LCC!$K$26*(1+$I$15))) -> 0 | AS43: =((LCC!$K$19*(LCC!$K$25/100))*(LCC!$K$26*(1+$J$15))) -> 0 | AT43: =((LCC!$K$19*(LCC!$K$25/100))*(LCC!$K$26*(1+$K$15))) -> 0 | AU43: =((LCC!$K$19*(LCC!$K$25/100))*(LCC!$K$26*(1+$L$15))) -> 0 | AV43: =((LCC!$K$19*(LCC!$K$25/100))*(LCC!$K$26*(1+$M$15))) -> 0 | AW43: =((LCC!$K$19*(LCC!$K$25/100))*(LCC!$K$26*(1+$N$15))) -> 0 | AX43: 0
A44: Surse: | B44: OECD-FAO Perspectiva agricola | X44: Produsul 5 | Y44: =((LCC!$M$19*(LCC!$M$21/100))*LCC!$M$22) -> 0 | Z44: =((LCC!$M$19*(LCC!$M$21/100))*(LCC!$M$22*(1+$E$15))) -> 0 | AA44: =((LCC!$M$19*(LCC!$M$21/100))*(LCC!$M$22*(1+$F$15))) -> 0 | AB44: =((LCC!$M$19*(LCC!$M$21/100))*(LCC!$M$22*(1+G$15))) -> 0 | AC44: =((LCC!$M$19*(LCC!$M$21/100))*(LCC!$M$22*(1+H$15))) -> 0 | AD44: =((LCC!$M$19*(LCC!$M$21/100))*(LCC!$M$22*(1+I$15))) -> 0 | AE44: =((LCC!$M$19*(LCC!$M$21/100))*(LCC!$M$22*(1+J$15))) -> 0 | AF44: =((LCC!$M$19*(LCC!$M$21/100))*(LCC!$M$22*(1+K$15))) -> 0 | AG44: =((LCC!$M$19*(LCC!$M$21/100))*(LCC!$M$22*(1+L$15))) -> 0 | AH44: =((LCC!$M$19*(LCC!$M$21/100))*(LCC!$M$22*(1+M$15))) -> 0 | AI44: =((LCC!$M$19*(LCC!$M$21/100))*(LCC!$M$22*(1+N$15))) -> 0 | AJ44: 0 | AL44: Produsul 5 | AM44: =((LCC!$M$19*(LCC!$M$25/100))*LCC!$M$26) -> 0 | AN44: =((LCC!$M$19*(LCC!$M$25/100))*(LCC!$M$26*(1+$E$15))) -> 0 | AO44: =((LCC!$M$19*(LCC!$M$25/100))*(LCC!$M$26*(1+$F$15))) -> 0 | AP44: =((LCC!$M$19*(LCC!$M$25/100))*(LCC!$M$26*(1+$G$15))) -> 0 | AQ44: =((LCC!$M$19*(LCC!$M$25/100))*(LCC!$M$26*(1+$H$15))) -> 0 | AR44: =((LCC!$M$19*(LCC!$M$25/100))*(LCC!$M$26*(1+$I$15))) -> 0 | AS44: =((LCC!$M$19*(LCC!$M$25/100))*(LCC!$M$26*(1+$J$15))) -> 0 | AT44: =((LCC!$M$19*(LCC!$M$25/100))*(LCC!$M$26*(1+$K$15))) -> 0 | AU44: =((LCC!$M$19*(LCC!$M$25/100))*(LCC!$M$26*(1+$L$15))) -> 0 | AV44: =((LCC!$M$19*(LCC!$M$25/100))*(LCC!$M$26*(1+$M$15))) -> 0 | AW44: =((LCC!$M$19*(LCC!$M$25/100))*(LCC!$M$26*(1+$N$15))) -> 0 | AX44: 0
B45: SUA - Administratie energie | X45: Produsul 6 | Y45: =((LCC!$O$19*(LCC!$O$21/100))*LCC!$O$22) -> 0 | Z45: =((LCC!$O$19*(LCC!$O$21/100))*(LCC!$O$22*(1+$E$15))) -> 0 | AA45: =((LCC!$O$19*(LCC!$O$21/100))*(LCC!$O$22*(1+$F$15))) -> 0 | AB45: =((LCC!$O$19*(LCC!$O$21/100))*(LCC!$O$22*(1+G$15))) -> 0 | AC45: =((LCC!$O$19*(LCC!$O$21/100))*(LCC!$O$22*(1+H$15))) -> 0 | AD45: =((LCC!$O$19*(LCC!$O$21/100))*(LCC!$O$22*(1+I$15))) -> 0 | AE45: =((LCC!$O$19*(LCC!$O$21/100))*(LCC!$O$22*(1+J$15))) -> 0 | AF45: =((LCC!$O$19*(LCC!$O$21/100))*(LCC!$O$22*(1+K$15))) -> 0 | AG45: =((LCC!$O$19*(LCC!$O$21/100))*(LCC!$O$22*(1+L$15))) -> 0 | AH45: =((LCC!$O$19*(LCC!$O$21/100))*(LCC!$O$22*(1+M$15))) -> 0 | AI45: =((LCC!$O$19*(LCC!$O$21/100))*(LCC!$O$22*(1+N$15))) -> 0 | AJ45: 0 | AL45: Produsul 6 | AM45: =((LCC!$O$19*(LCC!$O$25/100))*LCC!$O$26) -> 0 | AN45: =((LCC!$O$19*(LCC!$O$25/100))*(LCC!$O$26*(1+$E$15))) -> 0 | AO45: =((LCC!$O$19*(LCC!$O$25/100))*(LCC!$O$26*(1+$F$15))) -> 0 | AP45: =((LCC!$O$19*(LCC!$O$25/100))*(LCC!$O$26*(1+$G$15))) -> 0 | AQ45: =((LCC!$O$19*(LCC!$O$25/100))*(LCC!$O$26*(1+$H$15))) -> 0 | AR45: =((LCC!$O$19*(LCC!$O$25/100))*(LCC!$O$26*(1+$I$15))) -> 0 | AS45: =((LCC!$O$19*(LCC!$O$25/100))*(LCC!$O$26*(1+$J$15))) -> 0 | AT45: =((LCC!$O$19*(LCC!$O$25/100))*(LCC!$O$26*(1+$K$15))) -> 0 | AU45: =((LCC!$O$19*(LCC!$O$25/100))*(LCC!$O$26*(1+$L$15))) -> 0 | AV45: =((LCC!$O$19*(LCC!$O$25/100))*(LCC!$O$26*(1+$M$15))) -> 0 | AW45: =((LCC!$O$19*(LCC!$O$25/100))*(LCC!$O$26*(1+$N$15))) -> 0 | AX45: 0
X46: Produsul 7 | Y46: =((LCC!$Q$19*(LCC!$Q$21/100))*LCC!$Q$22) -> 0 | Z46: =((LCC!$Q$19*(LCC!$Q$21/100))*(LCC!$Q$22*(1+$E$15))) -> 0 | AA46: =((LCC!$Q$19*(LCC!$Q$21/100))*(LCC!$Q$22*(1+$F$15))) -> 0 | AB46: =((LCC!$Q$19*(LCC!$Q$21/100))*(LCC!$Q$22*(1+G$15))) -> 0 | AC46: =((LCC!$Q$19*(LCC!$Q$21/100))*(LCC!$Q$22*(1+H$15))) -> 0 | AD46: =((LCC!$Q$19*(LCC!$Q$21/100))*(LCC!$Q$22*(1+I$15))) -> 0 | AE46: =((LCC!$Q$19*(LCC!$Q$21/100))*(LCC!$Q$22*(1+J$15))) -> 0 | AF46: =((LCC!$Q$19*(LCC!$Q$21/100))*(LCC!$Q$22*(1+K$15))) -> 0 | AG46: =((LCC!$Q$19*(LCC!$Q$21/100))*(LCC!$Q$22*(1+L$15))) -> 0 | AH46: =((LCC!$Q$19*(LCC!$Q$21/100))*(LCC!$Q$22*(1+M$15))) -> 0 | AI46: =((LCC!$Q$19*(LCC!$Q$21/100))*(LCC!$Q$22*(1+N$15))) -> 0 | AJ46: 0 | AL46: Produsul 7 | AM46: =((LCC!$Q$19*(LCC!$Q$25/100))*LCC!$Q$26) -> 0 | AN46: =((LCC!$Q$19*(LCC!$Q$25/100))*(LCC!$Q$26*(1+$E$15))) -> 0 | AO46: =((LCC!$Q$19*(LCC!$Q$25/100))*(LCC!$Q$26*(1+$F$15))) -> 0 | AP46: =((LCC!$Q$19*(LCC!$Q$25/100))*(LCC!$Q$26*(1+$G$15))) -> 0 | AQ46: =((LCC!$Q$19*(LCC!$Q$25/100))*(LCC!$Q$26*(1+$H$15))) -> 0 | AR46: =((LCC!$Q$19*(LCC!$Q$25/100))*(LCC!$Q$26*(1+$I$15))) -> 0 | AS46: =((LCC!$Q$19*(LCC!$Q$25/100))*(LCC!$Q$26*(1+$J$15))) -> 0 | AT46: =((LCC!$Q$19*(LCC!$Q$25/100))*(LCC!$Q$26*(1+$K$15))) -> 0 | AU46: =((LCC!$Q$19*(LCC!$Q$25/100))*(LCC!$Q$26*(1+$L$15))) -> 0 | AV46: =((LCC!$Q$19*(LCC!$Q$25/100))*(LCC!$Q$26*(1+$M$15))) -> 0 | AW46: =((LCC!$Q$19*(LCC!$Q$25/100))*(LCC!$Q$26*(1+$N$15))) -> 0 | AX46: 0
A47: *** Toate estimarile de pret au fosl considerate pentru sectorul de transport | X47: Produsul 8 | Y47: =((LCC!$S$19*(LCC!$S$21/100))*LCC!$S$22) -> 0 | Z47: =((LCC!$S$19*(LCC!$S$21/100))*(LCC!$S$22*(1+$E$15))) -> 0 | AA47: =((LCC!$S$19*(LCC!$S$21/100))*(LCC!$S$22*(1+$F$15))) -> 0 | AB47: =((LCC!$S$19*(LCC!$S$21/100))*(LCC!$S$22*(1+G$15))) -> 0 | AC47: =((LCC!$S$19*(LCC!$S$21/100))*(LCC!$S$22*(1+H$15))) -> 0 | AD47: =((LCC!$S$19*(LCC!$S$21/100))*(LCC!$S$22*(1+I$15))) -> 0 | AE47: =((LCC!$S$19*(LCC!$S$21/100))*(LCC!$S$22*(1+J$15))) -> 0 | AF47: =((LCC!$S$19*(LCC!$S$21/100))*(LCC!$S$22*(1+K$15))) -> 0 | AG47: =((LCC!$S$19*(LCC!$S$21/100))*(LCC!$S$22*(1+L$15))) -> 0 | AH47: =((LCC!$S$19*(LCC!$S$21/100))*(LCC!$S$22*(1+M$15))) -> 0 | AI47: =((LCC!$S$19*(LCC!$S$21/100))*(LCC!$S$22*(1+N$15))) -> 0 | AJ47: 0 | AL47: Produsul 8 | AM47: =((LCC!$S$19*(LCC!$S$25/100))*LCC!$S$26) -> 0 | AN47: =((LCC!$S$19*(LCC!$S$25/100))*(LCC!$S$26*(1+$E$15))) -> 0 | AO47: =((LCC!$S$19*(LCC!$S$25/100))*(LCC!$S$26*(1+$F$15))) -> 0 | AP47: =((LCC!$S$19*(LCC!$S$25/100))*(LCC!$S$26*(1+$G$15))) -> 0 | AQ47: =((LCC!$S$19*(LCC!$S$25/100))*(LCC!$S$26*(1+$H$15))) -> 0 | AR47: =((LCC!$S$19*(LCC!$S$25/100))*(LCC!$S$26*(1+$I$15))) -> 0 | AS47: =((LCC!$S$19*(LCC!$S$25/100))*(LCC!$S$26*(1+$J$15))) -> 0 | AT47: =((LCC!$S$19*(LCC!$S$25/100))*(LCC!$S$26*(1+$K$15))) -> 0 | AU47: =((LCC!$S$19*(LCC!$S$25/100))*(LCC!$S$26*(1+$L$15))) -> 0 | AV47: =((LCC!$S$19*(LCC!$S$25/100))*(LCC!$S$26*(1+$M$15))) -> 0 | AW47: =((LCC!$S$19*(LCC!$S$25/100))*(LCC!$S$26*(1+$N$15))) -> 0 | AX47: 0
X48: Produsul 9 | Y48: =((LCC!$U$19*(LCC!$U$21/100))*LCC!$U$22) -> 0 | Z48: =((LCC!$U$19*(LCC!$U$21/100))*(LCC!$U$22*(1+$E$15))) -> 0 | AA48: =((LCC!$U$19*(LCC!$U$21/100))*(LCC!$U$22*(1+$F$15))) -> 0 | AB48: =((LCC!$U$19*(LCC!$U$21/100))*(LCC!$U$22*(1+G$15))) -> 0 | AC48: =((LCC!$U$19*(LCC!$U$21/100))*(LCC!$U$22*(1+H$15))) -> 0 | AD48: =((LCC!$U$19*(LCC!$U$21/100))*(LCC!$U$22*(1+I$15))) -> 0 | AE48: =((LCC!$U$19*(LCC!$U$21/100))*(LCC!$U$22*(1+J$15))) -> 0 | AF48: =((LCC!$U$19*(LCC!$U$21/100))*(LCC!$U$22*(1+K$15))) -> 0 | AG48: =((LCC!$U$19*(LCC!$U$21/100))*(LCC!$U$22*(1+L$15))) -> 0 | AH48: =((LCC!$U$19*(LCC!$U$21/100))*(LCC!$U$22*(1+M$15))) -> 0 | AI48: =((LCC!$U$19*(LCC!$U$21/100))*(LCC!$U$22*(1+N$15))) -> 0 | AJ48: 0 | AL48: Produsul 9 | AM48: =((LCC!$U$19*(LCC!$U$25/100))*LCC!$U$26) -> 0 | AN48: =((LCC!$U$19*(LCC!$U$25/100))*(LCC!$U$26*(1+$E$15))) -> 0 | AO48: =((LCC!$U$19*(LCC!$U$25/100))*(LCC!$U$26*(1+$F$15))) -> 0 | AP48: =((LCC!$U$19*(LCC!$U$25/100))*(LCC!$U$26*(1+$G$15))) -> 0 | AQ48: =((LCC!$U$19*(LCC!$U$25/100))*(LCC!$U$26*(1+$H$15))) -> 0 | AR48: =((LCC!$U$19*(LCC!$U$25/100))*(LCC!$U$26*(1+$I$15))) -> 0 | AS48: =((LCC!$U$19*(LCC!$U$25/100))*(LCC!$U$26*(1+$J$15))) -> 0 | AT48: =((LCC!$U$19*(LCC!$U$25/100))*(LCC!$U$26*(1+$K$15))) -> 0 | AU48: =((LCC!$U$19*(LCC!$U$25/100))*(LCC!$U$26*(1+$L$15))) -> 0 | AV48: =((LCC!$U$19*(LCC!$U$25/100))*(LCC!$U$26*(1+$M$15))) -> 0 | AW48: =((LCC!$U$19*(LCC!$U$25/100))*(LCC!$U$26*(1+$N$15))) -> 0 | AX48: 0
X49: Produsul 10 | Y49: =((LCC!$W$19*(LCC!$W$21/100))*LCC!$W$22) -> 0 | Z49: =((LCC!$W$19*(LCC!$W$21/100))*(LCC!$W$22*(1+$E$15))) -> 0 | AA49: =((LCC!$W$19*(LCC!$W$21/100))*(LCC!$W$22*(1+$F$15))) -> 0 | AB49: =((LCC!$W$19*(LCC!$W$21/100))*(LCC!$W$22*(1+G$15))) -> 0 | AC49: =((LCC!$W$19*(LCC!$W$21/100))*(LCC!$W$22*(1+H$15))) -> 0 | AD49: =((LCC!$W$19*(LCC!$W$21/100))*(LCC!$W$22*(1+I$15))) -> 0 | AE49: =((LCC!$W$19*(LCC!$W$21/100))*(LCC!$W$22*(1+J$15))) -> 0 | AF49: =((LCC!$W$19*(LCC!$W$21/100))*(LCC!$W$22*(1+K$15))) -> 0 | AG49: =((LCC!$W$19*(LCC!$W$21/100))*(LCC!$W$22*(1+L$15))) -> 0 | AH49: =((LCC!$W$19*(LCC!$W$21/100))*(LCC!$W$22*(1+M$15))) -> 0 | AI49: =((LCC!$W$19*(LCC!$W$21/100))*(LCC!$W$22*(1+N$15))) -> 0 | AJ49: 0 | AL49: Produsul 10 | AM49: =((LCC!$W$19*(LCC!$W$25/100))*LCC!$W$26) -> 0 | AN49: =((LCC!$W$19*(LCC!$W$25/100))*(LCC!$W$26*(1+$E$15))) -> 0 | AO49: =((LCC!$W$19*(LCC!$W$25/100))*(LCC!$W$26*(1+$F$15))) -> 0 | AP49: =((LCC!$W$19*(LCC!$W$25/100))*(LCC!$W$26*(1+$G$15))) -> 0 | AQ49: =((LCC!$W$19*(LCC!$W$25/100))*(LCC!$W$26*(1+$H$15))) -> 0 | AR49: =((LCC!$W$19*(LCC!$W$25/100))*(LCC!$W$26*(1+$I$15))) -> 0 | AS49: =((LCC!$W$19*(LCC!$W$25/100))*(LCC!$W$26*(1+$J$15))) -> 0 | AT49: =((LCC!$W$19*(LCC!$W$25/100))*(LCC!$W$26*(1+$K$15))) -> 0 | AU49: =((LCC!$W$19*(LCC!$W$25/100))*(LCC!$W$26*(1+$L$15))) -> 0 | AV49: =((LCC!$W$19*(LCC!$W$25/100))*(LCC!$W$26*(1+$M$15))) -> 0 | AW49: =((LCC!$W$19*(LCC!$W$25/100))*(LCC!$W$26*(1+$N$15))) -> 0 | AX49: 0
X51: ELECTRICITATE | Y51: 2014 | Z51: 2015 | AA51: 2016 | AB51: 2017 | AC51: 2018 | AD51: 2019 | AE51: 2020 | AF51: 2021 | AG51: 2022 | AH51: 2023 | AI51: 2024 | AJ51: Pret total combustibil pentru perioada vizata | AL51: ELECTRICITATE | AM51: 2014 | AN51: 2015 | AO51: 2016 | AP51: 2017 | AQ51: 2018 | AR51: 2019 | AS51: 2020 | AT51: 2021 | AU51: 2022 | AV51: 2023 | AW51: 2024 | AX51: Pret total combustibil pentru perioada vizata
X52: Produsul 1 | Y52: =((LCC!$E$19*(LCC!$E$21/100))*LCC!$E$22) -> 0 | Z52: =((LCC!$E$19*(LCC!$E$21/100))*(LCC!$E$22*(1+$E$18))) -> 0 | AA52: =((LCC!$E$19*(LCC!$E$21/100))*(LCC!$E$22*(1+$F$18))) -> 0 | AB52: =((LCC!$E$19*(LCC!$E$21/100))*(LCC!$E$22*(1+G$18))) -> 0 | AC52: =((LCC!$E$19*(LCC!$E$21/100))*(LCC!$E$22*(1+H$18))) -> 0 | AD52: =((LCC!$E$19*(LCC!$E$21/100))*(LCC!$E$22*(1+I$18))) -> 0 | AE52: =((LCC!$E$19*(LCC!$E$21/100))*(LCC!$E$22*(1+J$18))) -> 0 | AF52: =((LCC!$E$19*(LCC!$E$21/100))*(LCC!$E$22*(1+K$18))) -> 0 | AG52: =((LCC!$E$19*(LCC!$E$21/100))*(LCC!$E$22*(1+L$18))) -> 0 | AH52: =((LCC!$E$19*(LCC!$E$21/100))*(LCC!$E$22*(1+M$18))) -> 0 | AI52: =((LCC!$E$19*(LCC!$E$21/100))*(LCC!$E$22*(1+N$18))) -> 0 | AJ52: 0 | AL52: Produsul 1 | AM52: =((LCC!$E$19*(LCC!$E$25/100))*LCC!$E$26) -> 0 | AN52: =((LCC!$E$19*(LCC!$E$25/100))*(LCC!$E$26*(1+$E$18))) -> 0 | AO52: =((LCC!$E$19*(LCC!$E$25/100))*(LCC!$E$26*(1+$F$18))) -> 0 | AP52: =((LCC!$E$19*(LCC!$E$25/100))*(LCC!$E$26*(1+$G$18))) -> 0 | AQ52: =((LCC!$E$19*(LCC!$E$25/100))*(LCC!$E$26*(1+$H$18))) -> 0 | AR52: =((LCC!$E$19*(LCC!$E$25/100))*(LCC!$E$26*(1+$I$18))) -> 0 | AS52: =((LCC!$E$19*(LCC!$E$25/100))*(LCC!$E$26*(1+$J$18))) -> 0 | AT52: =((LCC!$E$19*(LCC!$E$25/100))*(LCC!$E$26*(1+$K$18))) -> 0 | AU52: =((LCC!$E$19*(LCC!$E$25/100))*(LCC!$E$26*(1+$L$18))) -> 0 | AV52: =((LCC!$E$19*(LCC!$E$25/100))*(LCC!$E$26*(1+$M$18))) -> 0 | AW52: =((LCC!$E$19*(LCC!$E$25/100))*(LCC!$E$26*(1+$N$18))) -> 0 | AX52: 0
X53: Produsul 2 | Y53: =((LCC!$G$19*(LCC!$G$21/100))*LCC!$G$22) -> 0 | Z53: =((LCC!$G$19*(LCC!$G$21/100))*(LCC!$G$22*(1+$E$18))) -> 0 | AA53: =((LCC!$G$19*(LCC!$G$21/100))*(LCC!$G$22*(1+$F$18))) -> 0 | AB53: =((LCC!$G$19*(LCC!$G$21/100))*(LCC!$G$22*(1+G$18))) -> 0 | AC53: =((LCC!$G$19*(LCC!$G$21/100))*(LCC!$G$22*(1+H$18))) -> 0 | AD53: =((LCC!$G$19*(LCC!$G$21/100))*(LCC!$G$22*(1+I$18))) -> 0 | AE53: =((LCC!$G$19*(LCC!$G$21/100))*(LCC!$G$22*(1+J$18))) -> 0 | AF53: =((LCC!$G$19*(LCC!$G$21/100))*(LCC!$G$22*(1+K$18))) -> 0 | AG53: =((LCC!$G$19*(LCC!$G$21/100))*(LCC!$G$22*(1+L$18))) -> 0 | AH53: =((LCC!$G$19*(LCC!$G$21/100))*(LCC!$G$22*(1+M$18))) -> 0 | AI53: =((LCC!$G$19*(LCC!$G$21/100))*(LCC!$G$22*(1+N$18))) -> 0 | AJ53: 0 | AL53: Produsul 2 | AM53: =((LCC!$G$19*(LCC!$G$25/100))*LCC!$G$26) -> 0 | AN53: =((LCC!$G$19*(LCC!$G$25/100))*(LCC!$G$26*(1+$E$18))) -> 0 | AO53: =((LCC!$G$19*(LCC!$G$25/100))*(LCC!$G$26*(1+$F$18))) -> 0 | AP53: =((LCC!$G$19*(LCC!$G$25/100))*(LCC!$G$26*(1+$G$18))) -> 0 | AQ53: =((LCC!$G$19*(LCC!$G$25/100))*(LCC!$G$26*(1+$H$18))) -> 0 | AR53: =((LCC!$G$19*(LCC!$G$25/100))*(LCC!$G$26*(1+$I$18))) -> 0 | AS53: =((LCC!$G$19*(LCC!$G$25/100))*(LCC!$G$26*(1+$J$18))) -> 0 | AT53: =((LCC!$G$19*(LCC!$G$25/100))*(LCC!$G$26*(1+$K$18))) -> 0 | AU53: =((LCC!$G$19*(LCC!$G$25/100))*(LCC!$G$26*(1+$L$18))) -> 0 | AV53: =((LCC!$G$19*(LCC!$G$25/100))*(LCC!$G$26*(1+$M$18))) -> 0 | AW53: =((LCC!$G$19*(LCC!$G$25/100))*(LCC!$G$26*(1+$N$18))) -> 0 | AX53: 0
X54: Produsul 3 | Y54: =((LCC!$I$19*(LCC!$I$21/100))*LCC!$I$22) -> 0 | Z54: =((LCC!$I$19*(LCC!$I$21/100))*(LCC!$I$22*(1+$E$18))) -> 0 | AA54: =((LCC!$I$19*(LCC!$I$21/100))*(LCC!$I$22*(1+$F$18))) -> 0 | AB54: =((LCC!$I$19*(LCC!$I$21/100))*(LCC!$I$22*(1+G$18))) -> 0 | AC54: =((LCC!$I$19*(LCC!$I$21/100))*(LCC!$I$22*(1+H$18))) -> 0 | AD54: =((LCC!$I$19*(LCC!$I$21/100))*(LCC!$I$22*(1+I$18))) -> 0 | AE54: =((LCC!$I$19*(LCC!$I$21/100))*(LCC!$I$22*(1+J$18))) -> 0 | AF54: =((LCC!$I$19*(LCC!$I$21/100))*(LCC!$I$22*(1+K$18))) -> 0 | AG54: =((LCC!$I$19*(LCC!$I$21/100))*(LCC!$I$22*(1+L$18))) -> 0 | AH54: =((LCC!$I$19*(LCC!$I$21/100))*(LCC!$I$22*(1+M$18))) -> 0 | AI54: =((LCC!$I$19*(LCC!$I$21/100))*(LCC!$I$22*(1+N$18))) -> 0 | AJ54: 0 | AL54: Produsul 3 | AM54: =((LCC!$I$19*(LCC!$I$25/100))*LCC!$I$26) -> 0 | AN54: =((LCC!$I$19*(LCC!$I$25/100))*(LCC!$I$26*(1+$E$18))) -> 0 | AO54: =((LCC!$I$19*(LCC!$I$25/100))*(LCC!$I$26*(1+$F$18))) -> 0 | AP54: =((LCC!$I$19*(LCC!$I$25/100))*(LCC!$I$26*(1+$G$18))) -> 0 | AQ54: =((LCC!$I$19*(LCC!$I$25/100))*(LCC!$I$26*(1+$H$18))) -> 0 | AR54: =((LCC!$I$19*(LCC!$I$25/100))*(LCC!$I$26*(1+$I$18))) -> 0 | AS54: =((LCC!$I$19*(LCC!$I$25/100))*(LCC!$I$26*(1+$J$18))) -> 0 | AT54: =((LCC!$I$19*(LCC!$I$25/100))*(LCC!$I$26*(1+$K$18))) -> 0 | AU54: =((LCC!$I$19*(LCC!$I$25/100))*(LCC!$I$26*(1+$L$18))) -> 0 | AV54: =((LCC!$I$19*(LCC!$I$25/100))*(LCC!$I$26*(1+$M$18))) -> 0 | AW54: =((LCC!$I$19*(LCC!$I$25/100))*(LCC!$I$26*(1+$N$18))) -> 0 | AX54: 0
X55: Produsul 4 | Y55: =((LCC!$K$19*(LCC!$K$21/100))*LCC!$K$22) -> 0 | Z55: =((LCC!$K$19*(LCC!$K$21/100))*(LCC!$K$22*(1+$E$18))) -> 0 | AA55: =((LCC!$K$19*(LCC!$K$21/100))*(LCC!$K$22*(1+$F$18))) -> 0 | AB55: =((LCC!$K$19*(LCC!$K$21/100))*(LCC!$K$22*(1+G$18))) -> 0 | AC55: =((LCC!$K$19*(LCC!$K$21/100))*(LCC!$K$22*(1+H$18))) -> 0 | AD55: =((LCC!$K$19*(LCC!$K$21/100))*(LCC!$K$22*(1+I$18))) -> 0 | AE55: =((LCC!$K$19*(LCC!$K$21/100))*(LCC!$K$22*(1+J$18))) -> 0 | AF55: =((LCC!$K$19*(LCC!$K$21/100))*(LCC!$K$22*(1+K$18))) -> 0 | AG55: =((LCC!$K$19*(LCC!$K$21/100))*(LCC!$K$22*(1+L$18))) -> 0 | AH55: =((LCC!$K$19*(LCC!$K$21/100))*(LCC!$K$22*(1+M$18))) -> 0 | AI55: =((LCC!$K$19*(LCC!$K$21/100))*(LCC!$K$22*(1+N$18))) -> 0 | AJ55: 0 | AL55: Produsul 4 | AM55: =((LCC!$K$19*(LCC!$K$25/100))*LCC!$K$26) -> 0 | AN55: =((LCC!$K$19*(LCC!$K$25/100))*(LCC!$K$26*(1+$E$18))) -> 0 | AO55: =((LCC!$K$19*(LCC!$K$25/100))*(LCC!$K$26*(1+$F$18))) -> 0 | AP55: =((LCC!$K$19*(LCC!$K$25/100))*(LCC!$K$26*(1+$G$18))) -> 0 | AQ55: =((LCC!$K$19*(LCC!$K$25/100))*(LCC!$K$26*(1+$H$18))) -> 0 | AR55: =((LCC!$K$19*(LCC!$K$25/100))*(LCC!$K$26*(1+$I$18))) -> 0 | AS55: =((LCC!$K$19*(LCC!$K$25/100))*(LCC!$K$26*(1+$J$18))) -> 0 | AT55: =((LCC!$K$19*(LCC!$K$25/100))*(LCC!$K$26*(1+$K$18))) -> 0 | AU55: =((LCC!$K$19*(LCC!$K$25/100))*(LCC!$K$26*(1+$L$18))) -> 0 | AV55: =((LCC!$K$19*(LCC!$K$25/100))*(LCC!$K$26*(1+$M$18))) -> 0 | AW55: =((LCC!$K$19*(LCC!$K$25/100))*(LCC!$K$26*(1+$N$18))) -> 0 | AX55: 0
X56: Produsul 5 | Y56: =((LCC!$M$19*(LCC!$M$21/100))*LCC!$M$22) -> 0 | Z56: =((LCC!$M$19*(LCC!$M$21/100))*(LCC!$M$22*(1+$E$18))) -> 0 | AA56: =((LCC!$M$19*(LCC!$M$21/100))*(LCC!$M$22*(1+$F$18))) -> 0 | AB56: =((LCC!$M$19*(LCC!$M$21/100))*(LCC!$M$22*(1+G$18))) -> 0 | AC56: =((LCC!$M$19*(LCC!$M$21/100))*(LCC!$M$22*(1+H$18))) -> 0 | AD56: =((LCC!$M$19*(LCC!$M$21/100))*(LCC!$M$22*(1+I$18))) -> 0 | AE56: =((LCC!$M$19*(LCC!$M$21/100))*(LCC!$M$22*(1+J$18))) -> 0 | AF56: =((LCC!$M$19*(LCC!$M$21/100))*(LCC!$M$22*(1+K$18))) -> 0 | AG56: =((LCC!$M$19*(LCC!$M$21/100))*(LCC!$M$22*(1+L$18))) -> 0 | AH56: =((LCC!$M$19*(LCC!$M$21/100))*(LCC!$M$22*(1+M$18))) -> 0 | AI56: =((LCC!$M$19*(LCC!$M$21/100))*(LCC!$M$22*(1+N$18))) -> 0 | AJ56: 0 | AL56: Produsul 5 | AM56: =((LCC!$M$19*(LCC!$M$25/100))*LCC!$M$26) -> 0 | AN56: =((LCC!$M$19*(LCC!$M$25/100))*(LCC!$M$26*(1+$E$18))) -> 0 | AO56: =((LCC!$M$19*(LCC!$M$25/100))*(LCC!$M$26*(1+$F$18))) -> 0 | AP56: =((LCC!$M$19*(LCC!$M$25/100))*(LCC!$M$26*(1+$G$18))) -> 0 | AQ56: =((LCC!$M$19*(LCC!$M$25/100))*(LCC!$M$26*(1+$H$18))) -> 0 | AR56: =((LCC!$M$19*(LCC!$M$25/100))*(LCC!$M$26*(1+$I$18))) -> 0 | AS56: =((LCC!$M$19*(LCC!$M$25/100))*(LCC!$M$26*(1+$J$18))) -> 0 | AT56: =((LCC!$M$19*(LCC!$M$25/100))*(LCC!$M$26*(1+$K$18))) -> 0 | AU56: =((LCC!$M$19*(LCC!$M$25/100))*(LCC!$M$26*(1+$L$18))) -> 0 | AV56: =((LCC!$M$19*(LCC!$M$25/100))*(LCC!$M$26*(1+$M$18))) -> 0 | AW56: =((LCC!$M$19*(LCC!$M$25/100))*(LCC!$M$26*(1+$N$18))) -> 0 | AX56: 0
X57: Produsul 6 | Y57: =((LCC!$O$19*(LCC!$O$21/100))*LCC!$O$22) -> 0 | Z57: =((LCC!$O$19*(LCC!$O$21/100))*(LCC!$O$22*(1+$E$18))) -> 0 | AA57: =((LCC!$O$19*(LCC!$O$21/100))*(LCC!$O$22*(1+$F$18))) -> 0 | AB57: =((LCC!$O$19*(LCC!$O$21/100))*(LCC!$O$22*(1+G$18))) -> 0 | AC57: =((LCC!$O$19*(LCC!$O$21/100))*(LCC!$O$22*(1+H$18))) -> 0 | AD57: =((LCC!$O$19*(LCC!$O$21/100))*(LCC!$O$22*(1+I$18))) -> 0 | AE57: =((LCC!$O$19*(LCC!$O$21/100))*(LCC!$O$22*(1+J$18))) -> 0 | AF57: =((LCC!$O$19*(LCC!$O$21/100))*(LCC!$O$22*(1+K$18))) -> 0 | AG57: =((LCC!$O$19*(LCC!$O$21/100))*(LCC!$O$22*(1+L$18))) -> 0 | AH57: =((LCC!$O$19*(LCC!$O$21/100))*(LCC!$O$22*(1+M$18))) -> 0 | AI57: =((LCC!$O$19*(LCC!$O$21/100))*(LCC!$O$22*(1+N$18))) -> 0 | AJ57: 0 | AL57: Produsul 6 | AM57: =((LCC!$O$19*(LCC!$O$25/100))*LCC!$O$26) -> 0 | AN57: =((LCC!$O$19*(LCC!$O$25/100))*(LCC!$O$26*(1+$E$18))) -> 0 | AO57: =((LCC!$O$19*(LCC!$O$25/100))*(LCC!$O$26*(1+$F$18))) -> 0 | AP57: =((LCC!$O$19*(LCC!$O$25/100))*(LCC!$O$26*(1+$G$18))) -> 0 | AQ57: =((LCC!$O$19*(LCC!$O$25/100))*(LCC!$O$26*(1+$H$18))) -> 0 | AR57: =((LCC!$O$19*(LCC!$O$25/100))*(LCC!$O$26*(1+$I$18))) -> 0 | AS57: =((LCC!$O$19*(LCC!$O$25/100))*(LCC!$O$26*(1+$J$18))) -> 0 | AT57: =((LCC!$O$19*(LCC!$O$25/100))*(LCC!$O$26*(1+$K$18))) -> 0 | AU57: =((LCC!$O$19*(LCC!$O$25/100))*(LCC!$O$26*(1+$L$18))) -> 0 | AV57: =((LCC!$O$19*(LCC!$O$25/100))*(LCC!$O$26*(1+$M$18))) -> 0 | AW57: =((LCC!$O$19*(LCC!$O$25/100))*(LCC!$O$26*(1+$N$18))) -> 0 | AX57: 0
X58: Produsul 7 | Y58: =((LCC!$Q$19*(LCC!$Q$21/100))*LCC!$Q$22) -> 0 | Z58: =((LCC!$Q$19*(LCC!$Q$21/100))*(LCC!$Q$22*(1+$E$18))) -> 0 | AA58: =((LCC!$Q$19*(LCC!$Q$21/100))*(LCC!$Q$22*(1+$F$18))) -> 0 | AB58: =((LCC!$Q$19*(LCC!$Q$21/100))*(LCC!$Q$22*(1+G$18))) -> 0 | AC58: =((LCC!$Q$19*(LCC!$Q$21/100))*(LCC!$Q$22*(1+H$18))) -> 0 | AD58: =((LCC!$Q$19*(LCC!$Q$21/100))*(LCC!$Q$22*(1+I$18))) -> 0 | AE58: =((LCC!$Q$19*(LCC!$Q$21/100))*(LCC!$Q$22*(1+J$18))) -> 0 | AF58: =((LCC!$Q$19*(LCC!$Q$21/100))*(LCC!$Q$22*(1+K$18))) -> 0 | AG58: =((LCC!$Q$19*(LCC!$Q$21/100))*(LCC!$Q$22*(1+L$18))) -> 0 | AH58: =((LCC!$Q$19*(LCC!$Q$21/100))*(LCC!$Q$22*(1+M$18))) -> 0 | AI58: =((LCC!$Q$19*(LCC!$Q$21/100))*(LCC!$Q$22*(1+N$18))) -> 0 | AJ58: 0 | AL58: Produsul 7 | AM58: =((LCC!$Q$19*(LCC!$Q$25/100))*LCC!$Q$26) -> 0 | AN58: =((LCC!$Q$19*(LCC!$Q$25/100))*(LCC!$Q$26*(1+$E$18))) -> 0 | AO58: =((LCC!$Q$19*(LCC!$Q$25/100))*(LCC!$Q$26*(1+$F$18))) -> 0 | AP58: =((LCC!$Q$19*(LCC!$Q$25/100))*(LCC!$Q$26*(1+$G$18))) -> 0 | AQ58: =((LCC!$Q$19*(LCC!$Q$25/100))*(LCC!$Q$26*(1+$H$18))) -> 0 | AR58: =((LCC!$Q$19*(LCC!$Q$25/100))*(LCC!$Q$26*(1+$I$18))) -> 0 | AS58: =((LCC!$Q$19*(LCC!$Q$25/100))*(LCC!$Q$26*(1+$J$18))) -> 0 | AT58: =((LCC!$Q$19*(LCC!$Q$25/100))*(LCC!$Q$26*(1+$K$18))) -> 0 | AU58: =((LCC!$Q$19*(LCC!$Q$25/100))*(LCC!$Q$26*(1+$L$18))) -> 0 | AV58: =((LCC!$Q$19*(LCC!$Q$25/100))*(LCC!$Q$26*(1+$M$18))) -> 0 | AW58: =((LCC!$Q$19*(LCC!$Q$25/100))*(LCC!$Q$26*(1+$N$18))) -> 0 | AX58: 0
X59: Produsul 8 | Y59: =((LCC!$S$19*(LCC!$S$21/100))*LCC!$S$22) -> 0 | Z59: =((LCC!$S$19*(LCC!$S$21/100))*(LCC!$S$22*(1+$E$18))) -> 0 | AA59: =((LCC!$S$19*(LCC!$S$21/100))*(LCC!$S$22*(1+$F$18))) -> 0 | AB59: =((LCC!$S$19*(LCC!$S$21/100))*(LCC!$S$22*(1+G$18))) -> 0 | AC59: =((LCC!$S$19*(LCC!$S$21/100))*(LCC!$S$22*(1+H$18))) -> 0 | AD59: =((LCC!$S$19*(LCC!$S$21/100))*(LCC!$S$22*(1+I$18))) -> 0 | AE59: =((LCC!$S$19*(LCC!$S$21/100))*(LCC!$S$22*(1+J$18))) -> 0 | AF59: =((LCC!$S$19*(LCC!$S$21/100))*(LCC!$S$22*(1+K$18))) -> 0 | AG59: =((LCC!$S$19*(LCC!$S$21/100))*(LCC!$S$22*(1+L$18))) -> 0 | AH59: =((LCC!$S$19*(LCC!$S$21/100))*(LCC!$S$22*(1+M$18))) -> 0 | AI59: =((LCC!$S$19*(LCC!$S$21/100))*(LCC!$S$22*(1+N$18))) -> 0 | AJ59: 0 | AL59: Produsul 8 | AM59: =((LCC!$S$19*(LCC!$S$25/100))*LCC!$S$26) -> 0 | AN59: =((LCC!$S$19*(LCC!$S$25/100))*(LCC!$S$26*(1+$E$18))) -> 0 | AO59: =((LCC!$S$19*(LCC!$S$25/100))*(LCC!$S$26*(1+$F$18))) -> 0 | AP59: =((LCC!$S$19*(LCC!$S$25/100))*(LCC!$S$26*(1+$G$18))) -> 0 | AQ59: =((LCC!$S$19*(LCC!$S$25/100))*(LCC!$S$26*(1+$H$18))) -> 0 | AR59: =((LCC!$S$19*(LCC!$S$25/100))*(LCC!$S$26*(1+$I$18))) -> 0 | AS59: =((LCC!$S$19*(LCC!$S$25/100))*(LCC!$S$26*(1+$J$18))) -> 0 | AT59: =((LCC!$S$19*(LCC!$S$25/100))*(LCC!$S$26*(1+$K$18))) -> 0 | AU59: =((LCC!$S$19*(LCC!$S$25/100))*(LCC!$S$26*(1+$L$18))) -> 0 | AV59: =((LCC!$S$19*(LCC!$S$25/100))*(LCC!$S$26*(1+$M$18))) -> 0 | AW59: =((LCC!$S$19*(LCC!$S$25/100))*(LCC!$S$26*(1+$N$18))) -> 0 | AX59: 0
X60: Produsul 9 | Y60: =((LCC!$U$19*(LCC!$U$21/100))*LCC!$U$22) -> 0 | Z60: =((LCC!$U$19*(LCC!$U$21/100))*(LCC!$U$22*(1+$E$18))) -> 0 | AA60: =((LCC!$U$19*(LCC!$U$21/100))*(LCC!$U$22*(1+$F$18))) -> 0 | AB60: =((LCC!$U$19*(LCC!$U$21/100))*(LCC!$U$22*(1+G$18))) -> 0 | AC60: =((LCC!$U$19*(LCC!$U$21/100))*(LCC!$U$22*(1+H$18))) -> 0 | AD60: =((LCC!$U$19*(LCC!$U$21/100))*(LCC!$U$22*(1+I$18))) -> 0 | AE60: =((LCC!$U$19*(LCC!$U$21/100))*(LCC!$U$22*(1+J$18))) -> 0 | AF60: =((LCC!$U$19*(LCC!$U$21/100))*(LCC!$U$22*(1+K$18))) -> 0 | AG60: =((LCC!$U$19*(LCC!$U$21/100))*(LCC!$U$22*(1+L$18))) -> 0 | AH60: =((LCC!$U$19*(LCC!$U$21/100))*(LCC!$U$22*(1+M$18))) -> 0 | AI60: =((LCC!$U$19*(LCC!$U$21/100))*(LCC!$U$22*(1+N$18))) -> 0 | AJ60: 0 | AL60: Produsul 9 | AM60: =((LCC!$U$19*(LCC!$U$25/100))*LCC!$U$26) -> 0 | AN60: =((LCC!$U$19*(LCC!$U$25/100))*(LCC!$U$26*(1+$E$18))) -> 0 | AO60: =((LCC!$U$19*(LCC!$U$25/100))*(LCC!$U$26*(1+$F$18))) -> 0 | AP60: =((LCC!$U$19*(LCC!$U$25/100))*(LCC!$U$26*(1+$G$18))) -> 0 | AQ60: =((LCC!$U$19*(LCC!$U$25/100))*(LCC!$U$26*(1+$H$18))) -> 0 | AR60: =((LCC!$U$19*(LCC!$U$25/100))*(LCC!$U$26*(1+$I$18))) -> 0 | AS60: =((LCC!$U$19*(LCC!$U$25/100))*(LCC!$U$26*(1+$J$18))) -> 0 | AT60: =((LCC!$U$19*(LCC!$U$25/100))*(LCC!$U$26*(1+$K$18))) -> 0 | AU60: =((LCC!$U$19*(LCC!$U$25/100))*(LCC!$U$26*(1+$L$18))) -> 0 | AV60: =((LCC!$U$19*(LCC!$U$25/100))*(LCC!$U$26*(1+$M$18))) -> 0 | AW60: =((LCC!$U$19*(LCC!$U$25/100))*(LCC!$U$26*(1+$N$18))) -> 0 | AX60: 0
X61: Produsul 10 | Y61: =((LCC!$W$19*(LCC!$W$21/100))*LCC!$W$22) -> 0 | Z61: =((LCC!$W$19*(LCC!$W$21/100))*(LCC!$W$22*(1+$E$18))) -> 0 | AA61: =((LCC!$W$19*(LCC!$W$21/100))*(LCC!$W$22*(1+$F$18))) -> 0 | AB61: =((LCC!$W$19*(LCC!$W$21/100))*(LCC!$W$22*(1+G$18))) -> 0 | AC61: =((LCC!$W$19*(LCC!$W$21/100))*(LCC!$W$22*(1+H$18))) -> 0 | AD61: =((LCC!$W$19*(LCC!$W$21/100))*(LCC!$W$22*(1+I$18))) -> 0 | AE61: =((LCC!$W$19*(LCC!$W$21/100))*(LCC!$W$22*(1+J$18))) -> 0 | AF61: =((LCC!$W$19*(LCC!$W$21/100))*(LCC!$W$22*(1+K$18))) -> 0 | AG61: =((LCC!$W$19*(LCC!$W$21/100))*(LCC!$W$22*(1+L$18))) -> 0 | AH61: =((LCC!$W$19*(LCC!$W$21/100))*(LCC!$W$22*(1+M$18))) -> 0 | AI61: =((LCC!$W$19*(LCC!$W$21/100))*(LCC!$W$22*(1+N$18))) -> 0 | AJ61: 0 | AL61: Produsul 10 | AM61: =((LCC!$W$19*(LCC!$W$25/100))*LCC!$W$26) -> 0 | AN61: =((LCC!$W$19*(LCC!$W$25/100))*(LCC!$W$26*(1+$E$18))) -> 0 | AO61: =((LCC!$W$19*(LCC!$W$25/100))*(LCC!$W$26*(1+$F$18))) -> 0 | AP61: =((LCC!$W$19*(LCC!$W$25/100))*(LCC!$W$26*(1+$G$18))) -> 0 | AQ61: =((LCC!$W$19*(LCC!$W$25/100))*(LCC!$W$26*(1+$H$18))) -> 0 | AR61: =((LCC!$W$19*(LCC!$W$25/100))*(LCC!$W$26*(1+$I$18))) -> 0 | AS61: =((LCC!$W$19*(LCC!$W$25/100))*(LCC!$W$26*(1+$J$18))) -> 0 | AT61: =((LCC!$W$19*(LCC!$W$25/100))*(LCC!$W$26*(1+$K$18))) -> 0 | AU61: =((LCC!$W$19*(LCC!$W$25/100))*(LCC!$W$26*(1+$L$18))) -> 0 | AV61: =((LCC!$W$19*(LCC!$W$25/100))*(LCC!$W$26*(1+$M$18))) -> 0 | AW61: =((LCC!$W$19*(LCC!$W$25/100))*(LCC!$W$26*(1+$N$18))) -> 0 | AX61: 0
X63: BIODIESEL | Y63: 2014 | Z63: 2015 | AA63: 2016 | AB63: 2017 | AC63: 2018 | AD63: 2019 | AE63: 2020 | AF63: 2021 | AG63: 2022 | AH63: 2023 | AI63: 2024 | AJ63: Total fuel price for period | AL63: BIODIESEL | AM63: 2014 | AN63: 2015 | AO63: 2016 | AP63: 2017 | AQ63: 2018 | AR63: 2019 | AS63: 2020 | AT63: 2021 | AU63: 2022 | AV63: 2023 | AW63: 2024 | AX63: Pret total combustibil pentru perioada vizata
X64: Produsul 1 | Y64: =((LCC!$E$19*(LCC!$E$21/100))*LCC!$E$22) -> 0 | Z64: =((LCC!$E$19*(LCC!$E$21/100))*(LCC!$E$22*(1+$E$21))) -> 0 | AA64: =((LCC!$E$19*(LCC!$E$21/100))*(LCC!$E$22*(1+$F$21))) -> 0 | AB64: =((LCC!$E$19*(LCC!$E$21/100))*(LCC!$E$22*(1+G$21))) -> 0 | AC64: =((LCC!$E$19*(LCC!$E$21/100))*(LCC!$E$22*(1+H$21))) -> 0 | AD64: =((LCC!$E$19*(LCC!$E$21/100))*(LCC!$E$22*(1+I$21))) -> 0 | AE64: =((LCC!$E$19*(LCC!$E$21/100))*(LCC!$E$22*(1+J$21))) -> 0 | AF64: =((LCC!$E$19*(LCC!$E$21/100))*(LCC!$E$22*(1+K$21))) -> 0 | AG64: =((LCC!$E$19*(LCC!$E$21/100))*(LCC!$E$22*(1+L$21))) -> 0 | AH64: =((LCC!$E$19*(LCC!$E$21/100))*(LCC!$E$22*(1+M$21))) -> 0 | AI64: =((LCC!$E$19*(LCC!$E$21/100))*(LCC!$E$22*(1+N$21))) -> 0 | AJ64: 0 | AL64: Produsul 1 | AM64: =((LCC!$E$19*(LCC!$E$25/100))*LCC!$E$26) -> 0 | AN64: =((LCC!$E$19*(LCC!$E$25/100))*(LCC!$E$26*(1+$E$21))) -> 0 | AO64: =((LCC!$E$19*(LCC!$E$25/100))*(LCC!$E$26*(1+$F$21))) -> 0 | AP64: =((LCC!$E$19*(LCC!$E$25/100))*(LCC!$E$26*(1+$G$21))) -> 0 | AQ64: =((LCC!$E$19*(LCC!$E$25/100))*(LCC!$E$26*(1+$H$21))) -> 0 | AR64: =((LCC!$E$19*(LCC!$E$25/100))*(LCC!$E$26*(1+$I$21))) -> 0 | AS64: =((LCC!$E$19*(LCC!$E$25/100))*(LCC!$E$26*(1+$J$21))) -> 0 | AT64: =((LCC!$E$19*(LCC!$E$25/100))*(LCC!$E$26*(1+$K$21))) -> 0 | AU64: =((LCC!$E$19*(LCC!$E$25/100))*(LCC!$E$26*(1+$L$21))) -> 0 | AV64: =((LCC!$E$19*(LCC!$E$25/100))*(LCC!$E$26*(1+$M$21))) -> 0 | AW64: =((LCC!$E$19*(LCC!$E$25/100))*(LCC!$E$26*(1+$N$21))) -> 0 | AX64: 0
X65: Produsul 2 | Y65: =((LCC!$G$19*(LCC!$G$21/100))*LCC!$G$22) -> 0 | Z65: =((LCC!$G$19*(LCC!$G$21/100))*(LCC!$G$22*(1+$E$21))) -> 0 | AA65: =((LCC!$G$19*(LCC!$G$21/100))*(LCC!$G$22*(1+$F$21))) -> 0 | AB65: =((LCC!$G$19*(LCC!$G$21/100))*(LCC!$G$22*(1+G$21))) -> 0 | AC65: =((LCC!$G$19*(LCC!$G$21/100))*(LCC!$G$22*(1+H$21))) -> 0 | AD65: =((LCC!$G$19*(LCC!$G$21/100))*(LCC!$G$22*(1+I$21))) -> 0 | AE65: =((LCC!$G$19*(LCC!$G$21/100))*(LCC!$G$22*(1+J$21))) -> 0 | AF65: =((LCC!$G$19*(LCC!$G$21/100))*(LCC!$G$22*(1+K$21))) -> 0 | AG65: =((LCC!$G$19*(LCC!$G$21/100))*(LCC!$G$22*(1+L$21))) -> 0 | AH65: =((LCC!$G$19*(LCC!$G$21/100))*(LCC!$G$22*(1+M$21))) -> 0 | AI65: =((LCC!$G$19*(LCC!$G$21/100))*(LCC!$G$22*(1+N$21))) -> 0 | AJ65: 0 | AL65: Produsul 2 | AM65: =((LCC!$G$19*(LCC!$G$25/100))*LCC!$G$26) -> 0 | AN65: =((LCC!$G$19*(LCC!$G$25/100))*(LCC!$G$26*(1+$E$21))) -> 0 | AO65: =((LCC!$G$19*(LCC!$G$25/100))*(LCC!$G$26*(1+$F$21))) -> 0 | AP65: =((LCC!$G$19*(LCC!$G$25/100))*(LCC!$G$26*(1+$G$21))) -> 0 | AQ65: =((LCC!$G$19*(LCC!$G$25/100))*(LCC!$G$26*(1+$H$21))) -> 0 | AR65: =((LCC!$G$19*(LCC!$G$25/100))*(LCC!$G$26*(1+$I$21))) -> 0 | AS65: =((LCC!$G$19*(LCC!$G$25/100))*(LCC!$G$26*(1+$J$21))) -> 0 | AT65: =((LCC!$G$19*(LCC!$G$25/100))*(LCC!$G$26*(1+$K$21))) -> 0 | AU65: =((LCC!$G$19*(LCC!$G$25/100))*(LCC!$G$26*(1+$L$21))) -> 0 | AV65: =((LCC!$G$19*(LCC!$G$25/100))*(LCC!$G$26*(1+$M$21))) -> 0 | AW65: =((LCC!$G$19*(LCC!$G$25/100))*(LCC!$G$26*(1+$N$21))) -> 0 | AX65: 0
X66: Produsul 3 | Y66: =((LCC!$I$19*(LCC!$I$21/100))*LCC!$I$22) -> 0 | Z66: =((LCC!$I$19*(LCC!$I$21/100))*(LCC!$I$22*(1+$E$21))) -> 0 | AA66: =((LCC!$I$19*(LCC!$I$21/100))*(LCC!$I$22*(1+$F$21))) -> 0 | AB66: =((LCC!$I$19*(LCC!$I$21/100))*(LCC!$I$22*(1+G$21))) -> 0 | AC66: =((LCC!$I$19*(LCC!$I$21/100))*(LCC!$I$22*(1+H$21))) -> 0 | AD66: =((LCC!$I$19*(LCC!$I$21/100))*(LCC!$I$22*(1+I$21))) -> 0 | AE66: =((LCC!$I$19*(LCC!$I$21/100))*(LCC!$I$22*(1+J$21))) -> 0 | AF66: =((LCC!$I$19*(LCC!$I$21/100))*(LCC!$I$22*(1+K$21))) -> 0 | AG66: =((LCC!$I$19*(LCC!$I$21/100))*(LCC!$I$22*(1+L$21))) -> 0 | AH66: =((LCC!$I$19*(LCC!$I$21/100))*(LCC!$I$22*(1+M$21))) -> 0 | AI66: =((LCC!$I$19*(LCC!$I$21/100))*(LCC!$I$22*(1+N$21))) -> 0 | AJ66: 0 | AL66: Produsul 3 | AM66: =((LCC!$I$19*(LCC!$I$25/100))*LCC!$I$26) -> 0 | AN66: =((LCC!$I$19*(LCC!$I$25/100))*(LCC!$I$26*(1+$E$21))) -> 0 | AO66: =((LCC!$I$19*(LCC!$I$25/100))*(LCC!$I$26*(1+$F$21))) -> 0 | AP66: =((LCC!$I$19*(LCC!$I$25/100))*(LCC!$I$26*(1+$G$21))) -> 0 | AQ66: =((LCC!$I$19*(LCC!$I$25/100))*(LCC!$I$26*(1+$H$21))) -> 0 | AR66: =((LCC!$I$19*(LCC!$I$25/100))*(LCC!$I$26*(1+$I$21))) -> 0 | AS66: =((LCC!$I$19*(LCC!$I$25/100))*(LCC!$I$26*(1+$J$21))) -> 0 | AT66: =((LCC!$I$19*(LCC!$I$25/100))*(LCC!$I$26*(1+$K$21))) -> 0 | AU66: =((LCC!$I$19*(LCC!$I$25/100))*(LCC!$I$26*(1+$L$21))) -> 0 | AV66: =((LCC!$I$19*(LCC!$I$25/100))*(LCC!$I$26*(1+$M$21))) -> 0 | AW66: =((LCC!$I$19*(LCC!$I$25/100))*(LCC!$I$26*(1+$N$21))) -> 0 | AX66: 0
X67: Produsul 4 | Y67: =((LCC!$K$19*(LCC!$K$21/100))*LCC!$K$22) -> 0 | Z67: =((LCC!$K$19*(LCC!$K$21/100))*(LCC!$K$22*(1+$E$21))) -> 0 | AA67: =((LCC!$K$19*(LCC!$K$21/100))*(LCC!$K$22*(1+$F$21))) -> 0 | AB67: =((LCC!$K$19*(LCC!$K$21/100))*(LCC!$K$22*(1+G$21))) -> 0 | AC67: =((LCC!$K$19*(LCC!$K$21/100))*(LCC!$K$22*(1+H$21))) -> 0 | AD67: =((LCC!$K$19*(LCC!$K$21/100))*(LCC!$K$22*(1+I$21))) -> 0 | AE67: =((LCC!$K$19*(LCC!$K$21/100))*(LCC!$K$22*(1+J$21))) -> 0 | AF67: =((LCC!$K$19*(LCC!$K$21/100))*(LCC!$K$22*(1+K$21))) -> 0 | AG67: =((LCC!$K$19*(LCC!$K$21/100))*(LCC!$K$22*(1+L$21))) -> 0 | AH67: =((LCC!$K$19*(LCC!$K$21/100))*(LCC!$K$22*(1+M$21))) -> 0 | AI67: =((LCC!$K$19*(LCC!$K$21/100))*(LCC!$K$22*(1+N$21))) -> 0 | AJ67: 0 | AL67: Produsul 4 | AM67: =((LCC!$K$19*(LCC!$K$25/100))*LCC!$K$26) -> 0 | AN67: =((LCC!$K$19*(LCC!$K$25/100))*(LCC!$K$26*(1+$E$21))) -> 0 | AO67: =((LCC!$K$19*(LCC!$K$25/100))*(LCC!$K$26*(1+$F$21))) -> 0 | AP67: =((LCC!$K$19*(LCC!$K$25/100))*(LCC!$K$26*(1+$G$21))) -> 0 | AQ67: =((LCC!$K$19*(LCC!$K$25/100))*(LCC!$K$26*(1+$H$21))) -> 0 | AR67: =((LCC!$K$19*(LCC!$K$25/100))*(LCC!$K$26*(1+$I$21))) -> 0 | AS67: =((LCC!$K$19*(LCC!$K$25/100))*(LCC!$K$26*(1+$J$21))) -> 0 | AT67: =((LCC!$K$19*(LCC!$K$25/100))*(LCC!$K$26*(1+$K$21))) -> 0 | AU67: =((LCC!$K$19*(LCC!$K$25/100))*(LCC!$K$26*(1+$L$21))) -> 0 | AV67: =((LCC!$K$19*(LCC!$K$25/100))*(LCC!$K$26*(1+$M$21))) -> 0 | AW67: =((LCC!$K$19*(LCC!$K$25/100))*(LCC!$K$26*(1+$N$21))) -> 0 | AX67: 0
X68: Produsul 5 | Y68: =((LCC!$M$19*(LCC!$M$21/100))*LCC!$M$22) -> 0 | Z68: =((LCC!$M$19*(LCC!$M$21/100))*(LCC!$M$22*(1+$E$21))) -> 0 | AA68: =((LCC!$M$19*(LCC!$M$21/100))*(LCC!$M$22*(1+$F$21))) -> 0 | AB68: =((LCC!$M$19*(LCC!$M$21/100))*(LCC!$M$22*(1+G$21))) -> 0 | AC68: =((LCC!$M$19*(LCC!$M$21/100))*(LCC!$M$22*(1+H$21))) -> 0 | AD68: =((LCC!$M$19*(LCC!$M$21/100))*(LCC!$M$22*(1+I$21))) -> 0 | AE68: =((LCC!$M$19*(LCC!$M$21/100))*(LCC!$M$22*(1+J$21))) -> 0 | AF68: =((LCC!$M$19*(LCC!$M$21/100))*(LCC!$M$22*(1+K$21))) -> 0 | AG68: =((LCC!$M$19*(LCC!$M$21/100))*(LCC!$M$22*(1+L$21))) -> 0 | AH68: =((LCC!$M$19*(LCC!$M$21/100))*(LCC!$M$22*(1+M$21))) -> 0 | AI68: =((LCC!$M$19*(LCC!$M$21/100))*(LCC!$M$22*(1+N$21))) -> 0 | AJ68: 0 | AL68: Produsul 5 | AM68: =((LCC!$M$19*(LCC!$M$25/100))*LCC!$M$26) -> 0 | AN68: =((LCC!$M$19*(LCC!$M$25/100))*(LCC!$M$26*(1+$E$21))) -> 0 | AO68: =((LCC!$M$19*(LCC!$M$25/100))*(LCC!$M$26*(1+$F$21))) -> 0 | AP68: =((LCC!$M$19*(LCC!$M$25/100))*(LCC!$M$26*(1+$G$21))) -> 0 | AQ68: =((LCC!$M$19*(LCC!$M$25/100))*(LCC!$M$26*(1+$H$21))) -> 0 | AR68: =((LCC!$M$19*(LCC!$M$25/100))*(LCC!$M$26*(1+$I$21))) -> 0 | AS68: =((LCC!$M$19*(LCC!$M$25/100))*(LCC!$M$26*(1+$J$21))) -> 0 | AT68: =((LCC!$M$19*(LCC!$M$25/100))*(LCC!$M$26*(1+$K$21))) -> 0 | AU68: =((LCC!$M$19*(LCC!$M$25/100))*(LCC!$M$26*(1+$L$21))) -> 0 | AV68: =((LCC!$M$19*(LCC!$M$25/100))*(LCC!$M$26*(1+$M$21))) -> 0 | AW68: =((LCC!$M$19*(LCC!$M$25/100))*(LCC!$M$26*(1+$N$21))) -> 0 | AX68: 0
X69: Produsul 6 | Y69: =((LCC!$O$19*(LCC!$O$21/100))*LCC!$O$22) -> 0 | Z69: =((LCC!$O$19*(LCC!$O$21/100))*(LCC!$O$22*(1+$E$21))) -> 0 | AA69: =((LCC!$O$19*(LCC!$O$21/100))*(LCC!$O$22*(1+$F$21))) -> 0 | AB69: =((LCC!$O$19*(LCC!$O$21/100))*(LCC!$O$22*(1+G$21))) -> 0 | AC69: =((LCC!$O$19*(LCC!$O$21/100))*(LCC!$O$22*(1+H$21))) -> 0 | AD69: =((LCC!$O$19*(LCC!$O$21/100))*(LCC!$O$22*(1+I$21))) -> 0 | AE69: =((LCC!$O$19*(LCC!$O$21/100))*(LCC!$O$22*(1+J$21))) -> 0 | AF69: =((LCC!$O$19*(LCC!$O$21/100))*(LCC!$O$22*(1+K$21))) -> 0 | AG69: =((LCC!$O$19*(LCC!$O$21/100))*(LCC!$O$22*(1+L$21))) -> 0 | AH69: =((LCC!$O$19*(LCC!$O$21/100))*(LCC!$O$22*(1+M$21))) -> 0 | AI69: =((LCC!$O$19*(LCC!$O$21/100))*(LCC!$O$22*(1+N$21))) -> 0 | AJ69: 0 | AL69: Produsul 6 | AM69: =((LCC!$O$19*(LCC!$O$25/100))*LCC!$O$26) -> 0 | AN69: =((LCC!$O$19*(LCC!$O$25/100))*(LCC!$O$26*(1+$E$21))) -> 0 | AO69: =((LCC!$O$19*(LCC!$O$25/100))*(LCC!$O$26*(1+$F$21))) -> 0 | AP69: =((LCC!$O$19*(LCC!$O$25/100))*(LCC!$O$26*(1+$G$21))) -> 0 | AQ69: =((LCC!$O$19*(LCC!$O$25/100))*(LCC!$O$26*(1+$H$21))) -> 0 | AR69: =((LCC!$O$19*(LCC!$O$25/100))*(LCC!$O$26*(1+$I$21))) -> 0 | AS69: =((LCC!$O$19*(LCC!$O$25/100))*(LCC!$O$26*(1+$J$21))) -> 0 | AT69: =((LCC!$O$19*(LCC!$O$25/100))*(LCC!$O$26*(1+$K$21))) -> 0 | AU69: =((LCC!$O$19*(LCC!$O$25/100))*(LCC!$O$26*(1+$L$21))) -> 0 | AV69: =((LCC!$O$19*(LCC!$O$25/100))*(LCC!$O$26*(1+$M$21))) -> 0 | AW69: =((LCC!$O$19*(LCC!$O$25/100))*(LCC!$O$26*(1+$N$21))) -> 0 | AX69: 0
X70: Produsul 7 | Y70: =((LCC!$Q$19*(LCC!$Q$21/100))*LCC!$Q$22) -> 0 | Z70: =((LCC!$Q$19*(LCC!$Q$21/100))*(LCC!$Q$22*(1+$E$21))) -> 0 | AA70: =((LCC!$Q$19*(LCC!$Q$21/100))*(LCC!$Q$22*(1+$F$21))) -> 0 | AB70: =((LCC!$Q$19*(LCC!$Q$21/100))*(LCC!$Q$22*(1+G$21))) -> 0 | AC70: =((LCC!$Q$19*(LCC!$Q$21/100))*(LCC!$Q$22*(1+H$21))) -> 0 | AD70: =((LCC!$Q$19*(LCC!$Q$21/100))*(LCC!$Q$22*(1+I$21))) -> 0 | AE70: =((LCC!$Q$19*(LCC!$Q$21/100))*(LCC!$Q$22*(1+J$21))) -> 0 | AF70: =((LCC!$Q$19*(LCC!$Q$21/100))*(LCC!$Q$22*(1+K$21))) -> 0 | AG70: =((LCC!$Q$19*(LCC!$Q$21/100))*(LCC!$Q$22*(1+L$21))) -> 0 | AH70: =((LCC!$Q$19*(LCC!$Q$21/100))*(LCC!$Q$22*(1+M$21))) -> 0 | AI70: =((LCC!$Q$19*(LCC!$Q$21/100))*(LCC!$Q$22*(1+N$21))) -> 0 | AJ70: 0 | AL70: Produsul 7 | AM70: =((LCC!$Q$19*(LCC!$Q$25/100))*LCC!$Q$26) -> 0 | AN70: =((LCC!$Q$19*(LCC!$Q$25/100))*(LCC!$Q$26*(1+$E$21))) -> 0 | AO70: =((LCC!$Q$19*(LCC!$Q$25/100))*(LCC!$Q$26*(1+$F$21))) -> 0 | AP70: =((LCC!$Q$19*(LCC!$Q$25/100))*(LCC!$Q$26*(1+$G$21))) -> 0 | AQ70: =((LCC!$Q$19*(LCC!$Q$25/100))*(LCC!$Q$26*(1+$H$21))) -> 0 | AR70: =((LCC!$Q$19*(LCC!$Q$25/100))*(LCC!$Q$26*(1+$I$21))) -> 0 | AS70: =((LCC!$Q$19*(LCC!$Q$25/100))*(LCC!$Q$26*(1+$J$21))) -> 0 | AT70: =((LCC!$Q$19*(LCC!$Q$25/100))*(LCC!$Q$26*(1+$K$21))) -> 0 | AU70: =((LCC!$Q$19*(LCC!$Q$25/100))*(LCC!$Q$26*(1+$L$21))) -> 0 | AV70: =((LCC!$Q$19*(LCC!$Q$25/100))*(LCC!$Q$26*(1+$M$21))) -> 0 | AW70: =((LCC!$Q$19*(LCC!$Q$25/100))*(LCC!$Q$26*(1+$N$21))) -> 0 | AX70: 0
X71: Produsul 8 | Y71: =((LCC!$S$19*(LCC!$S$21/100))*LCC!$S$22) -> 0 | Z71: =((LCC!$S$19*(LCC!$S$21/100))*(LCC!$S$22*(1+$E$21))) -> 0 | AA71: =((LCC!$S$19*(LCC!$S$21/100))*(LCC!$S$22*(1+$F$21))) -> 0 | AB71: =((LCC!$S$19*(LCC!$S$21/100))*(LCC!$S$22*(1+G$21))) -> 0 | AC71: =((LCC!$S$19*(LCC!$S$21/100))*(LCC!$S$22*(1+H$21))) -> 0 | AD71: =((LCC!$S$19*(LCC!$S$21/100))*(LCC!$S$22*(1+I$21))) -> 0 | AE71: =((LCC!$S$19*(LCC!$S$21/100))*(LCC!$S$22*(1+J$21))) -> 0 | AF71: =((LCC!$S$19*(LCC!$S$21/100))*(LCC!$S$22*(1+K$21))) -> 0 | AG71: =((LCC!$S$19*(LCC!$S$21/100))*(LCC!$S$22*(1+L$21))) -> 0 | AH71: =((LCC!$S$19*(LCC!$S$21/100))*(LCC!$S$22*(1+M$21))) -> 0 | AI71: =((LCC!$S$19*(LCC!$S$21/100))*(LCC!$S$22*(1+N$21))) -> 0 | AJ71: 0 | AL71: Produsul 8 | AM71: =((LCC!$S$19*(LCC!$S$25/100))*LCC!$S$26) -> 0 | AN71: =((LCC!$S$19*(LCC!$S$25/100))*(LCC!$S$26*(1+$E$21))) -> 0 | AO71: =((LCC!$S$19*(LCC!$S$25/100))*(LCC!$S$26*(1+$F$21))) -> 0 | AP71: =((LCC!$S$19*(LCC!$S$25/100))*(LCC!$S$26*(1+$G$21))) -> 0 | AQ71: =((LCC!$S$19*(LCC!$S$25/100))*(LCC!$S$26*(1+$H$21))) -> 0 | AR71: =((LCC!$S$19*(LCC!$S$25/100))*(LCC!$S$26*(1+$I$21))) -> 0 | AS71: =((LCC!$S$19*(LCC!$S$25/100))*(LCC!$S$26*(1+$J$21))) -> 0 | AT71: =((LCC!$S$19*(LCC!$S$25/100))*(LCC!$S$26*(1+$K$21))) -> 0 | AU71: =((LCC!$S$19*(LCC!$S$25/100))*(LCC!$S$26*(1+$L$21))) -> 0 | AV71: =((LCC!$S$19*(LCC!$S$25/100))*(LCC!$S$26*(1+$M$21))) -> 0 | AW71: =((LCC!$S$19*(LCC!$S$25/100))*(LCC!$S$26*(1+$N$21))) -> 0 | AX71: 0
X72: Produsul 9 | Y72: =((LCC!$U$19*(LCC!$U$21/100))*LCC!$U$22) -> 0 | Z72: =((LCC!$U$19*(LCC!$U$21/100))*(LCC!$U$22*(1+$E$21))) -> 0 | AA72: =((LCC!$U$19*(LCC!$U$21/100))*(LCC!$U$22*(1+$F$21))) -> 0 | AB72: =((LCC!$U$19*(LCC!$U$21/100))*(LCC!$U$22*(1+G$21))) -> 0 | AC72: =((LCC!$U$19*(LCC!$U$21/100))*(LCC!$U$22*(1+H$21))) -> 0 | AD72: =((LCC!$U$19*(LCC!$U$21/100))*(LCC!$U$22*(1+I$21))) -> 0 | AE72: =((LCC!$U$19*(LCC!$U$21/100))*(LCC!$U$22*(1+J$21))) -> 0 | AF72: =((LCC!$U$19*(LCC!$U$21/100))*(LCC!$U$22*(1+K$21))) -> 0 | AG72: =((LCC!$U$19*(LCC!$U$21/100))*(LCC!$U$22*(1+L$21))) -> 0 | AH72: =((LCC!$U$19*(LCC!$U$21/100))*(LCC!$U$22*(1+M$21))) -> 0 | AI72: =((LCC!$U$19*(LCC!$U$21/100))*(LCC!$U$22*(1+N$21))) -> 0 | AJ72: 0 | AL72: Produsul 9 | AM72: =((LCC!$U$19*(LCC!$U$25/100))*LCC!$U$26) -> 0 | AN72: =((LCC!$U$19*(LCC!$U$25/100))*(LCC!$U$26*(1+$E$21))) -> 0 | AO72: =((LCC!$U$19*(LCC!$U$25/100))*(LCC!$U$26*(1+$F$21))) -> 0 | AP72: =((LCC!$U$19*(LCC!$U$25/100))*(LCC!$U$26*(1+$G$21))) -> 0 | AQ72: =((LCC!$U$19*(LCC!$U$25/100))*(LCC!$U$26*(1+$H$21))) -> 0 | AR72: =((LCC!$U$19*(LCC!$U$25/100))*(LCC!$U$26*(1+$I$21))) -> 0 | AS72: =((LCC!$U$19*(LCC!$U$25/100))*(LCC!$U$26*(1+$J$21))) -> 0 | AT72: =((LCC!$U$19*(LCC!$U$25/100))*(LCC!$U$26*(1+$K$21))) -> 0 | AU72: =((LCC!$U$19*(LCC!$U$25/100))*(LCC!$U$26*(1+$L$21))) -> 0 | AV72: =((LCC!$U$19*(LCC!$U$25/100))*(LCC!$U$26*(1+$M$21))) -> 0 | AW72: =((LCC!$U$19*(LCC!$U$25/100))*(LCC!$U$26*(1+$N$21))) -> 0 | AX72: 0
X73: Produsul 10 | Y73: =((LCC!$W$19*(LCC!$W$21/100))*LCC!$W$22) -> 0 | Z73: =((LCC!$W$19*(LCC!$W$21/100))*(LCC!$W$22*(1+$E$21))) -> 0 | AA73: =((LCC!$W$19*(LCC!$W$21/100))*(LCC!$W$22*(1+$F$21))) -> 0 | AB73: =((LCC!$W$19*(LCC!$W$21/100))*(LCC!$W$22*(1+G$21))) -> 0 | AC73: =((LCC!$W$19*(LCC!$W$21/100))*(LCC!$W$22*(1+H$21))) -> 0 | AD73: =((LCC!$W$19*(LCC!$W$21/100))*(LCC!$W$22*(1+I$21))) -> 0 | AE73: =((LCC!$W$19*(LCC!$W$21/100))*(LCC!$W$22*(1+J$21))) -> 0 | AF73: =((LCC!$W$19*(LCC!$W$21/100))*(LCC!$W$22*(1+K$21))) -> 0 | AG73: =((LCC!$W$19*(LCC!$W$21/100))*(LCC!$W$22*(1+L$21))) -> 0 | AH73: =((LCC!$W$19*(LCC!$W$21/100))*(LCC!$W$22*(1+M$21))) -> 0 | AI73: =((LCC!$W$19*(LCC!$W$21/100))*(LCC!$W$22*(1+N$21))) -> 0 | AJ73: 0 | AL73: Produsul 10 | AM73: =((LCC!$W$19*(LCC!$W$25/100))*LCC!$W$26) -> 0 | AN73: =((LCC!$W$19*(LCC!$W$25/100))*(LCC!$W$26*(1+$E$21))) -> 0 | AO73: =((LCC!$W$19*(LCC!$W$25/100))*(LCC!$W$26*(1+$F$21))) -> 0 | AP73: =((LCC!$W$19*(LCC!$W$25/100))*(LCC!$W$26*(1+$G$21))) -> 0 | AQ73: =((LCC!$W$19*(LCC!$W$25/100))*(LCC!$W$26*(1+$H$21))) -> 0 | AR73: =((LCC!$W$19*(LCC!$W$25/100))*(LCC!$W$26*(1+$I$21))) -> 0 | AS73: =((LCC!$W$19*(LCC!$W$25/100))*(LCC!$W$26*(1+$J$21))) -> 0 | AT73: =((LCC!$W$19*(LCC!$W$25/100))*(LCC!$W$26*(1+$K$21))) -> 0 | AU73: =((LCC!$W$19*(LCC!$W$25/100))*(LCC!$W$26*(1+$L$21))) -> 0 | AV73: =((LCC!$W$19*(LCC!$W$25/100))*(LCC!$W$26*(1+$M$21))) -> 0 | AW73: =((LCC!$W$19*(LCC!$W$25/100))*(LCC!$W$26*(1+$N$21))) -> 0 | AX73: 0
X75: GAZ NATURAL | Y75: 2014 | Z75: 2015 | AA75: 2016 | AB75: 2017 | AC75: 2018 | AD75: 2019 | AE75: 2020 | AF75: 2021 | AG75: 2022 | AH75: 2023 | AI75: 2024 | AJ75: Pret total combustibil pentru perioada vizata | AL75: GAZ NATURAL | AM75: 2014 | AN75: 2015 | AO75: 2016 | AP75: 2017 | AQ75: 2018 | AR75: 2019 | AS75: 2020 | AT75: 2021 | AU75: 2022 | AV75: 2023 | AW75: 2024 | AX75: Pret total combustibil pentru perioada vizata
X76: Produsul 1 | Y76: =((LCC!$E$19*(LCC!$E$21/100))*LCC!$E$22) -> 0 | Z76: =((LCC!$E$19*(LCC!$E$21/100))*(LCC!$E$22*(1+$E$24))) -> 0 | AA76: =((LCC!$E$19*(LCC!$E$21/100))*(LCC!$E$22*(1+$F$24))) -> 0 | AB76: =((LCC!$E$19*(LCC!$E$21/100))*(LCC!$E$22*(1+G$24))) -> 0 | AC76: =((LCC!$E$19*(LCC!$E$21/100))*(LCC!$E$22*(1+H$24))) -> 0 | AD76: =((LCC!$E$19*(LCC!$E$21/100))*(LCC!$E$22*(1+I$24))) -> 0 | AE76: =((LCC!$E$19*(LCC!$E$21/100))*(LCC!$E$22*(1+J$24))) -> 0 | AF76: =((LCC!$E$19*(LCC!$E$21/100))*(LCC!$E$22*(1+K$24))) -> 0 | AG76: =((LCC!$E$19*(LCC!$E$21/100))*(LCC!$E$22*(1+L$24))) -> 0 | AH76: =((LCC!$E$19*(LCC!$E$21/100))*(LCC!$E$22*(1+M$24))) -> 0 | AI76: =((LCC!$E$19*(LCC!$E$21/100))*(LCC!$E$22*(1+N$24))) -> 0 | AJ76: 0 | AL76: Produsul 1 | AM76: =((LCC!$E$19*(LCC!$E$25/100))*LCC!$E$26) -> 0 | AN76: =((LCC!$E$19*(LCC!$E$25/100))*(LCC!$E$26*(1+$E$24))) -> 0 | AO76: =((LCC!$E$19*(LCC!$E$25/100))*(LCC!$E$26*(1+$F$24))) -> 0 | AP76: =((LCC!$E$19*(LCC!$E$25/100))*(LCC!$E$26*(1+$G$24))) -> 0 | AQ76: =((LCC!$E$19*(LCC!$E$25/100))*(LCC!$E$26*(1+$H$24))) -> 0 | AR76: =((LCC!$E$19*(LCC!$E$25/100))*(LCC!$E$26*(1+$I$24))) -> 0 | AS76: =((LCC!$E$19*(LCC!$E$25/100))*(LCC!$E$26*(1+$J$24))) -> 0 | AT76: =((LCC!$E$19*(LCC!$E$25/100))*(LCC!$E$26*(1+$K$24))) -> 0 | AU76: =((LCC!$E$19*(LCC!$E$25/100))*(LCC!$E$26*(1+$L$24))) -> 0 | AV76: =((LCC!$E$19*(LCC!$E$25/100))*(LCC!$E$26*(1+$M$24))) -> 0 | AW76: =((LCC!$E$19*(LCC!$E$25/100))*(LCC!$E$26*(1+$N$24))) -> 0 | AX76: 0
X77: Produsul 2 | Y77: =((LCC!$G$19*(LCC!$G$21/100))*LCC!$G$22) -> 0 | Z77: =((LCC!$G$19*(LCC!$G$21/100))*(LCC!$G$22*(1+$E$24))) -> 0 | AA77: =((LCC!$G$19*(LCC!$G$21/100))*(LCC!$G$22*(1+$F$24))) -> 0 | AB77: =((LCC!$G$19*(LCC!$G$21/100))*(LCC!$G$22*(1+G$24))) -> 0 | AC77: =((LCC!$G$19*(LCC!$G$21/100))*(LCC!$G$22*(1+H$24))) -> 0 | AD77: =((LCC!$G$19*(LCC!$G$21/100))*(LCC!$G$22*(1+I$24))) -> 0 | AE77: =((LCC!$G$19*(LCC!$G$21/100))*(LCC!$G$22*(1+J$24))) -> 0 | AF77: =((LCC!$G$19*(LCC!$G$21/100))*(LCC!$G$22*(1+K$24))) -> 0 | AG77: =((LCC!$G$19*(LCC!$G$21/100))*(LCC!$G$22*(1+L$24))) -> 0 | AH77: =((LCC!$G$19*(LCC!$G$21/100))*(LCC!$G$22*(1+M$24))) -> 0 | AI77: =((LCC!$G$19*(LCC!$G$21/100))*(LCC!$G$22*(1+N$24))) -> 0 | AJ77: 0 | AL77: Produsul 2 | AM77: =((LCC!$G$19*(LCC!$G$25/100))*LCC!$G$26) -> 0 | AN77: =((LCC!$G$19*(LCC!$G$25/100))*(LCC!$G$26*(1+$E$24))) -> 0 | AO77: =((LCC!$G$19*(LCC!$G$25/100))*(LCC!$G$26*(1+$F$24))) -> 0 | AP77: =((LCC!$G$19*(LCC!$G$25/100))*(LCC!$G$26*(1+$G$24))) -> 0 | AQ77: =((LCC!$G$19*(LCC!$G$25/100))*(LCC!$G$26*(1+$H$24))) -> 0 | AR77: =((LCC!$G$19*(LCC!$G$25/100))*(LCC!$G$26*(1+$I$24))) -> 0 | AS77: =((LCC!$G$19*(LCC!$G$25/100))*(LCC!$G$26*(1+$J$24))) -> 0 | AT77: =((LCC!$G$19*(LCC!$G$25/100))*(LCC!$G$26*(1+$K$24))) -> 0 | AU77: =((LCC!$G$19*(LCC!$G$25/100))*(LCC!$G$26*(1+$L$24))) -> 0 | AV77: =((LCC!$G$19*(LCC!$G$25/100))*(LCC!$G$26*(1+$M$24))) -> 0 | AW77: =((LCC!$G$19*(LCC!$G$25/100))*(LCC!$G$26*(1+$N$24))) -> 0 | AX77: 0
X78: Produsul 3 | Y78: =((LCC!$I$19*(LCC!$I$21/100))*LCC!$I$22) -> 0 | Z78: =((LCC!$I$19*(LCC!$I$21/100))*(LCC!$I$22*(1+$E$24))) -> 0 | AA78: =((LCC!$I$19*(LCC!$I$21/100))*(LCC!$I$22*(1+$F$24))) -> 0 | AB78: =((LCC!$I$19*(LCC!$I$21/100))*(LCC!$I$22*(1+G$24))) -> 0 | AC78: =((LCC!$I$19*(LCC!$I$21/100))*(LCC!$I$22*(1+H$24))) -> 0 | AD78: =((LCC!$I$19*(LCC!$I$21/100))*(LCC!$I$22*(1+I$24))) -> 0 | AE78: =((LCC!$I$19*(LCC!$I$21/100))*(LCC!$I$22*(1+J$24))) -> 0 | AF78: =((LCC!$I$19*(LCC!$I$21/100))*(LCC!$I$22*(1+K$24))) -> 0 | AG78: =((LCC!$I$19*(LCC!$I$21/100))*(LCC!$I$22*(1+L$24))) -> 0 | AH78: =((LCC!$I$19*(LCC!$I$21/100))*(LCC!$I$22*(1+M$24))) -> 0 | AI78: =((LCC!$I$19*(LCC!$I$21/100))*(LCC!$I$22*(1+N$24))) -> 0 | AJ78: 0 | AL78: Produsul 3 | AM78: =((LCC!$I$19*(LCC!$I$25/100))*LCC!$I$26) -> 0 | AN78: =((LCC!$I$19*(LCC!$I$25/100))*(LCC!$I$26*(1+$E$24))) -> 0 | AO78: =((LCC!$I$19*(LCC!$I$25/100))*(LCC!$I$26*(1+$F$24))) -> 0 | AP78: =((LCC!$I$19*(LCC!$I$25/100))*(LCC!$I$26*(1+$G$24))) -> 0 | AQ78: =((LCC!$I$19*(LCC!$I$25/100))*(LCC!$I$26*(1+$H$24))) -> 0 | AR78: =((LCC!$I$19*(LCC!$I$25/100))*(LCC!$I$26*(1+$I$24))) -> 0 | AS78: =((LCC!$I$19*(LCC!$I$25/100))*(LCC!$I$26*(1+$J$24))) -> 0 | AT78: =((LCC!$I$19*(LCC!$I$25/100))*(LCC!$I$26*(1+$K$24))) -> 0 | AU78: =((LCC!$I$19*(LCC!$I$25/100))*(LCC!$I$26*(1+$L$24))) -> 0 | AV78: =((LCC!$I$19*(LCC!$I$25/100))*(LCC!$I$26*(1+$M$24))) -> 0 | AW78: =((LCC!$I$19*(LCC!$I$25/100))*(LCC!$I$26*(1+$N$24))) -> 0 | AX78: 0
X79: Produsul 4 | Y79: =((LCC!$K$19*(LCC!$K$21/100))*LCC!$K$22) -> 0 | Z79: =((LCC!$K$19*(LCC!$K$21/100))*(LCC!$K$22*(1+$E$24))) -> 0 | AA79: =((LCC!$K$19*(LCC!$K$21/100))*(LCC!$K$22*(1+$F$24))) -> 0 | AB79: =((LCC!$K$19*(LCC!$K$21/100))*(LCC!$K$22*(1+G$24))) -> 0 | AC79: =((LCC!$K$19*(LCC!$K$21/100))*(LCC!$K$22*(1+H$24))) -> 0 | AD79: =((LCC!$K$19*(LCC!$K$21/100))*(LCC!$K$22*(1+I$24))) -> 0 | AE79: =((LCC!$K$19*(LCC!$K$21/100))*(LCC!$K$22*(1+J$24))) -> 0 | AF79: =((LCC!$K$19*(LCC!$K$21/100))*(LCC!$K$22*(1+K$24))) -> 0 | AG79: =((LCC!$K$19*(LCC!$K$21/100))*(LCC!$K$22*(1+L$24))) -> 0 | AH79: =((LCC!$K$19*(LCC!$K$21/100))*(LCC!$K$22*(1+M$24))) -> 0 | AI79: =((LCC!$K$19*(LCC!$K$21/100))*(LCC!$K$22*(1+N$24))) -> 0 | AJ79: 0 | AL79: Produsul 4 | AM79: =((LCC!$K$19*(LCC!$K$25/100))*LCC!$K$26) -> 0 | AN79: =((LCC!$K$19*(LCC!$K$25/100))*(LCC!$K$26*(1+$E$24))) -> 0 | AO79: =((LCC!$K$19*(LCC!$K$25/100))*(LCC!$K$26*(1+$F$24))) -> 0 | AP79: =((LCC!$K$19*(LCC!$K$25/100))*(LCC!$K$26*(1+$G$24))) -> 0 | AQ79: =((LCC!$K$19*(LCC!$K$25/100))*(LCC!$K$26*(1+$H$24))) -> 0 | AR79: =((LCC!$K$19*(LCC!$K$25/100))*(LCC!$K$26*(1+$I$24))) -> 0 | AS79: =((LCC!$K$19*(LCC!$K$25/100))*(LCC!$K$26*(1+$J$24))) -> 0 | AT79: =((LCC!$K$19*(LCC!$K$25/100))*(LCC!$K$26*(1+$K$24))) -> 0 | AU79: =((LCC!$K$19*(LCC!$K$25/100))*(LCC!$K$26*(1+$L$24))) -> 0 | AV79: =((LCC!$K$19*(LCC!$K$25/100))*(LCC!$K$26*(1+$M$24))) -> 0 | AW79: =((LCC!$K$19*(LCC!$K$25/100))*(LCC!$K$26*(1+$N$24))) -> 0 | AX79: 0
X80: Produsul 5 | Y80: =((LCC!$M$19*(LCC!$M$21/100))*LCC!$M$22) -> 0 | Z80: =((LCC!$M$19*(LCC!$M$21/100))*(LCC!$M$22*(1+$E$24))) -> 0 | AA80: =((LCC!$M$19*(LCC!$M$21/100))*(LCC!$M$22*(1+$F$24))) -> 0 | AB80: =((LCC!$M$19*(LCC!$M$21/100))*(LCC!$M$22*(1+G$24))) -> 0 | AC80: =((LCC!$M$19*(LCC!$M$21/100))*(LCC!$M$22*(1+H$24))) -> 0 | AD80: =((LCC!$M$19*(LCC!$M$21/100))*(LCC!$M$22*(1+I$24))) -> 0 | AE80: =((LCC!$M$19*(LCC!$M$21/100))*(LCC!$M$22*(1+J$24))) -> 0 | AF80: =((LCC!$M$19*(LCC!$M$21/100))*(LCC!$M$22*(1+K$24))) -> 0 | AG80: =((LCC!$M$19*(LCC!$M$21/100))*(LCC!$M$22*(1+L$24))) -> 0 | AH80: =((LCC!$M$19*(LCC!$M$21/100))*(LCC!$M$22*(1+M$24))) -> 0 | AI80: =((LCC!$M$19*(LCC!$M$21/100))*(LCC!$M$22*(1+N$24))) -> 0 | AJ80: 0 | AL80: Produsul 5 | AM80: =((LCC!$M$19*(LCC!$M$25/100))*LCC!$M$26) -> 0 | AN80: =((LCC!$M$19*(LCC!$M$25/100))*(LCC!$M$26*(1+$E$24))) -> 0 | AO80: =((LCC!$M$19*(LCC!$M$25/100))*(LCC!$M$26*(1+$F$24))) -> 0 | AP80: =((LCC!$M$19*(LCC!$M$25/100))*(LCC!$M$26*(1+$G$24))) -> 0 | AQ80: =((LCC!$M$19*(LCC!$M$25/100))*(LCC!$M$26*(1+$H$24))) -> 0 | AR80: =((LCC!$M$19*(LCC!$M$25/100))*(LCC!$M$26*(1+$I$24))) -> 0 | AS80: =((LCC!$M$19*(LCC!$M$25/100))*(LCC!$M$26*(1+$J$24))) -> 0 | AT80: =((LCC!$M$19*(LCC!$M$25/100))*(LCC!$M$26*(1+$K$24))) -> 0 | AU80: =((LCC!$M$19*(LCC!$M$25/100))*(LCC!$M$26*(1+$L$24))) -> 0 | AV80: =((LCC!$M$19*(LCC!$M$25/100))*(LCC!$M$26*(1+$M$24))) -> 0 | AW80: =((LCC!$M$19*(LCC!$M$25/100))*(LCC!$M$26*(1+$N$24))) -> 0 | AX80: 0
X81: Produsul 6 | Y81: =((LCC!$O$19*(LCC!$O$21/100))*LCC!$O$22) -> 0 | Z81: =((LCC!$O$19*(LCC!$O$21/100))*(LCC!$O$22*(1+$E$24))) -> 0 | AA81: =((LCC!$O$19*(LCC!$O$21/100))*(LCC!$O$22*(1+$F$24))) -> 0 | AB81: =((LCC!$O$19*(LCC!$O$21/100))*(LCC!$O$22*(1+G$24))) -> 0 | AC81: =((LCC!$O$19*(LCC!$O$21/100))*(LCC!$O$22*(1+H$24))) -> 0 | AD81: =((LCC!$O$19*(LCC!$O$21/100))*(LCC!$O$22*(1+I$24))) -> 0 | AE81: =((LCC!$O$19*(LCC!$O$21/100))*(LCC!$O$22*(1+J$24))) -> 0 | AF81: =((LCC!$O$19*(LCC!$O$21/100))*(LCC!$O$22*(1+K$24))) -> 0 | AG81: =((LCC!$O$19*(LCC!$O$21/100))*(LCC!$O$22*(1+L$24))) -> 0 | AH81: =((LCC!$O$19*(LCC!$O$21/100))*(LCC!$O$22*(1+M$24))) -> 0 | AI81: =((LCC!$O$19*(LCC!$O$21/100))*(LCC!$O$22*(1+N$24))) -> 0 | AJ81: 0 | AL81: Produsul 6 | AM81: =((LCC!$O$19*(LCC!$O$25/100))*LCC!$O$26) -> 0 | AN81: =((LCC!$O$19*(LCC!$O$25/100))*(LCC!$O$26*(1+$E$24))) -> 0 | AO81: =((LCC!$O$19*(LCC!$O$25/100))*(LCC!$O$26*(1+$F$24))) -> 0 | AP81: =((LCC!$O$19*(LCC!$O$25/100))*(LCC!$O$26*(1+$G$24))) -> 0 | AQ81: =((LCC!$O$19*(LCC!$O$25/100))*(LCC!$O$26*(1+$H$24))) -> 0 | AR81: =((LCC!$O$19*(LCC!$O$25/100))*(LCC!$O$26*(1+$I$24))) -> 0 | AS81: =((LCC!$O$19*(LCC!$O$25/100))*(LCC!$O$26*(1+$J$24))) -> 0 | AT81: =((LCC!$O$19*(LCC!$O$25/100))*(LCC!$O$26*(1+$K$24))) -> 0 | AU81: =((LCC!$O$19*(LCC!$O$25/100))*(LCC!$O$26*(1+$L$24))) -> 0 | AV81: =((LCC!$O$19*(LCC!$O$25/100))*(LCC!$O$26*(1+$M$24))) -> 0 | AW81: =((LCC!$O$19*(LCC!$O$25/100))*(LCC!$O$26*(1+$N$24))) -> 0 | AX81: 0
X82: Produsul 7 | Y82: =((LCC!$Q$19*(LCC!$Q$21/100))*LCC!$Q$22) -> 0 | Z82: =((LCC!$Q$19*(LCC!$Q$21/100))*(LCC!$Q$22*(1+$E$24))) -> 0 | AA82: =((LCC!$Q$19*(LCC!$Q$21/100))*(LCC!$Q$22*(1+$F$24))) -> 0 | AB82: =((LCC!$Q$19*(LCC!$Q$21/100))*(LCC!$Q$22*(1+G$24))) -> 0 | AC82: =((LCC!$Q$19*(LCC!$Q$21/100))*(LCC!$Q$22*(1+H$24))) -> 0 | AD82: =((LCC!$Q$19*(LCC!$Q$21/100))*(LCC!$Q$22*(1+I$24))) -> 0 | AE82: =((LCC!$Q$19*(LCC!$Q$21/100))*(LCC!$Q$22*(1+J$24))) -> 0 | AF82: =((LCC!$Q$19*(LCC!$Q$21/100))*(LCC!$Q$22*(1+K$24))) -> 0 | AG82: =((LCC!$Q$19*(LCC!$Q$21/100))*(LCC!$Q$22*(1+L$24))) -> 0 | AH82: =((LCC!$Q$19*(LCC!$Q$21/100))*(LCC!$Q$22*(1+M$24))) -> 0 | AI82: =((LCC!$Q$19*(LCC!$Q$21/100))*(LCC!$Q$22*(1+N$24))) -> 0 | AJ82: 0 | AL82: Produsul 7 | AM82: =((LCC!$Q$19*(LCC!$Q$25/100))*LCC!$Q$26) -> 0 | AN82: =((LCC!$Q$19*(LCC!$Q$25/100))*(LCC!$Q$26*(1+$E$24))) -> 0 | AO82: =((LCC!$Q$19*(LCC!$Q$25/100))*(LCC!$Q$26*(1+$F$24))) -> 0 | AP82: =((LCC!$Q$19*(LCC!$Q$25/100))*(LCC!$Q$26*(1+$G$24))) -> 0 | AQ82: =((LCC!$Q$19*(LCC!$Q$25/100))*(LCC!$Q$26*(1+$H$24))) -> 0 | AR82: =((LCC!$Q$19*(LCC!$Q$25/100))*(LCC!$Q$26*(1+$I$24))) -> 0 | AS82: =((LCC!$Q$19*(LCC!$Q$25/100))*(LCC!$Q$26*(1+$J$24))) -> 0 | AT82: =((LCC!$Q$19*(LCC!$Q$25/100))*(LCC!$Q$26*(1+$K$24))) -> 0 | AU82: =((LCC!$Q$19*(LCC!$Q$25/100))*(LCC!$Q$26*(1+$L$24))) -> 0 | AV82: =((LCC!$Q$19*(LCC!$Q$25/100))*(LCC!$Q$26*(1+$M$24))) -> 0 | AW82: =((LCC!$Q$19*(LCC!$Q$25/100))*(LCC!$Q$26*(1+$N$24))) -> 0 | AX82: 0
X83: Produsul 8 | Y83: =((LCC!$S$19*(LCC!$S$21/100))*LCC!$S$22) -> 0 | Z83: =((LCC!$S$19*(LCC!$S$21/100))*(LCC!$S$22*(1+$E$24))) -> 0 | AA83: =((LCC!$S$19*(LCC!$S$21/100))*(LCC!$S$22*(1+$F$24))) -> 0 | AB83: =((LCC!$S$19*(LCC!$S$21/100))*(LCC!$S$22*(1+G$24))) -> 0 | AC83: =((LCC!$S$19*(LCC!$S$21/100))*(LCC!$S$22*(1+H$24))) -> 0 | AD83: =((LCC!$S$19*(LCC!$S$21/100))*(LCC!$S$22*(1+I$24))) -> 0 | AE83: =((LCC!$S$19*(LCC!$S$21/100))*(LCC!$S$22*(1+J$24))) -> 0 | AF83: =((LCC!$S$19*(LCC!$S$21/100))*(LCC!$S$22*(1+K$24))) -> 0 | AG83: =((LCC!$S$19*(LCC!$S$21/100))*(LCC!$S$22*(1+L$24))) -> 0 | AH83: =((LCC!$S$19*(LCC!$S$21/100))*(LCC!$S$22*(1+M$24))) -> 0 | AI83: =((LCC!$S$19*(LCC!$S$21/100))*(LCC!$S$22*(1+N$24))) -> 0 | AJ83: 0 | AL83: Produsul 8 | AM83: =((LCC!$S$19*(LCC!$S$25/100))*LCC!$S$26) -> 0 | AN83: =((LCC!$S$19*(LCC!$S$25/100))*(LCC!$S$26*(1+$E$24))) -> 0 | AO83: =((LCC!$S$19*(LCC!$S$25/100))*(LCC!$S$26*(1+$F$24))) -> 0 | AP83: =((LCC!$S$19*(LCC!$S$25/100))*(LCC!$S$26*(1+$G$24))) -> 0 | AQ83: =((LCC!$S$19*(LCC!$S$25/100))*(LCC!$S$26*(1+$H$24))) -> 0 | AR83: =((LCC!$S$19*(LCC!$S$25/100))*(LCC!$S$26*(1+$I$24))) -> 0 | AS83: =((LCC!$S$19*(LCC!$S$25/100))*(LCC!$S$26*(1+$J$24))) -> 0 | AT83: =((LCC!$S$19*(LCC!$S$25/100))*(LCC!$S$26*(1+$K$24))) -> 0 | AU83: =((LCC!$S$19*(LCC!$S$25/100))*(LCC!$S$26*(1+$L$24))) -> 0 | AV83: =((LCC!$S$19*(LCC!$S$25/100))*(LCC!$S$26*(1+$M$24))) -> 0 | AW83: =((LCC!$S$19*(LCC!$S$25/100))*(LCC!$S$26*(1+$N$24))) -> 0 | AX83: 0
X84: Produsul 9 | Y84: =((LCC!$U$19*(LCC!$U$21/100))*LCC!$U$22) -> 0 | Z84: =((LCC!$U$19*(LCC!$U$21/100))*(LCC!$U$22*(1+$E$24))) -> 0 | AA84: =((LCC!$U$19*(LCC!$U$21/100))*(LCC!$U$22*(1+$F$24))) -> 0 | AB84: =((LCC!$U$19*(LCC!$U$21/100))*(LCC!$U$22*(1+G$24))) -> 0 | AC84: =((LCC!$U$19*(LCC!$U$21/100))*(LCC!$U$22*(1+H$24))) -> 0 | AD84: =((LCC!$U$19*(LCC!$U$21/100))*(LCC!$U$22*(1+I$24))) -> 0 | AE84: =((LCC!$U$19*(LCC!$U$21/100))*(LCC!$U$22*(1+J$24))) -> 0 | AF84: =((LCC!$U$19*(LCC!$U$21/100))*(LCC!$U$22*(1+K$24))) -> 0 | AG84: =((LCC!$U$19*(LCC!$U$21/100))*(LCC!$U$22*(1+L$24))) -> 0 | AH84: =((LCC!$U$19*(LCC!$U$21/100))*(LCC!$U$22*(1+M$24))) -> 0 | AI84: =((LCC!$U$19*(LCC!$U$21/100))*(LCC!$U$22*(1+N$24))) -> 0 | AJ84: 0 | AL84: Produsul 9 | AM84: =((LCC!$U$19*(LCC!$U$25/100))*LCC!$U$26) -> 0 | AN84: =((LCC!$U$19*(LCC!$U$25/100))*(LCC!$U$26*(1+$E$24))) -> 0 | AO84: =((LCC!$U$19*(LCC!$U$25/100))*(LCC!$U$26*(1+$F$24))) -> 0 | AP84: =((LCC!$U$19*(LCC!$U$25/100))*(LCC!$U$26*(1+$G$24))) -> 0 | AQ84: =((LCC!$U$19*(LCC!$U$25/100))*(LCC!$U$26*(1+$H$24))) -> 0 | AR84: =((LCC!$U$19*(LCC!$U$25/100))*(LCC!$U$26*(1+$I$24))) -> 0 | AS84: =((LCC!$U$19*(LCC!$U$25/100))*(LCC!$U$26*(1+$J$24))) -> 0 | AT84: =((LCC!$U$19*(LCC!$U$25/100))*(LCC!$U$26*(1+$K$24))) -> 0 | AU84: =((LCC!$U$19*(LCC!$U$25/100))*(LCC!$U$26*(1+$L$24))) -> 0 | AV84: =((LCC!$U$19*(LCC!$U$25/100))*(LCC!$U$26*(1+$M$24))) -> 0 | AW84: =((LCC!$U$19*(LCC!$U$25/100))*(LCC!$U$26*(1+$N$24))) -> 0 | AX84: 0
X85: Produsul 10 | Y85: =((LCC!$W$19*(LCC!$W$21/100))*LCC!$W$22) -> 0 | Z85: =((LCC!$W$19*(LCC!$W$21/100))*(LCC!$W$22*(1+$E$24))) -> 0 | AA85: =((LCC!$W$19*(LCC!$W$21/100))*(LCC!$W$22*(1+$F$24))) -> 0 | AB85: =((LCC!$W$19*(LCC!$W$21/100))*(LCC!$W$22*(1+G$24))) -> 0 | AC85: =((LCC!$W$19*(LCC!$W$21/100))*(LCC!$W$22*(1+H$24))) -> 0 | AD85: =((LCC!$W$19*(LCC!$W$21/100))*(LCC!$W$22*(1+I$24))) -> 0 | AE85: =((LCC!$W$19*(LCC!$W$21/100))*(LCC!$W$22*(1+J$24))) -> 0 | AF85: =((LCC!$W$19*(LCC!$W$21/100))*(LCC!$W$22*(1+K$24))) -> 0 | AG85: =((LCC!$W$19*(LCC!$W$21/100))*(LCC!$W$22*(1+L$24))) -> 0 | AH85: =((LCC!$W$19*(LCC!$W$21/100))*(LCC!$W$22*(1+M$24))) -> 0 | AI85: =((LCC!$W$19*(LCC!$W$21/100))*(LCC!$W$22*(1+N$24))) -> 0 | AJ85: 0 | AL85: Produsul 10 | AM85: =((LCC!$W$19*(LCC!$W$25/100))*LCC!$W$26) -> 0 | AN85: =((LCC!$W$19*(LCC!$W$25/100))*(LCC!$W$26*(1+$E$24))) -> 0 | AO85: =((LCC!$W$19*(LCC!$W$25/100))*(LCC!$W$26*(1+$F$24))) -> 0 | AP85: =((LCC!$W$19*(LCC!$W$25/100))*(LCC!$W$26*(1+$G$24))) -> 0 | AQ85: =((LCC!$W$19*(LCC!$W$25/100))*(LCC!$W$26*(1+$H$24))) -> 0 | AR85: =((LCC!$W$19*(LCC!$W$25/100))*(LCC!$W$26*(1+$I$24))) -> 0 | AS85: =((LCC!$W$19*(LCC!$W$25/100))*(LCC!$W$26*(1+$J$24))) -> 0 | AT85: =((LCC!$W$19*(LCC!$W$25/100))*(LCC!$W$26*(1+$K$24))) -> 0 | AU85: =((LCC!$W$19*(LCC!$W$25/100))*(LCC!$W$26*(1+$L$24))) -> 0 | AV85: =((LCC!$W$19*(LCC!$W$25/100))*(LCC!$W$26*(1+$M$24))) -> 0 | AW85: =((LCC!$W$19*(LCC!$W$25/100))*(LCC!$W$26*(1+$N$24))) -> 0 | AX85: 0
X87: BATERIE | Y87: 2014 | Z87: 2015 | AA87: 2016 | AB87: 2017 | AC87: 2018 | AD87: 2019 | AE87: 2020 | AF87: 2021 | AG87: 2022 | AH87: 2023 | AI87: 2024 | AJ87: Cost inlocuiri pentru perioada vizata | AL87: BATERIE | AM87: 2014 | AN87: 2015 | AO87: 2016 | AP87: 2017 | AQ87: 2018 | AR87: 2019 | AS87: 2020 | AT87: 2021 | AU87: 2022 | AV87: 2023 | AW87: 2024 | AX87: Cost inlocuiri pentru perioada vizata
X88: Produsul 1 | Y88: 0 | Z88: =IF(LCC!$E$28=1,LCC!$E$27,0) -> 0 | AA88: =IF(OR(LCC!$E$28=1,$E$24=2),LCC!$E$27,0) -> 0 | AB88: =IF(OR(LCC!$E$28=1,LCC!$E$28=3),LCC!$E$27,0) -> 0 | AC88: =IF(OR(LCC!$E$28=1,LCC!$E$28=2,LCC!$E$28=4),LCC!$E$27,0) -> 0 | AD88: =IF(OR(LCC!$E$28=1,LCC!$E$28=5),LCC!$E$27,0) -> 0 | AE88: =IF(OR(LCC!$E$28=1,LCC!$E$28=2,LCC!$E$28=3,LCC!$E$28=6),LCC!$E$27,0) -> 0 | AF88: =IF(OR(LCC!$E$28=1,LCC!$E$28=7),LCC!$E$27,0) -> 0 | AG88: =IF(OR(LCC!$E$28=1,LCC!$E$28=2,LCC!$E$28=4,LCC!$E$28=8),LCC!$E$27,0) -> 0 | AH88: =IF(OR(LCC!$E$28=1,LCC!$E$28=3,LCC!$E$28=9),LCC!$E$27,0) -> 0 | AI88: =IF(OR(LCC!$E$28=1,LCC!$E$28=2,LCC!$E$28=5,LCC!$E$28=10),LCC!$E$27,0) -> 0 | AJ88: =SUM(Y88:INDEX(Y88:AI88,LCC!$E$6)) -> 0 | AL88: Produsul 1 | AM88: 0 | AN88: =IF(LCC!$E$28=1,LCC!$E$27,0) -> 0 | AO88: =IF(OR(LCC!$E$28=1,$E$24=2),LCC!$E$27,0) -> 0 | AP88: =IF(OR(LCC!$E$28=1,LCC!$E$28=3),LCC!$E$27,0) -> 0 | AQ88: =IF(OR(LCC!$E$28=1,LCC!$E$28=2,LCC!$E$28=4),LCC!$E$27,0) -> 0 | AR88: =IF(OR(LCC!$E$28=1,LCC!$E$28=5),LCC!$E$27,0) -> 0 | AS88: =IF(OR(LCC!$E$28=1,LCC!$E$28=2,LCC!$E$28=3,LCC!$E$28=6),LCC!$E$27,0) -> 0 | AT88: =IF(OR(LCC!$E$28=1,LCC!$E$28=7),LCC!$E$27,0) -> 0 | AU88: =IF(OR(LCC!$E$28=1,LCC!$E$28=2,LCC!$E$28=4,LCC!$E$28=8),LCC!$E$27,0) -> 0 | AV88: =IF(OR(LCC!$E$28=1,LCC!$E$28=3,LCC!$E$28=9),LCC!$E$27,0) -> 0 | AW88: =IF(OR(LCC!$E$28=1,LCC!$E$28=2,LCC!$E$28=5,LCC!$E$28=10),LCC!$E$27,0) -> 0 | AX88: =SUM(AM88:INDEX(AM88:AW88,LCC!$E$6)) -> 0
X89: Produsul 2 | Y89: 0 | Z89: =IF(LCC!$G$28=1,LCC!$G$27,0) -> 0 | AA89: =IF(OR(LCC!$G$28=1,$E$24=2),LCC!$G$27,0) -> 0 | AB89: =IF(OR(LCC!$G$28=1,LCC!$G$28=3),LCC!$G$27,0) -> 0 | AC89: =IF(OR(LCC!$G$28=1,LCC!$G$28=2,LCC!$G$28=4),LCC!$G$27,0) -> 0 | AD89: =IF(OR(LCC!$G$28=1,LCC!$G$28=5),LCC!$G$27,0) -> 0 | AE89: =IF(OR(LCC!$G$28=1,LCC!$G$28=2,LCC!$G$28=3,LCC!$G$28=6),LCC!$G$27,0) -> 0 | AF89: =IF(OR(LCC!$G$28=1,LCC!$G$28=7),LCC!$G$27,0) -> 0 | AG89: =IF(OR(LCC!$G$28=1,LCC!$G$28=2,LCC!$G$28=4,LCC!$G$28=8),LCC!$G$27,0) -> 0 | AH89: =IF(OR(LCC!$G$28=1,LCC!$G$28=3,LCC!$G$28=9),LCC!$G$27,0) -> 0 | AI89: =IF(OR(LCC!$G$28=1,LCC!$G$28=2,LCC!$G$28=5,LCC!$G$28=10),LCC!$G$27,0) -> 0 | AJ89: =SUM(Y89:INDEX(Y89:AI89,LCC!$E$6)) -> 0 | AL89: Produsul 2 | AM89: 0 | AN89: =IF(LCC!$G$28=1,LCC!$G$27,0) -> 0 | AO89: =IF(OR(LCC!$G$28=1,$E$24=2),LCC!$G$27,0) -> 0 | AP89: =IF(OR(LCC!$G$28=1,LCC!$G$28=3),LCC!$G$27,0) -> 0 | AQ89: =IF(OR(LCC!$G$28=1,LCC!$G$28=2,LCC!$G$28=4),LCC!$G$27,0) -> 0 | AR89: =IF(OR(LCC!$G$28=1,LCC!$G$28=5),LCC!$G$27,0) -> 0 | AS89: =IF(OR(LCC!$G$28=1,LCC!$G$28=2,LCC!$G$28=3,LCC!$G$28=6),LCC!$G$27,0) -> 0 | AT89: =IF(OR(LCC!$G$28=1,LCC!$G$28=7),LCC!$G$27,0) -> 0 | AU89: =IF(OR(LCC!$G$28=1,LCC!$G$28=2,LCC!$G$28=4,LCC!$G$28=8),LCC!$G$27,0) -> 0 | AV89: =IF(OR(LCC!$G$28=1,LCC!$G$28=3,LCC!$G$28=9),LCC!$G$27,0) -> 0 | AW89: =IF(OR(LCC!$G$28=1,LCC!$G$28=2,LCC!$G$28=5,LCC!$G$28=10),LCC!$G$27,0) -> 0 | AX89: =SUM(AM89:INDEX(AM89:AW89,LCC!$E$6)) -> 0
X90: Produsul 3 | Y90: 0 | Z90: =IF(LCC!$I$28=1,LCC!$I$27,0) -> 0 | AA90: =IF(OR(LCC!$I$28=1,$E$24=2),LCC!$I$27,0) -> 0 | AB90: =IF(OR(LCC!$I$28=1,LCC!$I$28=3),LCC!$I$27,0) -> 0 | AC90: =IF(OR(LCC!$I$28=1,LCC!$I$28=2,LCC!$I$28=4),LCC!$I$27,0) -> 0 | AD90: =IF(OR(LCC!$I$28=1,LCC!$I$28=5),LCC!$I$27,0) -> 0 | AE90: =IF(OR(LCC!$I$28=1,LCC!$I$28=2,LCC!$I$28=3,LCC!$I$28=6),LCC!$I$27,0) -> 0 | AF90: =IF(OR(LCC!$I$28=1,LCC!$I$28=7),LCC!$I$27,0) -> 0 | AG90: =IF(OR(LCC!$I$28=1,LCC!$I$28=2,LCC!$I$28=4,LCC!$I$28=8),LCC!$I$27,0) -> 0 | AH90: =IF(OR(LCC!$I$28=1,LCC!$I$28=3,LCC!$I$28=9),LCC!$I$27,0) -> 0 | AI90: =IF(OR(LCC!$I$28=1,LCC!$I$28=2,LCC!$I$28=5,LCC!$I$28=10),LCC!$I$27,0) -> 0 | AJ90: =SUM(Y90:INDEX(Y90:AI90,LCC!$E$6)) -> 0 | AL90: Produsul 3 | AM90: 0 | AN90: =IF(LCC!$I$28=1,LCC!$I$27,0) -> 0 | AO90: =IF(OR(LCC!$I$28=1,$E$24=2),LCC!$I$27,0) -> 0 | AP90: =IF(OR(LCC!$I$28=1,LCC!$I$28=3),LCC!$I$27,0) -> 0 | AQ90: =IF(OR(LCC!$I$28=1,LCC!$I$28=2,LCC!$I$28=4),LCC!$I$27,0) -> 0 | AR90: =IF(OR(LCC!$I$28=1,LCC!$I$28=5),LCC!$I$27,0) -> 0 | AS90: =IF(OR(LCC!$I$28=1,LCC!$I$28=2,LCC!$I$28=3,LCC!$I$28=6),LCC!$I$27,0) -> 0 | AT90: =IF(OR(LCC!$I$28=1,LCC!$I$28=7),LCC!$I$27,0) -> 0 | AU90: =IF(OR(LCC!$I$28=1,LCC!$I$28=2,LCC!$I$28=4,LCC!$I$28=8),LCC!$I$27,0) -> 0 | AV90: =IF(OR(LCC!$I$28=1,LCC!$I$28=3,LCC!$I$28=9),LCC!$I$27,0) -> 0 | AW90: =IF(OR(LCC!$I$28=1,LCC!$I$28=2,LCC!$I$28=5,LCC!$I$28=10),LCC!$I$27,0) -> 0 | AX90: =SUM(AM90:INDEX(AM90:AW90,LCC!$E$6)) -> 0
X91: Produsul 4 | Y91: 0 | Z91: =IF(LCC!$K$28=1,LCC!$K$27,0) -> 0 | AA91: =IF(OR(LCC!$K$28=1,$E$24=2),LCC!$K$27,0) -> 0 | AB91: =IF(OR(LCC!$K$28=1,LCC!$K$28=3),LCC!$K$27,0) -> 0 | AC91: =IF(OR(LCC!$K$28=1,LCC!$K$28=2,LCC!$K$28=4),LCC!$K$27,0) -> 0 | AD91: =IF(OR(LCC!$K$28=1,LCC!$K$28=5),LCC!$K$27,0) -> 0 | AE91: =IF(OR(LCC!$K$28=1,LCC!$K$28=2,LCC!$K$28=3,LCC!$K$28=6),LCC!$K$27,0) -> 0 | AF91: =IF(OR(LCC!$K$28=1,LCC!$K$28=7),LCC!$K$27,0) -> 0 | AG91: =IF(OR(LCC!$K$28=1,LCC!$K$28=2,LCC!$K$28=4,LCC!$K$28=8),LCC!$K$27,0) -> 0 | AH91: =IF(OR(LCC!$K$28=1,LCC!$K$28=3,LCC!$K$28=9),LCC!$K$27,0) -> 0 | AI91: =IF(OR(LCC!$K$28=1,LCC!$K$28=2,LCC!$K$28=5,LCC!$K$28=10),LCC!$K$27,0) -> 0 | AJ91: =SUM(Y91:INDEX(Y91:AI91,LCC!$E$6)) -> 0 | AL91: Produsul 4 | AM91: 0 | AN91: =IF(LCC!$K$28=1,LCC!$K$27,0) -> 0 | AO91: =IF(OR(LCC!$K$28=1,$E$24=2),LCC!$K$27,0) -> 0 | AP91: =IF(OR(LCC!$K$28=1,LCC!$K$28=3),LCC!$K$27,0) -> 0 | AQ91: =IF(OR(LCC!$K$28=1,LCC!$K$28=2,LCC!$K$28=4),LCC!$K$27,0) -> 0 | AR91: =IF(OR(LCC!$K$28=1,LCC!$K$28=5),LCC!$K$27,0) -> 0 | AS91: =IF(OR(LCC!$K$28=1,LCC!$K$28=2,LCC!$K$28=3,LCC!$K$28=6),LCC!$K$27,0) -> 0 | AT91: =IF(OR(LCC!$K$28=1,LCC!$K$28=7),LCC!$K$27,0) -> 0 | AU91: =IF(OR(LCC!$K$28=1,LCC!$K$28=2,LCC!$K$28=4,LCC!$K$28=8),LCC!$K$27,0) -> 0 | AV91: =IF(OR(LCC!$K$28=1,LCC!$K$28=3,LCC!$K$28=9),LCC!$K$27,0) -> 0 | AW91: =IF(OR(LCC!$K$28=1,LCC!$K$28=2,LCC!$K$28=5,LCC!$K$28=10),LCC!$K$27,0) -> 0 | AX91: =SUM(AM91:INDEX(AM91:AW91,LCC!$E$6)) -> 0
X92: Produsul 5 | Y92: 0 | Z92: =IF(LCC!$M$28=1,LCC!$M$27,0) -> 0 | AA92: =IF(OR(LCC!$M$28=1,$E$24=2),LCC!$M$27,0) -> 0 | AB92: =IF(OR(LCC!$M$28=1,LCC!$M$28=3),LCC!$M$27,0) -> 0 | AC92: =IF(OR(LCC!$M$28=1,LCC!$M$28=2,LCC!$M$28=4),LCC!$M$27,0) -> 0 | AD92: =IF(OR(LCC!$M$28=1,LCC!$M$28=5),LCC!$M$27,0) -> 0 | AE92: =IF(OR(LCC!$M$28=1,LCC!$M$28=2,LCC!$M$28=3,LCC!$M$28=6),LCC!$M$27,0) -> 0 | AF92: =IF(OR(LCC!$M$28=1,LCC!$M$28=7),LCC!$M$27,0) -> 0 | AG92: =IF(OR(LCC!$M$28=1,LCC!$M$28=2,LCC!$M$28=4,LCC!$M$28=8),LCC!$M$27,0) -> 0 | AH92: =IF(OR(LCC!$M$28=1,LCC!$M$28=3,LCC!$M$28=9),LCC!$M$27,0) -> 0 | AI92: =IF(OR(LCC!$M$28=1,LCC!$M$28=2,LCC!$M$28=5,LCC!$M$28=10),LCC!$M$27,0) -> 0 | AJ92: =SUM(Y92:INDEX(Y92:AI92,LCC!$E$6)) -> 0 | AL92: Produsul 5 | AM92: 0 | AN92: =IF(LCC!$M$28=1,LCC!$M$27,0) -> 0 | AO92: =IF(OR(LCC!$M$28=1,$E$24=2),LCC!$M$27,0) -> 0 | AP92: =IF(OR(LCC!$M$28=1,LCC!$M$28=3),LCC!$M$27,0) -> 0 | AQ92: =IF(OR(LCC!$M$28=1,LCC!$M$28=2,LCC!$M$28=4),LCC!$M$27,0) -> 0 | AR92: =IF(OR(LCC!$M$28=1,LCC!$M$28=5),LCC!$M$27,0) -> 0 | AS92: =IF(OR(LCC!$M$28=1,LCC!$M$28=2,LCC!$M$28=3,LCC!$M$28=6),LCC!$M$27,0) -> 0 | AT92: =IF(OR(LCC!$M$28=1,LCC!$M$28=7),LCC!$M$27,0) -> 0 | AU92: =IF(OR(LCC!$M$28=1,LCC!$M$28=2,LCC!$M$28=4,LCC!$M$28=8),LCC!$M$27,0) -> 0 | AV92: =IF(OR(LCC!$M$28=1,LCC!$M$28=3,LCC!$M$28=9),LCC!$M$27,0) -> 0 | AW92: =IF(OR(LCC!$M$28=1,LCC!$M$28=2,LCC!$M$28=5,LCC!$M$28=10),LCC!$M$27,0) -> 0 | AX92: =SUM(AM92:INDEX(AM92:AW92,LCC!$E$6)) -> 0
X93: Produsul 6 | Y93: 0 | Z93: =IF(LCC!$O$28=1,LCC!$O$27,0) -> 0 | AA93: =IF(OR(LCC!$O$28=1,$E$24=2),LCC!$O$27,0) -> 0 | AB93: =IF(OR(LCC!$O$28=1,LCC!$O$28=3),LCC!$O$27,0) -> 0 | AC93: =IF(OR(LCC!$O$28=1,LCC!$O$28=2,LCC!$O$28=4),LCC!$O$27,0) -> 0 | AD93: =IF(OR(LCC!$O$28=1,LCC!$O$28=5),LCC!$O$27,0) -> 0 | AE93: =IF(OR(LCC!$O$28=1,LCC!$O$28=2,LCC!$O$28=3,LCC!$O$28=6),LCC!$O$27,0) -> 0 | AF93: =IF(OR(LCC!$O$28=1,LCC!$O$28=7),LCC!$O$27,0) -> 0 | AG93: =IF(OR(LCC!$O$28=1,LCC!$O$28=2,LCC!$O$28=4,LCC!$O$28=8),LCC!$O$27,0) -> 0 | AH93: =IF(OR(LCC!$O$28=1,LCC!$O$28=3,LCC!$O$28=9),LCC!$O$27,0) -> 0 | AI93: =IF(OR(LCC!$O$28=1,LCC!$O$28=2,LCC!$O$28=5,LCC!$O$28=10),LCC!$O$27,0) -> 0 | AJ93: =SUM(Y93:INDEX(Y93:AI93,LCC!$E$6)) -> 0 | AL93: Produsul 6 | AM93: 0 | AN93: =IF(LCC!$O$28=1,LCC!$O$27,0) -> 0 | AO93: =IF(OR(LCC!$O$28=1,$E$24=2),LCC!$O$27,0) -> 0 | AP93: =IF(OR(LCC!$O$28=1,LCC!$O$28=3),LCC!$O$27,0) -> 0 | AQ93: =IF(OR(LCC!$O$28=1,LCC!$O$28=2,LCC!$O$28=4),LCC!$O$27,0) -> 0 | AR93: =IF(OR(LCC!$O$28=1,LCC!$O$28=5),LCC!$O$27,0) -> 0 | AS93: =IF(OR(LCC!$O$28=1,LCC!$O$28=2,LCC!$O$28=3,LCC!$O$28=6),LCC!$O$27,0) -> 0 | AT93: =IF(OR(LCC!$O$28=1,LCC!$O$28=7),LCC!$O$27,0) -> 0 | AU93: =IF(OR(LCC!$O$28=1,LCC!$O$28=2,LCC!$O$28=4,LCC!$O$28=8),LCC!$O$27,0) -> 0 | AV93: =IF(OR(LCC!$O$28=1,LCC!$O$28=3,LCC!$O$28=9),LCC!$O$27,0) -> 0 | AW93: =IF(OR(LCC!$O$28=1,LCC!$O$28=2,LCC!$O$28=5,LCC!$O$28=10),LCC!$O$27,0) -> 0 | AX93: =SUM(AM93:INDEX(AM93:AW93,LCC!$E$6)) -> 0
X94: Produsul 7 | Y94: 0 | Z94: =IF(LCC!$Q$28=1,LCC!$Q$27,0) -> 0 | AA94: =IF(OR(LCC!$Q$28=1,$E$24=2),LCC!$Q$27,0) -> 0 | AB94: =IF(OR(LCC!$Q$28=1,LCC!$Q$28=3),LCC!$Q$27,0) -> 0 | AC94: =IF(OR(LCC!$Q$28=1,LCC!$Q$28=2,LCC!$Q$28=4),LCC!$Q$27,0) -> 0 | AD94: =IF(OR(LCC!$Q$28=1,LCC!$Q$28=5),LCC!$Q$27,0) -> 0 | AE94: =IF(OR(LCC!$Q$28=1,LCC!$Q$28=2,LCC!$Q$28=3,LCC!$Q$28=6),LCC!$Q$27,0) -> 0 | AF94: =IF(OR(LCC!$Q$28=1,LCC!$Q$28=7),LCC!$Q$27,0) -> 0 | AG94: =IF(OR(LCC!$Q$28=1,LCC!$Q$28=2,LCC!$Q$28=4,LCC!$Q$28=8),LCC!$Q$27,0) -> 0 | AH94: =IF(OR(LCC!$Q$28=1,LCC!$Q$28=3,LCC!$Q$28=9),LCC!$Q$27,0) -> 0 | AI94: =IF(OR(LCC!$Q$28=1,LCC!$Q$28=2,LCC!$Q$28=5,LCC!$Q$28=10),LCC!$Q$27,0) -> 0 | AJ94: =SUM(Y94:INDEX(Y94:AI94,LCC!$E$6)) -> 0 | AL94: Produsul 7 | AM94: 0 | AN94: =IF(LCC!$Q$28=1,LCC!$Q$27,0) -> 0 | AO94: =IF(OR(LCC!$Q$28=1,$E$24=2),LCC!$Q$27,0) -> 0 | AP94: =IF(OR(LCC!$Q$28=1,LCC!$Q$28=3),LCC!$Q$27,0) -> 0 | AQ94: =IF(OR(LCC!$Q$28=1,LCC!$Q$28=2,LCC!$Q$28=4),LCC!$Q$27,0) -> 0 | AR94: =IF(OR(LCC!$Q$28=1,LCC!$Q$28=5),LCC!$Q$27,0) -> 0 | AS94: =IF(OR(LCC!$Q$28=1,LCC!$Q$28=2,LCC!$Q$28=3,LCC!$Q$28=6),LCC!$Q$27,0) -> 0 | AT94: =IF(OR(LCC!$Q$28=1,LCC!$Q$28=7),LCC!$Q$27,0) -> 0 | AU94: =IF(OR(LCC!$Q$28=1,LCC!$Q$28=2,LCC!$Q$28=4,LCC!$Q$28=8),LCC!$Q$27,0) -> 0 | AV94: =IF(OR(LCC!$Q$28=1,LCC!$Q$28=3,LCC!$Q$28=9),LCC!$Q$27,0) -> 0 | AW94: =IF(OR(LCC!$Q$28=1,LCC!$Q$28=2,LCC!$Q$28=5,LCC!$Q$28=10),LCC!$Q$27,0) -> 0 | AX94: =SUM(AM94:INDEX(AM94:AW94,LCC!$E$6)) -> 0
X95: Produsul 8 | Y95: 0 | Z95: =IF(LCC!$S$28=1,LCC!$S$27,0) -> 0 | AA95: =IF(OR(LCC!$S$28=1,$E$24=2),LCC!$S$27,0) -> 0 | AB95: =IF(OR(LCC!$S$28=1,LCC!$S$28=3),LCC!$S$27,0) -> 0 | AC95: =IF(OR(LCC!$S$28=1,LCC!$S$28=2,LCC!$S$28=4),LCC!$S$27,0) -> 0 | AD95: =IF(OR(LCC!$S$28=1,LCC!$S$28=5),LCC!$S$27,0) -> 0 | AE95: =IF(OR(LCC!$S$28=1,LCC!$S$28=2,LCC!$S$28=3,LCC!$S$28=6),LCC!$S$27,0) -> 0 | AF95: =IF(OR(LCC!$S$28=1,LCC!$S$28=7),LCC!$S$27,0) -> 0 | AG95: =IF(OR(LCC!$S$28=1,LCC!$S$28=2,LCC!$S$28=4,LCC!$S$28=8),LCC!$S$27,0) -> 0 | AH95: =IF(OR(LCC!$S$28=1,LCC!$S$28=3,LCC!$S$28=9),LCC!$S$27,0) -> 0 | AI95: =IF(OR(LCC!$S$28=1,LCC!$S$28=2,LCC!$S$28=5,LCC!$S$28=10),LCC!$S$27,0) -> 0 | AJ95: =SUM(Y95:INDEX(Y95:AI95,LCC!$E$6)) -> 0 | AL95: Produsul 8 | AM95: 0 | AN95: =IF(LCC!$S$28=1,LCC!$S$27,0) -> 0 | AO95: =IF(OR(LCC!$S$28=1,$E$24=2),LCC!$S$27,0) -> 0 | AP95: =IF(OR(LCC!$S$28=1,LCC!$S$28=3),LCC!$S$27,0) -> 0 | AQ95: =IF(OR(LCC!$S$28=1,LCC!$S$28=2,LCC!$S$28=4),LCC!$S$27,0) -> 0 | AR95: =IF(OR(LCC!$S$28=1,LCC!$S$28=5),LCC!$S$27,0) -> 0 | AS95: =IF(OR(LCC!$S$28=1,LCC!$S$28=2,LCC!$S$28=3,LCC!$S$28=6),LCC!$S$27,0) -> 0 | AT95: =IF(OR(LCC!$S$28=1,LCC!$S$28=7),LCC!$S$27,0) -> 0 | AU95: =IF(OR(LCC!$S$28=1,LCC!$S$28=2,LCC!$S$28=4,LCC!$S$28=8),LCC!$S$27,0) -> 0 | AV95: =IF(OR(LCC!$S$28=1,LCC!$S$28=3,LCC!$S$28=9),LCC!$S$27,0) -> 0 | AW95: =IF(OR(LCC!$S$28=1,LCC!$S$28=2,LCC!$S$28=5,LCC!$S$28=10),LCC!$S$27,0) -> 0 | AX95: =SUM(AM95:INDEX(AM95:AW95,LCC!$E$6)) -> 0
X96: Produsul 9 | Y96: 0 | Z96: =IF(LCC!$U$28=1,LCC!$U$27,0) -> 0 | AA96: =IF(OR(LCC!$U$28=1,$E$24=2),LCC!$U$27,0) -> 0 | AB96: =IF(OR(LCC!$U$28=1,LCC!$U$28=3),LCC!$U$27,0) -> 0 | AC96: =IF(OR(LCC!$U$28=1,LCC!$U$28=2,LCC!$U$28=4),LCC!$U$27,0) -> 0 | AD96: =IF(OR(LCC!$U$28=1,LCC!$U$28=5),LCC!$U$27,0) -> 0 | AE96: =IF(OR(LCC!$U$28=1,LCC!$U$28=2,LCC!$U$28=3,LCC!$U$28=6),LCC!$U$27,0) -> 0 | AF96: =IF(OR(LCC!$U$28=1,LCC!$U$28=7),LCC!$U$27,0) -> 0 | AG96: =IF(OR(LCC!$U$28=1,LCC!$U$28=2,LCC!$U$28=4,LCC!$U$28=8),LCC!$U$27,0) -> 0 | AH96: =IF(OR(LCC!$U$28=1,LCC!$U$28=3,LCC!$U$28=9),LCC!$U$27,0) -> 0 | AI96: =IF(OR(LCC!$U$28=1,LCC!$U$28=2,LCC!$U$28=5,LCC!$U$28=10),LCC!$U$27,0) -> 0 | AJ96: =SUM(Y96:INDEX(Y96:AI96,LCC!$E$6)) -> 0 | AL96: Produsul 9 | AM96: 0 | AN96: =IF(LCC!$U$28=1,LCC!$U$27,0) -> 0 | AO96: =IF(OR(LCC!$U$28=1,$E$24=2),LCC!$U$27,0) -> 0 | AP96: =IF(OR(LCC!$U$28=1,LCC!$U$28=3),LCC!$U$27,0) -> 0 | AQ96: =IF(OR(LCC!$U$28=1,LCC!$U$28=2,LCC!$U$28=4),LCC!$U$27,0) -> 0 | AR96: =IF(OR(LCC!$U$28=1,LCC!$U$28=5),LCC!$U$27,0) -> 0 | AS96: =IF(OR(LCC!$U$28=1,LCC!$U$28=2,LCC!$U$28=3,LCC!$U$28=6),LCC!$U$27,0) -> 0 | AT96: =IF(OR(LCC!$U$28=1,LCC!$U$28=7),LCC!$U$27,0) -> 0 | AU96: =IF(OR(LCC!$U$28=1,LCC!$U$28=2,LCC!$U$28=4,LCC!$U$28=8),LCC!$U$27,0) -> 0 | AV96: =IF(OR(LCC!$U$28=1,LCC!$U$28=3,LCC!$U$28=9),LCC!$U$27,0) -> 0 | AW96: =IF(OR(LCC!$U$28=1,LCC!$U$28=2,LCC!$U$28=5,LCC!$U$28=10),LCC!$U$27,0) -> 0 | AX96: =SUM(AM96:INDEX(AM96:AW96,LCC!$E$6)) -> 0
X97: Produsul 10 | Y97: 0 | Z97: =IF(LCC!$W$28=1,LCC!$W$27,0) -> 0 | AA97: =IF(OR(LCC!$W$28=1,$E$24=2),LCC!$W$27,0) -> 0 | AB97: =IF(OR(LCC!$W$28=1,LCC!$W$28=3),LCC!$W$27,0) -> 0 | AC97: =IF(OR(LCC!$W$28=1,LCC!$W$28=2,LCC!$W$28=4),LCC!$W$27,0) -> 0 | AD97: =IF(OR(LCC!$W$28=1,LCC!$W$28=5),LCC!$W$27,0) -> 0 | AE97: =IF(OR(LCC!$W$28=1,LCC!$W$28=2,LCC!$W$28=3,LCC!$W$28=6),LCC!$W$27,0) -> 0 | AF97: =IF(OR(LCC!$W$28=1,LCC!$W$28=7),LCC!$W$27,0) -> 0 | AG97: =IF(OR(LCC!$W$28=1,LCC!$W$28=2,LCC!$W$28=4,LCC!$W$28=8),LCC!$W$27,0) -> 0 | AH97: =IF(OR(LCC!$W$28=1,LCC!$W$28=3,LCC!$W$28=9),LCC!$W$27,0) -> 0 | AI97: =IF(OR(LCC!$W$28=1,LCC!$W$28=2,LCC!$W$28=5,LCC!$W$28=10),LCC!$W$27,0) -> 0 | AJ97: =SUM(Y97:INDEX(Y97:AI97,LCC!$E$6)) -> 0 | AL97: Produsul 10 | AM97: 0 | AN97: =IF(LCC!$W$28=1,LCC!$W$27,0) -> 0 | AO97: =IF(OR(LCC!$W$28=1,$E$24=2),LCC!$W$27,0) -> 0 | AP97: =IF(OR(LCC!$W$28=1,LCC!$W$28=3),LCC!$W$27,0) -> 0 | AQ97: =IF(OR(LCC!$W$28=1,LCC!$W$28=2,LCC!$W$28=4),LCC!$W$27,0) -> 0 | AR97: =IF(OR(LCC!$W$28=1,LCC!$W$28=5),LCC!$W$27,0) -> 0 | AS97: =IF(OR(LCC!$W$28=1,LCC!$W$28=2,LCC!$W$28=3,LCC!$W$28=6),LCC!$W$27,0) -> 0 | AT97: =IF(OR(LCC!$W$28=1,LCC!$W$28=7),LCC!$W$27,0) -> 0 | AU97: =IF(OR(LCC!$W$28=1,LCC!$W$28=2,LCC!$W$28=4,LCC!$W$28=8),LCC!$W$27,0) -> 0 | AV97: =IF(OR(LCC!$W$28=1,LCC!$W$28=3,LCC!$W$28=9),LCC!$W$27,0) -> 0 | AW97: =IF(OR(LCC!$W$28=1,LCC!$W$28=2,LCC!$W$28=5,LCC!$W$28=10),LCC!$W$27,0) -> 0 | AX97: =SUM(AM97:INDEX(AM97:AW97,LCC!$E$6)) -> 0

Sheet Calculari (hidden)
A1: FOR CALCULATIONS ONLY - DO NOT AMEND!
D3: Produsul 1 | E3: Produsul 2 | F3: Produsul 3 | G3: Produsul 4 | H3: Produsul 5 | I3: Produsul 6 | J3: Produsul 7 | K3: Produsul 8 | L3: Produsul 9 | M3: Produsul 10
C4: Tip combustibil | D4: =MATCH(LCC!E20,$B$26:$B$38,0) ->  | E4: =MATCH(LCC!G20,$B$26:$B$38,0) ->  | F4: =MATCH(LCC!I20,$B$26:$B$38,0) ->  | G4: =MATCH(LCC!K20,$B$26:$B$38,0) ->  | H4: =MATCH(LCC!M20,$B$26:$B$38,0) ->  | I4: =MATCH(LCC!O20,$B$26:$B$38,0) ->  | J4: =MATCH(LCC!Q20,$B$26:$B$38,0) ->  | K4: =MATCH(LCC!S20,$B$26:$B$38,0) ->  | L4: =MATCH(LCC!U20,$B$26:$B$38,0) ->  | M4: =MATCH(LCC!W20,$B$26:$B$38,0) -> 
C5: Tip combustibil 2 | D5: =MATCH(LCC!E24,$B$26:$B$38,0) ->  | E5: =MATCH(LCC!G24,$B$26:$B$38,0) ->  | F5: =MATCH(LCC!I24,$B$26:$B$38,0) ->  | G5: =MATCH(LCC!K24,$B$26:$B$38,0) ->  | H5: =MATCH(LCC!M24,$B$26:$B$38,0) ->  | I5: =MATCH(LCC!O24,$B$26:$B$38,0) ->  | J5: =MATCH(LCC!Q24,$B$26:$B$38,0) ->  | K5: =MATCH(LCC!S24,$B$26:$B$38,0) ->  | L5: =MATCH(LCC!U24,$B$26:$B$38,0) ->  | M5: =MATCH(LCC!W24,$B$26:$B$38,0) -> 
C6: Combustibil de referinta (1 = motorina, 2 = benzina) | D6: =IF(LCC!E58>0,IF(LCC!E58="Diesel",1,2),0) -> 0 | E6: =IF(LCC!G58>0,IF(LCC!G58="Diesel",1,2),0) -> 0 | F6: =IF(LCC!I58>0,IF(LCC!I58="Diesel",1,2),0) -> 0 | G6: =IF(LCC!K58>0,IF(LCC!K58="Diesel",1,2),0) -> 0 | H6: =IF(LCC!M58>0,IF(LCC!M58="Diesel",1,2),0) -> 0 | I6: =IF(LCC!O58>0,IF(LCC!O58="Diesel",1,2),0) -> 0 | J6: =IF(LCC!Q58>0,IF(LCC!Q58="Diesel",1,2),0) -> 0 | K6: =IF(LCC!S58>0,IF(LCC!S58="Diesel",1,2),0) -> 0 | L6: =IF(LCC!U58>0,IF(LCC!U58="Diesel",1,2),0) -> 0 | M6: =IF(LCC!W58>0,IF(LCC!W58="Diesel",1,2),0) -> 0
C7: Combustibilul 1 | D7: =INDEX($G$26:$G$38,D4)/LCC!$E$6 ->  | E7: =INDEX($G$26:$G$38,E4)/LCC!$E$6 ->  | F7: =INDEX($G$26:$G$38,F4)/LCC!$E$6 ->  | G7: =INDEX($G$26:$G$38,G4)/LCC!$E$6 ->  | H7: =INDEX($G$26:$G$38,H4)/LCC!$E$6 ->  | I7: =INDEX($G$26:$G$38,I4)/LCC!$E$6 ->  | J7: =INDEX($G$26:$G$38,J4)/LCC!$E$6 ->  | K7: =INDEX($G$26:$G$38,K4)/LCC!$E$6 ->  | L7: =INDEX($G$26:$G$38,L4)/LCC!$E$6 ->  | M7: =INDEX($G$26:$G$38,M4)/LCC!$E$6 -> 
C8: Combustibilul 2 | D8: =IF(LCC!E23="Yes",INDEX($G$42:$G$54,D5)/LCC!$E$6,0) -> 0 | E8: =IF(LCC!G23="Yes",INDEX($G$42:$G$54,E5)/LCC!$E$6,0) -> 0 | F8: =IF(LCC!I23="Yes",INDEX($G$42:$G$54,F5)/LCC!$E$6,0) -> 0 | G8: =IF(LCC!K23="Yes",INDEX($G$42:$G$54,G5)/LCC!$E$6,0) -> 0 | H8: =IF(LCC!M23="Yes",INDEX($G$42:$G$54,H5)/LCC!$E$6,0) -> 0 | I8: =IF(LCC!O23="Yes",INDEX($G$42:$G$54,I5)/LCC!$E$6,0) -> 0 | J8: =IF(LCC!Q23="Yes",INDEX($G$42:$G$54,J5)/LCC!$E$6,0) -> 0 | K8: =IF(LCC!S23="Yes",INDEX($G$42:$G$54,K5)/LCC!$E$6,0) -> 0 | L8: =IF(LCC!U23="Yes",INDEX($G$42:$G$54,L5)/LCC!$E$6,0) -> 0 | M8: =IF(LCC!W23="Yes",INDEX($G$42:$G$54,M5)/LCC!$E$6,0) -> 0
C9: Plata combustibil per perioada | D9: =SUM(D7:D8) -> 
C10: Pret mediu anual baterie | D10: ='Preturi combustibili'!AJ53/LCC!$E$6+'Preturi combustibili'!AX53/LCC!$E$6 ->  | E10: ='Preturi combustibili'!AJ54/LCC!$E$6+'Preturi combustibili'!AJ54/LCC!$E$6 ->  | F10: ='Preturi combustibili'!AJ55/LCC!$E$6+'Preturi combustibili'!AJ55/LCC!$E$6 ->  | G10: ='Preturi combustibili'!AJ56/LCC!$E$6+'Preturi combustibili'!AJ56/LCC!$E$6 ->  | H10: ='Preturi combustibili'!AJ57/LCC!$E$6+'Preturi combustibili'!AJ57/LCC!$E$6 ->  | I10: ='Preturi combustibili'!AK57/LCC!$E$6+'Preturi combustibili'!AK57/LCC!$E$6 ->  | J10: ='Preturi combustibili'!AL57/LCC!$E$6+'Preturi combustibili'!AL57/LCC!$E$6 ->  | K10: ='Preturi combustibili'!AM57/LCC!$E$6+'Preturi combustibili'!AM57/LCC!$E$6 ->  | L10: ='Preturi combustibili'!AN57/LCC!$E$6+'Preturi combustibili'!AN57/LCC!$E$6 ->  | M10: ='Preturi combustibili'!AO57/LCC!$E$6+'Preturi combustibili'!AO57/LCC!$E$6 -> 
C11: Pret combustibil per litru utilizand valorile proprii (Combustibil 1) | D11: =IF(INDEX(LCC!$C$83:$D$94,Calculari!D4,2)>0,LCC!$E$22-CUMIPMT(INDEX(LCC!$C$83:$D$94,Calculari!D4,2),LCC!$E$6,LCC!$E$22,1,LCC!$E$6,1),LCC!$E$22*(1+(INDEX(LCC!$C$83:$D$93,Calculari!D4,2))^LCC!$E$6)) ->  | E11: =IF(INDEX(LCC!$C$83:$D$94,Calculari!E4,2)>0,LCC!$G$22-CUMIPMT(INDEX(LCC!$C$83:$D$94,Calculari!E4,2),LCC!$E$6,LCC!$G$22,1,LCC!$E$6,1),LCC!$G$22*(1+(INDEX(LCC!$C$83:$D$93,Calculari!E4,2))^LCC!$E$6)) ->  | F11: =IF(INDEX(LCC!$C$83:$D$94,Calculari!F4,2)>0,LCC!$I$22-CUMIPMT(INDEX(LCC!$C$83:$D$94,Calculari!F4,2),LCC!$E$6,LCC!$I$22,1,LCC!$E$6,1),LCC!$I$22*(1+(INDEX(LCC!$C$83:$D$93,Calculari!F4,2))^LCC!$E$6)) ->  | G11: =IF(INDEX(LCC!$C$83:$D$94,Calculari!G4,2)>0,LCC!$K$22-CUMIPMT(INDEX(LCC!$C$83:$D$94,Calculari!G4,2),LCC!$E$6,LCC!$K$22,1,LCC!$E$6,1),LCC!$K$22*(1+(INDEX(LCC!$C$83:$D$93,Calculari!G4,2))^LCC!$E$6)) ->  | H11: =IF(INDEX(LCC!$C$83:$D$94,Calculari!H4,2)>0,LCC!$M$22-CUMIPMT(INDEX(LCC!$C$83:$D$94,Calculari!H4,2),LCC!$E$6,LCC!$M$22,1,LCC!$E$6,1),LCC!$M$22*(1+(INDEX(LCC!$C$83:$D$93,Calculari!H4,2))^LCC!$E$6)) ->  | I11: =IF(INDEX(LCC!$C$83:$D$94,Calculari!I4,2)>0,LCC!$M$22-CUMIPMT(INDEX(LCC!$C$83:$D$94,Calculari!I4,2),LCC!$E$6,LCC!$M$22,1,LCC!$E$6,1),LCC!$M$22*(1+(INDEX(LCC!$C$83:$D$93,Calculari!I4,2))^LCC!$E$6)) ->  | J11: =IF(INDEX(LCC!$C$83:$D$94,Calculari!J4,2)>0,LCC!$M$22-CUMIPMT(INDEX(LCC!$C$83:$D$94,Calculari!J4,2),LCC!$E$6,LCC!$M$22,1,LCC!$E$6,1),LCC!$M$22*(1+(INDEX(LCC!$C$83:$D$93,Calculari!J4,2))^LCC!$E$6)) ->  | K11: =IF(INDEX(LCC!$C$83:$D$94,Calculari!K4,2)>0,LCC!$M$22-CUMIPMT(INDEX(LCC!$C$83:$D$94,Calculari!K4,2),LCC!$E$6,LCC!$M$22,1,LCC!$E$6,1),LCC!$M$22*(1+(INDEX(LCC!$C$83:$D$93,Calculari!K4,2))^LCC!$E$6)) ->  | L11: =IF(INDEX(LCC!$C$83:$D$94,Calculari!L4,2)>0,LCC!$M$22-CUMIPMT(INDEX(LCC!$C$83:$D$94,Calculari!L4,2),LCC!$E$6,LCC!$M$22,1,LCC!$E$6,1),LCC!$M$22*(1+(INDEX(LCC!$C$83:$D$93,Calculari!L4,2))^LCC!$E$6)) ->  | M11: =IF(INDEX(LCC!$C$83:$D$94,Calculari!M4,2)>0,LCC!$M$22-CUMIPMT(INDEX(LCC!$C$83:$D$94,Calculari!M4,2),LCC!$E$6,LCC!$M$22,1,LCC!$E$6,1),LCC!$M$22*(1+(INDEX(LCC!$C$83:$D$93,Calculari!M4,2))^LCC!$E$6)) -> 
C12: Pret combustibil per litru utilizand valorile proprii (Combustibil 2) | D12: =IF(INDEX(LCC!$C$83:$D$94,Calculari!D5,2)>0,LCC!$E$26-CUMIPMT(INDEX(LCC!$C$83:$D$94,Calculari!D5,2),LCC!$E$6,LCC!$E$26,1,LCC!$E$6,1),LCC!$E$26*(1+(INDEX(LCC!$C$83:$D$93,Calculari!D5,2))^LCC!$E$6)) ->  | E12: =IF(INDEX(LCC!$C$83:$D$94,Calculari!E4,2)>0,LCC!G26-CUMIPMT(INDEX(LCC!$C$83:$D$94,Calculari!E4,2),LCC!$E$6,LCC!G26,1,LCC!$E$6,1),LCC!G26*(1+(INDEX(LCC!$C$83:$D$93,Calculari!E4,2))^LCC!$E$6)) ->  | F12: =IF(INDEX(LCC!$C$83:$D$94,Calculari!F4,2)>0,LCC!I26-CUMIPMT(INDEX(LCC!$C$83:$D$94,Calculari!F4,2),LCC!$E$6,LCC!I26,1,LCC!$E$6,1),LCC!I26*(1+(INDEX(LCC!$C$83:$D$93,Calculari!F4,2))^LCC!$E$6)) ->  | G12: =IF(INDEX(LCC!$C$83:$D$94,Calculari!G4,2)>0,LCC!K26-CUMIPMT(INDEX(LCC!$C$83:$D$94,Calculari!G4,2),LCC!$E$6,LCC!K26,1,LCC!$E$6,1),LCC!K26*(1+(INDEX(LCC!$C$83:$D$93,Calculari!G4,2))^LCC!$E$6)) ->  | H12: =IF(INDEX(LCC!$C$83:$D$94,Calculari!H4,2)>0,LCC!M26-CUMIPMT(INDEX(LCC!$C$83:$D$94,Calculari!H4,2),LCC!$E$6,LCC!M26,1,LCC!$E$6,1),LCC!M26*(1+(INDEX(LCC!$C$83:$D$93,Calculari!H4,2))^LCC!$E$6)) ->  | I12: =IF(INDEX(LCC!$C$83:$D$94,Calculari!I4,2)>0,LCC!O26-CUMIPMT(INDEX(LCC!$C$83:$D$94,Calculari!I4,2),LCC!$E$6,LCC!O26,1,LCC!$E$6,1),LCC!O26*(1+(INDEX(LCC!$C$83:$D$93,Calculari!I4,2))^LCC!$E$6)) ->  | J12: =IF(INDEX(LCC!$C$83:$D$94,Calculari!J4,2)>0,LCC!Q26-CUMIPMT(INDEX(LCC!$C$83:$D$94,Calculari!J4,2),LCC!$E$6,LCC!Q26,1,LCC!$E$6,1),LCC!Q26*(1+(INDEX(LCC!$C$83:$D$93,Calculari!J4,2))^LCC!$E$6)) ->  | K12: =IF(INDEX(LCC!$C$83:$D$94,Calculari!K4,2)>0,LCC!S26-CUMIPMT(INDEX(LCC!$C$83:$D$94,Calculari!K4,2),LCC!$E$6,LCC!S26,1,LCC!$E$6,1),LCC!S26*(1+(INDEX(LCC!$C$83:$D$93,Calculari!K4,2))^LCC!$E$6)) ->  | L12: =IF(INDEX(LCC!$C$83:$D$94,Calculari!L4,2)>0,LCC!U26-CUMIPMT(INDEX(LCC!$C$83:$D$94,Calculari!L4,2),LCC!$E$6,LCC!U26,1,LCC!$E$6,1),LCC!U26*(1+(INDEX(LCC!$C$83:$D$93,Calculari!L4,2))^LCC!$E$6)) ->  | M12: =IF(INDEX(LCC!$C$83:$D$94,Calculari!M4,2)>0,LCC!W26-CUMIPMT(INDEX(LCC!$C$83:$D$94,Calculari!M4,2),LCC!$E$6,LCC!W26,1,LCC!$E$6,1),LCC!W26*(1+(INDEX(LCC!$C$83:$D$93,Calculari!M4,2))^LCC!$E$6)) -> 
C13: Consum combustibil per vehicul (Combustibil 1) | D13: =LCC!E$21 -> 0 | E13: =LCC!G$21 -> 0 | F13: =LCC!I$21 -> 0 | G13: =LCC!K$21 -> 0 | H13: =LCC!M$21 -> 0 | I13: =LCC!O$21 -> 0 | J13: =LCC!Q$21 -> 0 | K13: =LCC!S$21 -> 0 | L13: =LCC!U$21 -> 0 | M13: =LCC!W$21 -> 0
C14: Continut energetic (Combustibil 1) | D14: =IF(CELL("type",LCC!E22)="v",INDEX($C$26:$C$38,D$4),0) -> 0 | E14: =IF(CELL("type",LCC!G22)="v",INDEX($C$26:$C$38,E$4),0) -> 0 | F14: =IF(CELL("type",LCC!I22)="v",INDEX($C$26:$C$38,F$4),0) -> 0 | G14: =IF(CELL("type",LCC!K22)="v",INDEX($C$26:$C$38,G$4),0) -> 0 | H14: =IF(CELL("type",LCC!M22)="v",INDEX($C$26:$C$38,H$4),0) -> 0 | I14: =IF(CELL("type",LCC!O22)="v",INDEX($C$26:$C$38,I$4),0) -> 0 | J14: =IF(CELL("type",LCC!Q22)="v",INDEX($C$26:$C$38,J$4),0) -> 0 | K14: =IF(CELL("type",LCC!S22)="v",INDEX($C$26:$C$38,K$4),0) -> 0 | L14: =IF(CELL("type",LCC!U22)="v",INDEX($C$26:$C$38,L$4),0) -> 0 | M14: =IF(CELL("type",LCC!W22)="v",INDEX($C$26:$C$38,M$4),0) -> 0
C15: Consum combustibil per vehicul (Combustibil 2) | D15: =LCC!E$25 -> 0 | E15: =LCC!G$25 -> 0 | F15: =LCC!I$25 -> 0 | G15: =LCC!K$25 -> 0 | H15: =LCC!M$25 -> 0 | I15: =LCC!O$25 -> 0 | J15: =LCC!Q$25 -> 0 | K15: =LCC!S$25 -> 0 | L15: =LCC!U$25 -> 0 | M15: =LCC!W$25 -> 0
C16: Continut energetic (Combustibil 2) | D16: =IF(CELL("type",LCC!E26)="v",INDEX($C$42:$C$54,D$5),0) -> 0 | E16: =IF(CELL("type",LCC!G26)="v",INDEX($C$42:$C$54,E$5),0) -> 0 | F16: =IF(CELL("type",LCC!I26)="v",INDEX($C$42:$C$54,F$5),0) -> 0 | G16: =IF(CELL("type",LCC!K26)="v",INDEX($C$42:$C$54,G$5),0) -> 0 | H16: =IF(CELL("type",LCC!M26)="v",INDEX($C$42:$C$54,H$5),0) -> 0 | I16: =IF(CELL("type",LCC!O26)="v",INDEX($C$42:$C$54,I$5),0) -> 0 | J16: =IF(CELL("type",LCC!Q26)="v",INDEX($C$42:$C$54,J$5),0) -> 0 | K16: =IF(CELL("type",LCC!S26)="v",INDEX($C$42:$C$54,K$5),0) -> 0 | L16: =IF(CELL("type",LCC!U26)="v",INDEX($C$42:$C$54,L$5),0) -> 0 | M16: =IF(CELL("type",LCC!W26)="v",INDEX($C$42:$C$54,M$5),0) -> 0
C17: Consum energie (MJ/km) | D17: =((D13/100)*D14)+((D15/100)*D16) -> 0 | E17: 0 | F17: 0 | G17: 0 | H17: 0 | I17: 0 | J17: 0 | K17: 0 | L17: 0 | M17: 0
C18: Cost combustibil referinta per litru (€/l) | D18: =LCC!E$59 -> 0 | E18: =LCC!G$59 -> 0 | F18: =LCC!I$59 -> 0 | G18: =LCC!K$59 -> 0 | H18: =LCC!M$59 -> 0 | I18: =LCC!O$59 -> 0 | J18: =LCC!Q$59 -> 0 | K18: =LCC!S$59 -> 0 | L18: =LCC!U$59 -> 0 | M18: =LCC!W$59 -> 0
C19: Continut energie combustibil de referinta | D19: =IF($D$6=1,C26, IF($D$6=2,C27, "INCORRECT")) -> INCORRECT | E19: =IF(E$6=1,$C$26, IF(E$6=2,$C$27, "INCORRECT")) -> INCORRECT | F19: INCORRECT | G19: INCORRECT | H19: INCORRECT | I19: INCORRECT | J19: INCORRECT | K19: INCORRECT | L19: INCORRECT | M19: INCORRECT
C20: Cost per unitate energie (€/MJ) | D20: =D18/D19 -> 
C21: Distanta parcursa pe durata de viata (km) | D21: =LCC!E19*LCC!E$6 -> 0 | E21: =LCC!G19*LCC!G$6 -> 0 | F21: =LCC!I19*LCC!I$6 -> 0 | G21: =LCC!K19*LCC!K$6 -> 0 | H21: =LCC!M19*LCC!M$6 -> 0 | I21: =LCC!O19*LCC!O$6 -> 0 | J21: =LCC!Q19*LCC!Q$6 -> 0 | K21: =LCC!S19*LCC!S$6 -> 0 | L21: =LCC!U19*LCC!U$6 -> 0 | M21: =LCC!W19*LCC!W$6 -> 0
C22: Cost consum energie pe durata de viata (€) | D22: =D17*D20*D21 -> 
B24: Combustibilul 1 | G24: Total Fuel costs for specified period
B25: Tip combustibil | C25: Continut energetic | D25: Continut energetic unitar | E25: Consum combustibil unitar | F25: Cost combustibil unitar | G25: Produsul 1 | H25: Produsul 2 | I25: Produsul 3 | J25: Produsul 4 | K25: Produsulct 5 | L25: Produsul 6 | M25: Produsul 7 | N25: Produsul 8 | O25: Produsul 9 | P25: Produsul 10
B26: Motorina (€/l) | C26: 36 | D26: MJ/l | E26: l/100km | F26: €/l | G26: ='Preturi combustibili'!$H$28 -> 0 | H26: ='Preturi combustibili'!$I$28 -> 0 | I26: ='Preturi combustibili'!$J$28 -> 0 | J26: ='Preturi combustibili'!$K$28 -> 0 | K26: ='Preturi combustibili'!$L$28 -> 0 | L26: 0 | M26: 0 | N26: 0 | O26: 0 | P26: 0
B27: Benzina (€/l) | C27: 32 | D27: MJ/l | E27: l/100km | F27: €/l | G27: ='Preturi combustibili'!$H$30 -> 0 | H27: ='Preturi combustibili'!$I$30 -> 0 | I27: ='Preturi combustibili'!$J$30 -> 0 | J27: ='Preturi combustibili'!$K$30 -> 0 | K27: ='Preturi combustibili'!$L$30 -> 0 | L27: 0 | M27: 0 | N27: 0 | O27: 0 | P27: 0
B28: Biogaz/CBG | C28: 35 | D28: MJ/Nm3 | E28: Nm3/100km | F28: €/Nm3
B29: Gaz Natural/CNG (Nm3/100km) | C29: 35 | D29: MJ/Nm3 | E29: Nm3/100km | F29: €/Nm3 | G29: ='Preturi combustibili'!$H$40 -> 0 | H29: ='Preturi combustibili'!$I$40 -> 0 | I29: ='Preturi combustibili'!$J$40 -> 0 | J29: ='Preturi combustibili'!$K$40 -> 0 | K29: ='Preturi combustibili'!$L$40 -> 0 | L29: 0 | M29: 0 | N29: 0 | O29: 0 | P29: 0
B30: Gaz Natural/CNG (kg/100km) | D30: MJ/kg | E30: kg/100km | F30: €/kg
B31: Electricitate (€/kWh) | C31: 3.6 | D31: MJ/kWh | E31: kWh/100km | F31: €/kWh | G31: ='Preturi combustibili'!$H$36 -> 0 | H31: ='Preturi combustibili'!$I$36 -> 0 | I31: ='Preturi combustibili'!$J$36 -> 0 | J31: ='Preturi combustibili'!$K$36 -> 0 | K31: ='Preturi combustibili'!$L$36 -> 0 | L31: 0 | M31: 0 | N31: 0 | O31: 0 | P31: 0
B32: Biodiesel (€/l) | C32: 33 | D32: MJ/l | E32: l/100km | F32: €/l | G32: ='Preturi combustibili'!$H$38 -> 0 | H32: ='Preturi combustibili'!$I$38 -> 0 | I32: ='Preturi combustibili'!$J$38 -> 0 | J32: ='Preturi combustibili'!$K$38 -> 0 | K32: ='Preturi combustibili'!$L$38 -> 0 | L32: 0 | M32: 0 | N32: 0 | O32: 0 | P32: 0
B33: LPG (€/l) | C33: 24 | D33: MJ/l | E33: l/100km | F33: €/l | G33: ='Preturi combustibili'!$H$32 -> 0 | H33: ='Preturi combustibili'!$I$32 -> 0 | I33: ='Preturi combustibili'!$J$32 -> 0 | J33: ='Preturi combustibili'!$K$32 -> 0 | K33: ='Preturi combustibili'!$L$32 -> 0 | L33: 0 | M33: 0 | N33: 0 | O33: 0 | P33: 0
B34: Etanol (€/l) | C34: 21 | D34: MJ/l | E34: l/100km | F34: €/l | G34: ='Preturi combustibili'!$H$34 -> 0 | H34: ='Preturi combustibili'!$I$34 -> 0 | I34: ='Preturi combustibili'!$J$34 -> 0 | J34: ='Preturi combustibili'!$K$34 -> 0 | K34: ='Preturi combustibili'!$L$34 -> 0 | L34: 0 | M34: 0 | N34: 0 | O34: 0 | P34: 0
B35: Hidrogen gazos (€/Nm3) | C35: 11 | D35: MJ/Nm3 | E35: Nm3/100km | F35: €/Nm3
B36: Hidrogen lichid - kg/100km | C36: 120 | D36: MJ/kg | E36: kg/100km | F36: €/kg
B37: Hidrogen lichid - l/100km | C37: 8.6 | D37: MJ/l | E37: l/100km | F37: €/l
B38: Combustibil in emulsie (€/l) | C38: 32 | D38: MJ/l | E38: l/100km | F38: €/l
B40: Combustibilul 2 | G40: Total Fuel costs for specified period
B41: Tip combustibil | C41: Cintinut energetic | D41: Continut energetic unitar | E41: Consum combustibil unitar | F41: Cost combustibil unitar | G41: Produsul 1 | H41: Produsul 2 | I41: Produsul 3 | J41: Produsul 4 | K41: Produsul 5 | L41: Produsul 6 | M41: Produsul 7 | N41: Produsul 8 | O41: Produsul 9 | P41: Produsul 10
B42: Motorina (€/l) | C42: 36 | D42: MJ/l | E42: l/100km | F42: €/l | G42: ='Preturi combustibili'!$H$29 -> 0 | H42: ='Preturi combustibili'!$I$29 -> 0 | I42: ='Preturi combustibili'!$J$29 -> 0 | J42: ='Preturi combustibili'!$K$29 -> 0 | K42: ='Preturi combustibili'!$L29 -> 0 | L42: 0 | M42: 0 | N42: 0 | O42: 0 | P42: 0
B43: Benzina (€/l) | C43: 32 | D43: MJ/l | E43: l/100km | F43: €/l | G43: ='Preturi combustibili'!$H$31 -> 0 | H43: ='Preturi combustibili'!$I$31 -> 0 | I43: ='Preturi combustibili'!$J$31 -> 0 | J43: ='Preturi combustibili'!$K$31 -> 0 | K43: ='Preturi combustibili'!$L31 -> 0 | L43: 0 | M43: 0 | N43: 0 | O43: 0 | P43: 0
B44: Biogaz/CBG | C44: 35 | D44: MJ/Nm3 | E44: Nm3/100km | F44: €/Nm3
B45: Gaz Natural/CNG (€/Nm3) | C45: 35 | D45: MJ/Nm3 | E45: Nm3/100km | F45: €/Nm3 | G45: ='Preturi combustibili'!$H$41 -> 0 | H45: ='Preturi combustibili'!$I$41 -> 0 | I45: ='Preturi combustibili'!$J$41 -> 0 | J45: ='Preturi combustibili'!$K$41 -> 0 | K45: ='Preturi combustibili'!$L41 -> 0 | L45: 0 | M45: 0 | N45: 0 | O45: 0 | P45: 0
B46: Gaz Natural/CNG (kg/100km) | D46: MJ/kg | E46: kg/100km | F46: €/kg
B47: Electricitate (€/kWh) | C47: 3.6 | D47: MJ/kWh | E47: kWh/100km | F47: €/kWh | G47: ='Preturi combustibili'!$H$37 -> 0 | H47: ='Preturi combustibili'!$I$37 -> 0 | I47: ='Preturi combustibili'!$J$37 -> 0 | J47: ='Preturi combustibili'!$K$37 -> 0 | K47: ='Preturi combustibili'!$L37 -> 0 | L47: 0 | M47: 0 | N47: 0 | O47: 0 | P47: 0
B48: Biodiesel (€/l) | C48: 33 | D48: MJ/l | E48: l/100km | F48: €/l | G48: ='Preturi combustibili'!$H$39 -> 0 | H48: ='Preturi combustibili'!$I$39 -> 0 | I48: ='Preturi combustibili'!$J$39 -> 0 | J48: ='Preturi combustibili'!$K$39 -> 0 | K48: ='Preturi combustibili'!L39 -> 0 | L48: 0 | M48: 0 | N48: 0 | O48: 0 | P48: 0
B49: LPG (€/l) | C49: 24 | D49: MJ/l | E49: l/100km | F49: €/l | G49: ='Preturi combustibili'!$H$33 -> 0 | H49: ='Preturi combustibili'!$I$33 -> 0 | I49: ='Preturi combustibili'!$J$33 -> 0 | J49: ='Preturi combustibili'!$K$33 -> 0 | K49: ='Preturi combustibili'!L33 -> 0 | L49: 0 | M49: 0 | N49: 0 | O49: 0 | P49: 0
B50: Etanol (€/l) | C50: 21 | D50: MJ/l | E50: l/100km | F50: €/l | G50: ='Preturi combustibili'!$H$35 -> 0 | H50: ='Preturi combustibili'!$I$35 -> 0 | I50: ='Preturi combustibili'!$J$35 -> 0 | J50: ='Preturi combustibili'!$K$35 -> 0 | K50: ='Preturi combustibili'!L35 -> 0 | L50: 0 | M50: 0 | N50: 0 | O50: 0 | P50: 0
B51: Hidrogen gazos (€/Nm3) | C51: 11 | D51: MJ/Nm3 | E51: Nm3/100km | F51: €/Nm3
B52: Hidrogen lichid - kg/100km (€/kg) | C52: 120 | D52: MJ/kg | E52: kg/100km | F52: €/kg
B53: Hidrogen lichid - l/100km (€/l) | C53: 8.6 | D53: MJ/l | E53: l/100km | F53: €/l
B54: Combustibil in emulsie (€/l) | C54: 32 | D54: MJ/l | E54: l/100km | F54: €/l
B56: Drop down lists
B57: Tip contract | C57: Combustibil referinta | D57: Cresteri pret combustibil | E57: Da_nu
B58: Achizitie | C58: Motorina | D58: Alegeti valorile proprii | E58: Da
B59: Leasing | C59: Benzina | D59: Utilizati valorile OECD-FAO | E59: Nu
